Workbook

Sheet Main
B10: 2018-04-19
B12: Sheet No. | C12: Template Name | D12: Summary
B13: 1 | C13: Future Intra | D13: For Intraday trading in F&O segment
B14: 2 | C14: Cash Intra | D14: For Intraday trading in cash market segment
B15: 3 | C15: Mid-cap Intra | D15: For Intraday trading in Mid-cap stocks
B16: 4 | C16: Bulk Deals | D16: Reveals Bulk Deals carried on NSE & BSE
B17: 5 | C17: Call Tracker

Sheet Future Intra
M5: Back to Main Page
A6: FOR INTRA DAY TRADING | L6: =Main!B10 -> 2018-04-19
A9: Sr.no | B9: Sector | C9: Scrip | D9: CLOSE RATE | E9: Pivot Point | F9: Supports | I9: Resistances
B10: Sector | D10: Point | E10: Point | F10: S1 | G10: S2 | H10: S3 | I10: R1 | J10: R2 | K10: R3 | L10: HIGH | M10: LOW | N10: OI | O10: % Change in OI
A11: 1 | B11: Index | C11: BANKNIFTY | D11: 25124.85 | E11: 25217.78 | F11: 24987.07 | G11: 24849.28 | H11: 24618.57 | I11: 25355.57 | J11: 25586.28 | K11: 25724.07 | L11: 25448.5 | M11: 25080 | N11: 1950240 | O11: -3.81%
A12: 2 | B12: Index | C12: NIFTY | D12: 10538.85 | E12: 10551.87 | F12: 10507.18 | G12: 10475.52 | H12: 10430.83 | I12: 10583.53 | J12: 10628.22 | K12: 10659.88 | L12: 10596.55 | M12: 10520.2 | N12: 28701075 | O12: 2.00%
A13: 3 | B13: Index | C13: NIFTYCPSE | D13: 2827.05 | E13: 942.35 | F13: 1884.70 | G13: 942.35 | H13: 1884.70 | I13: 1884.70 | J13: 942.35 | K13: 1884.70 | L13: 0 | M13: 0 | N13: 0 | O13: 0.00%
A14: 4 | B14: Index | C14: NIFTYINFRA | D14: 3716.60 | E14: 1238.87 | F14: 2477.73 | G14: 1238.87 | H14: 2477.73 | I14: 2477.73 | J14: 1238.87 | K14: 2477.73 | L14: 0 | M14: 0 | N14: 0 | O14: 0.00%
A15: 5 | B15: Index | C15: NIFTYIT | D15: 13134.00 | E15: 13155.33 | F15: 13092.67 | G15: 13051.33 | H15: 12988.67 | I15: 13196.67 | J15: 13259.33 | K15: 13300.67 | L15: 13218 | M15: 13114 | N15: 36550 | O15: 0.14%
A16: 6 | B16: Index | C16: NIFTYMID50 | D16: 5429.90 | E16: 1809.97 | F16: 3619.93 | G16: 1809.97 | H16: 3619.93 | I16: 3619.93 | J16: 1809.97 | K16: 3619.93 | L16: 0 | M16: 0 | N16: 591600 | O16: 0.00%
A17: 7 | B17: Index | C17: NIFTYPSE | D17: 4380.60 | E17: 1460.20 | F17: 2920.40 | G17: 1460.20 | H17: 2920.40 | I17: 2920.40 | J17: 1460.20 | K17: 2920.40 | L17: 0 | M17: 0 | N17: 0 | O17: 0.00%
A18: 8 | B18: Cement | C18: ACC | D18: 1569.45 | E18: 1577.00 | F18: 1555.20 | G18: 1540.95 | H18: 1519.15 | I18: 1591.25 | J18: 1613.05 | K18: 1627.30 | L18: 1598.8 | M18: 1562.75 | N18: 1550800 | O18: -4.11%
A19: 9 | B19: Others | C19: ADANIENT | D19: 137.25 | E19: 138.25 | F19: 135.10 | G19: 132.95 | H19: 129.80 | I19: 140.40 | J19: 143.55 | K19: 145.70 | L19: 141.4 | M19: 136.1 | N19: 15628000 | O19: 4.44%
A20: 10 | B20: Others | C20: ADANIPORTS | D20: 386.30 | E20: 385.20 | F20: 382.25 | G20: 378.20 | H20: 375.25 | I20: 389.25 | J20: 392.20 | K20: 396.25 | L20: 388.15 | M20: 381.15 | N20: 14430000 | O20: 1.26%
A21: 11 | B21: Power | C21: ADANIPOWER | D21: 25.90 | E21: 25.88 | F21: 25.52 | G21: 25.13 | H21: 24.77 | I21: 26.27 | J21: 26.63 | K21: 27.02 | L21: 26.25 | M21: 25.5 | N21: 98260000 | O21: -0.14%
A22: 12 | B22: Pharma | C22: AJANTPHARM | D22: 1381.60 | E22: 1381.53 | F22: 1374.07 | G22: 1366.53 | H22: 1359.07 | I22: 1389.07 | J22: 1396.53 | K22: 1404.07 | L22: 1389 | M22: 1374 | N22: 759000 | O22: -1.68%
A23: 13 | B23: Banking | C23: ALBK | D23: 51.10 | E23: 51.48 | F23: 50.52 | G23: 49.93 | H23: 48.97 | I23: 52.07 | J23: 53.03 | K23: 53.62 | L23: 52.45 | M23: 50.9 | N23: 16570000 | O23: 1.04%
A24: 14 | B24: Automobile | C24: AMARAJABAT | D24: 850.00 | E24: 839.75 | F24: 827.50 | G24: 805.00 | H24: 792.75 | I24: 862.25 | J24: 874.50 | K24: 897.00 | L24: 852 | M24: 817.25 | N24: 1452500 | O24: 9.90%
A25: 15 | B25: Cement | C25: AMBUJACEM | D25: 244.95 | E25: 245.35 | F25: 243.80 | G25: 242.65 | H25: 241.10 | I25: 246.50 | J25: 248.05 | K25: 249.20 | L25: 246.9 | M25: 244.2 | N25: 10865000 | O25: 2.02%
A26: 16 | B26: Banking | C26: ANDHRABANK | D26: 42.15 | E26: 42.53 | F26: 41.67 | G26: 41.18 | H26: 40.32 | I26: 43.02 | J26: 43.88 | K26: 44.37 | L26: 43.4 | M26: 42.05 | N26: 24300000 | O26: 5.79%
A27: 17 | B27: Others | C27: APOLLOHOSP | D27: 1078.65 | E27: 1082.77 | F27: 1068.93 | G27: 1059.22 | H27: 1045.38 | I27: 1092.48 | J27: 1106.32 | K27: 1116.03 | L27: 1096.6 | M27: 1073.05 | N27: 762000 | O27: 9.25%
A28: 18 | B28: Automobile | C28: APOLLOTYRE | D28: 290.40 | E28: 293.12 | F28: 286.48 | G28: 282.57 | H28: 275.93 | I28: 297.03 | J28: 303.67 | K28: 307.58 | L28: 299.75 | M28: 289.2 | N28: 12384000 | O28: 1.40%
A29: 19 | B29: Textile | C29: ARVIND | D29: 418.20 | E29: 419.08 | F29: 414.37 | G29: 410.53 | H29: 405.82 | I29: 422.92 | J29: 427.63 | K29: 431.47 | L29: 423.8 | M29: 415.25 | N29: 5404000 | O29: -0.92%
A30: 20 | B30: Automobile | C30: ASHOKLEY | D30: 149.40 | E30: 149.65 | F30: 148.10 | G30: 146.80 | H30: 145.25 | I30: 150.95 | J30: 152.50 | K30: 153.80 | L30: 151.2 | M30: 148.35 | N30: 66997000 | O30: -1.60%
A31: 21 | B31: FMCG | C31: ASIANPAINT | D31: 1174.30 | E31: 1176.62 | F31: 1168.68 | G31: 1163.07 | H31: 1155.13 | I31: 1182.23 | J31: 1190.17 | K31: 1195.78 | L31: 1184.55 | M31: 1171 | N31: 5248800 | O31: -0.64%
A32: 22 | B32: Pharma | C32: AUROPHARMA | D32: 610.40 | E32: 614.67 | F32: 603.48 | G32: 596.57 | H32: 585.38 | I32: 621.58 | J32: 632.77 | K32: 639.68 | L32: 625.85 | M32: 607.75 | N32: 22208000 | O32: -0.22%
A33: 23 | B33: Banking | C33: AXISBANK | D33: 519.25 | E33: 524.43 | F33: 512.42 | G33: 505.58 | H33: 493.57 | I33: 531.27 | J33: 543.28 | K33: 550.12 | L33: 536.45 | M33: 517.6 | N33: 44144400 | O33: 3.32%
A34: 24 | B34: Automobile | C34: BAJAJ-AUTO | D34: 2862.30 | E34: 2865.10 | F34: 2850.25 | G34: 2838.20 | H34: 2823.35 | I34: 2877.15 | J34: 2892.00 | K34: 2904.05 | L34: 2879.95 | M34: 2853.05 | N34: 2438750 | O34: -4.62%
A35: 25 | B35: Others | C35: BAJAJFINSV | D35: 5380.65 | E35: 5401.87 | F35: 5338.83 | G35: 5297.02 | H35: 5233.98 | I35: 5443.68 | J35: 5506.72 | K35: 5548.53 | L35: 5464.9 | M35: 5360.05 | N35: 744500 | O35: -0.96%
A36: 26 | B36: Finance | C36: BAJFINANCE | D36: 1933.40 | E36: 1938.62 | F36: 1922.23 | G36: 1911.07 | H36: 1894.68 | I36: 1949.78 | J36: 1966.17 | K36: 1977.33 | L36: 1955 | M36: 1927.45 | N36: 4704500 | O36: -0.68%
A37: 27 | B37: Others | C37: BALKRISIND | D37: 1309.90 | E37: 1315.50 | F37: 1300.65 | G37: 1291.40 | H37: 1276.55 | I37: 1324.75 | J37: 1339.60 | K37: 1348.85 | L37: 1330.35 | M37: 1306.25 | N37: 1073600 | O37: -0.89%
A38: 28 | B38: Others | C38: BALRAMCHIN | D38: 70.60 | E38: 71.97 | F38: 68.93 | G38: 67.27 | H38: 64.23 | I38: 73.63 | J38: 76.67 | K38: 78.33 | L38: 75 | M38: 70.3 | N38: 18130000 | O38: 7.98%
A39: 29 | B39: Banking | C39: BANKBARODA | D39: 142.15 | E39: 144.27 | F39: 139.13 | G39: 136.12 | H39: 130.98 | I39: 147.28 | J39: 152.42 | K39: 155.43 | L39: 149.4 | M39: 141.25 | N39: 52528000 | O39: 9.74%
A40: 30 | B40: Banking | C40: BANKINDIA | D40: 109.20 | E40: 110.08 | F40: 107.67 | G40: 106.13 | H40: 103.72 | I40: 111.62 | J40: 114.03 | K40: 115.57 | L40: 112.5 | M40: 108.55 | N40: 27786000 | O40: 2.16%
A41: 31 | B41: FMCG | C41: BATAINDIA | D41: 776.45 | E41: 777.73 | F41: 771.47 | G41: 766.48 | H41: 760.22 | I41: 782.72 | J41: 788.98 | K41: 793.97 | L41: 784 | M41: 772.75 | N41: 2668600 | O41: -5.71%
A42: 32 | B42: Capital_Goods | C42: BEL | D42: 139.05 | E42: 139.43 | F42: 138.27 | G42: 137.48 | H42: 136.32 | I42: 140.22 | J42: 141.38 | K42: 142.17 | L42: 140.6 | M42: 138.65 | N42: 32600700 | O42: 1.54%
A43: 33 | B43: Infrastructure | C43: BEML | D43: 1123.05 | E43: 1125.52 | F43: 1112.53 | G43: 1102.02 | H43: 1089.03 | I43: 1136.03 | J43: 1149.02 | K43: 1159.53 | L43: 1138.5 | M43: 1115 | N43: 2323800 | O43: 2.58%
A44: 34 | B44: Others | C44: BERGEPAINT | D44: 269.60 | E44: 271.68 | F44: 266.62 | G44: 263.63 | H44: 258.57 | I44: 274.67 | J44: 279.73 | K44: 282.72 | L44: 276.75 | M44: 268.7 | N44: 1942600 | O44: -7.54%
A45: 35 | B45: Finance | C45: BHARATFIN | D45: 1139.05 | E45: 1143.88 | F45: 1130.27 | G45: 1121.48 | H45: 1107.87 | I45: 1152.67 | J45: 1166.28 | K45: 1175.07 | L45: 1157.5 | M45: 1135.1 | N45: 4559000 | O45: -0.55%
A46: 36 | B46: Automobile | C46: BHARATFORG | D46: 738.75 | E46: 740.67 | F46: 733.78 | G46: 728.82 | H46: 721.93 | I46: 745.63 | J46: 752.52 | K46: 757.48 | L46: 747.55 | M46: 735.7 | N46: 9140400 | O46: 0.14%
A47: 37 | B47: Telecom | C47: BHARTIARTL | D47: 385.35 | E47: 386.55 | F47: 381.30 | G47: 377.25 | H47: 372.00 | I47: 390.60 | J47: 395.85 | K47: 399.90 | L47: 391.8 | M47: 382.5 | N47: 61662400 | O47: -2.07%
A48: 38 | B48: Capital_Goods | C48: BHEL | D48: 87.95 | E48: 88.17 | F48: 87.33 | G48: 86.72 | H48: 85.88 | I48: 88.78 | J48: 89.62 | K48: 90.23 | L48: 89 | M48: 87.55 | N48: 45225000 | O48: 0.97%
A49: 39 | B49: Pharma | C49: BIOCON | D49: 624.20 | E49: 624.88 | F49: 619.52 | G49: 614.83 | H49: 609.47 | I49: 629.57 | J49: 634.93 | K49: 639.62 | L49: 630.25 | M49: 620.2 | N49: 8809200 | O49: 0.95%
A50: 40 | B50: Automobile | C50: BOSCHLTD | D50: 19468.30 | E50: 19513.03 | F50: 19356.37 | G50: 19244.43 | H50: 19087.77 | I50: 19624.97 | J50: 19781.63 | K50: 19893.57 | L50: 19669.7 | M50: 19401.1 | N50: 195075 | O50: 0.71%
A51: 41 | B51: Oil_Gas | C51: BPCL | D51: 405.10 | E51: 405.93 | F51: 402.67 | G51: 400.23 | H51: 396.97 | I51: 408.37 | J51: 411.63 | K51: 414.07 | L51: 409.2 | M51: 403.5 | N51: 16475400 | O51: -1.37%
A52: 42 | B52: FMCG | C52: BRITANNIA | D52: 5359.00 | E52: 5362.98 | F52: 5331.97 | G52: 5304.93 | H52: 5273.92 | I52: 5390.02 | J52: 5421.03 | K52: 5448.07 | L52: 5394 | M52: 5335.95 | N52: 852200 | O52: 0.64%
A53: 43 | B53: Pharma | C53: CADILAHC | D53: 385.40 | E53: 386.82 | F53: 382.33 | G53: 379.27 | H53: 374.78 | I53: 389.88 | J53: 394.37 | K53: 397.43 | L53: 391.3 | M53: 383.75 | N53: 6198400 | O53: 0.91%
A54: 44 | B54: Banking | C54: CANBK | D54: 277.20 | E54: 278.40 | F54: 273.50 | G54: 269.80 | H54: 264.90 | I54: 282.10 | J54: 287.00 | K54: 290.70 | L54: 283.3 | M54: 274.7 | N54: 11153600 | O54: -3.54%
A55: 45 | B55: Others | C55: CANFINHOME | D55: 442.10 | E55: 443.97 | F55: 439.13 | G55: 436.17 | H55: 431.33 | I55: 446.93 | J55: 451.77 | K55: 454.73 | L55: 448.8 | M55: 441 | N55: 7162500 | O55: 1.33%
A56: 46 | B56: Finance | C56: CAPF | D56: 652.20 | E56: 654.90 | F56: 647.10 | G56: 642.00 | H56: 634.20 | I56: 660.00 | J56: 667.80 | K56: 672.90 | L56: 662.7 | M56: 649.8 | N56: 7584800 | O56: 0.37%
A57: 47 | B57: Oil_Gas | C57: CASTROLIND | D57: 205.90 | E57: 207.53 | F57: 203.57 | G57: 201.23 | H57: 197.27 | I57: 209.87 | J57: 213.83 | K57: 216.17 | L57: 211.5 | M57: 205.2 | N57: 11135600 | O57: 2.50%
A58: 48 | B58: Automobile | C58: CEATLTD | D58: 1597.75 | E58: 1608.90 | F58: 1581.05 | G58: 1564.35 | H58: 1536.50 | I58: 1625.60 | J58: 1653.45 | K58: 1670.15 | L58: 1636.75 | M58: 1592.2 | N58: 1517250 | O58: -1.79%
A59: 49 | B59: Textile | C59: CENTURYTEX | D59: 1222.35 | E59: 1227.70 | F59: 1212.40 | G59: 1202.45 | H59: 1187.15 | I59: 1237.65 | J59: 1252.95 | K59: 1262.90 | L59: 1243 | M59: 1217.75 | N59: 6029100 | O59: 0.86%
A60: 50 | B60: Power | C60: CESC | D60: 1039.70 | E60: 1045.03 | F60: 1028.87 | G60: 1018.03 | H60: 1001.87 | I60: 1055.87 | J60: 1072.03 | K60: 1082.87 | L60: 1061.2 | M60: 1034.2 | N60: 5823950 | O60: 1.19%
A61: 51 | B61: Power | C61: CGPOWER | D61: 82.20 | E61: 82.50 | F61: 81.50 | G61: 80.80 | H61: 79.80 | I61: 83.20 | J61: 84.20 | K61: 84.90 | L61: 83.5 | M61: 81.8 | N61: 21480000 | O61: 0.96%
A62: 52 | B62: Others | C62: CHENNPETRO | D62: 332.65 | E62: 334.22 | F62: 329.83 | G62: 327.02 | H62: 322.63 | I62: 337.03 | J62: 341.42 | K62: 344.23 | L62: 338.6 | M62: 331.4 | N62: 3021000 | O62: 3.18%
A63: 53 | B63: Others | C63: CHOLAFIN | D63: 1570.75 | E63: 1576.47 | F63: 1562.28 | G63: 1553.82 | H63: 1539.63 | I63: 1584.93 | J63: 1599.12 | K63: 1607.58 | L63: 1590.65 | M63: 1568 | N63: 573500 | O63: 3.89%
A64: 54 | B64: Pharma | C64: CIPLA | D64: 585.40 | E64: 588.23 | F64: 579.12 | G64: 572.83 | H64: 563.72 | I64: 594.52 | J64: 603.63 | K64: 609.92 | L64: 597.35 | M64: 581.95 | N64: 8486000 | O64: -4.03%
A65: 55 | B65: Others | C65: COALINDIA | D65: 285.35 | E65: 285.43 | F65: 282.87 | G65: 280.38 | H65: 277.82 | I65: 287.92 | J65: 290.48 | K65: 292.97 | L65: 288 | M65: 282.95 | N65: 21370800 | O65: 0.36%
A66: 56 | B66: FMCG | C66: COLPAL | D66: 1108.20 | E66: 1105.97 | F66: 1099.08 | G66: 1089.97 | H66: 1083.08 | I66: 1115.08 | J66: 1121.97 | K66: 1131.08 | L66: 1112.85 | M66: 1096.85 | N66: 1523900 | O66: 1.44%
A67: 57 | B67: Others | C67: CONCOR | D67: 1350.40 | E67: 1356.80 | F67: 1338.85 | G67: 1327.30 | H67: 1309.35 | I67: 1368.35 | J67: 1386.30 | K67: 1397.85 | L67: 1374.75 | M67: 1345.25 | N67: 1036875 | O67: -2.12%
A68: 58 | B68: Capital_Goods | C68: CUMMINSIND | D68: 731.15 | E68: 731.32 | F68: 724.73 | G68: 718.32 | H68: 711.73 | I68: 737.73 | J68: 744.32 | K68: 750.73 | L68: 737.9 | M68: 724.9 | N68: 2247600 | O68: 3.22%
A69: 59 | B69: FMCG | C69: DABUR | D69: 355.95 | E69: 353.40 | F69: 350.05 | G69: 344.15 | H69: 340.80 | I69: 359.30 | J69: 362.65 | K69: 368.55 | L69: 356.75 | M69: 347.5 | N69: 11987500 | O69: 2.79%
A70: 60 | B70: Cement | C70: DALMIABHA | D70: 2887.80 | E70: 2875.62 | F70: 2853.23 | G70: 2818.67 | H70: 2796.28 | I70: 2910.18 | J70: 2932.57 | K70: 2967.13 | L70: 2898 | M70: 2841.05 | N70: 657000 | O70: -2.06%
A71: 61 | B71: Banking | C71: DCBBANK | D71: 197.15 | E71: 199.02 | F71: 194.53 | G71: 191.92 | H71: 187.43 | I71: 201.63 | J71: 206.12 | K71: 208.73 | L71: 203.5 | M71: 196.4 | N71: 8158500 | O71: -1.57%
A72: 62 | B72: Finance | C72: DHFL | D72: 593.40 | E72: 596.12 | F72: 588.28 | G72: 583.17 | H72: 575.33 | I72: 601.23 | J72: 609.07 | K72: 614.18 | L72: 603.95 | M72: 591 | N72: 26811000 | O72: 0.76%
A73: 63 | B73: Media | C73: DISHTV | D73: 77.80 | E73: 78.22 | F73: 76.93 | G73: 76.07 | H73: 74.78 | I73: 79.08 | J73: 80.37 | K73: 81.23 | L73: 79.5 | M73: 77.35 | N73: 42616000 | O73: -2.64%
A74: 64 | B74: Pharma | C74: DIVISLAB | D74: 1174.00 | E74: 1182.13 | F74: 1162.27 | G74: 1150.53 | H74: 1130.67 | I74: 1193.87 | J74: 1213.73 | K74: 1225.47 | L74: 1202 | M74: 1170.4 | N74: 2300800 | O74: 2.24%
A75: 65 | B75: Realty | C75: DLF | D75: 212.75 | E75: 214.47 | F75: 209.78 | G75: 206.82 | H75: 202.13 | I75: 217.43 | J75: 222.12 | K75: 225.08 | L75: 219.15 | M75: 211.5 | N75: 51170000 | O75: 0.37%
A76: 66 | B76: Pharma | C76: DRREDDY | D76: 2102.40 | E76: 2103.45 | F76: 2090.70 | G76: 2079.00 | H76: 2066.25 | I76: 2115.15 | J76: 2127.90 | K76: 2139.60 | L76: 2116.2 | M76: 2091.75 | N76: 4774750 | O76: 0.06%
A77: 67 | B77: Automobile | C77: EICHERMOT | D77: 30973.35 | E77: 31084.25 | F77: 30790.30 | G77: 30607.25 | H77: 30313.30 | I77: 31267.30 | J77: 31561.25 | K77: 31744.30 | L77: 31378.2 | M77: 30901.2 | N77: 228750 | O77: 0.46%
A78: 68 | B78: Infrastructure | C78: ENGINERSIN | D78: 157.15 | E78: 157.72 | F78: 155.93 | G78: 154.72 | H78: 152.93 | I78: 158.93 | J78: 160.72 | K78: 161.93 | L78: 159.5 | M78: 156.5 | N78: 9145500 | O78: 2.07%
A79: 69 | B79: Finance | C79: EQUITAS | D79: 152.05 | E79: 153.27 | F79: 149.88 | G79: 147.72 | H79: 144.33 | I79: 155.43 | J79: 158.82 | K79: 160.98 | L79: 156.65 | M79: 151.1 | N79: 19612800 | O79: 2.42%
A80: 70 | B80: Automobile | C80: ESCORTS | D80: 966.25 | E80: 971.42 | F80: 958.83 | G80: 951.42 | H80: 938.83 | I80: 978.83 | J80: 991.42 | K80: 998.83 | L80: 984 | M80: 964 | N80: 3881900 | O80: 1.64%
A81: 71 | B81: Automobile | C81: EXIDEIND | D81: 243.05 | E81: 244.08 | F81: 240.37 | G81: 237.68 | H81: 233.97 | I81: 246.77 | J81: 250.48 | K81: 253.17 | L81: 247.8 | M81: 241.4 | N81: 10104000 | O81: 3.36%
A82: 72 | B82: Banking | C82: FEDERALBNK | D82: 99.35 | E82: 100.03 | F82: 98.32 | G82: 97.28 | H82: 95.57 | I82: 101.07 | J82: 102.78 | K82: 103.82 | L82: 101.75 | M82: 99 | N82: 61924500 | O82: -0.03%
A83: 73 | B83: Oil_Gas | C83: GAIL | D83: 332.05 | E83: 331.27 | F83: 328.53 | G83: 325.02 | H83: 322.28 | I83: 334.78 | J83: 337.52 | K83: 341.03 | L83: 334 | M83: 327.75 | N83: 14209776 | O83: -1.10%
A84: 74 | B84: Pharma | C84: GLENMARK | D84: 569.05 | E84: 574.00 | F84: 561.60 | G84: 554.15 | H84: 541.75 | I84: 581.45 | J84: 593.85 | K84: 601.30 | L84: 586.4 | M84: 566.55 | N84: 5715000 | O84: 2.45%
A85: 75 | B85: Infrastructure | C85: GMRINFRA | D85: 19.75 | E85: 19.85 | F85: 19.50 | G85: 19.25 | H85: 18.90 | I85: 20.10 | J85: 20.45 | K85: 20.70 | L85: 20.2 | M85: 19.6 | N85: 294390000 | O85: -0.62%
A86: 76 | B86: Others | C86: GODFRYPHLP | D86: 879.95 | E86: 880.32 | F86: 869.63 | G86: 859.32 | H86: 848.63 | I86: 890.63 | J86: 901.32 | K86: 911.63 | L86: 891 | M86: 870 | N86: 680000 | O86: -0.87%
A87: 77 | B87: FMCG | C87: GODREJCP | D87: 1132.15 | E87: 1117.57 | F87: 1093.13 | G87: 1054.12 | H87: 1029.68 | I87: 1156.58 | J87: 1181.02 | K87: 1220.03 | L87: 1142 | M87: 1078.55 | N87: 3121600 | O87: -0.61%
A88: 78 | B88: FMCG | C88: GODREJIND | D88: 593.50 | E88: 589.45 | F88: 582.10 | G88: 570.70 | H88: 563.35 | I88: 600.85 | J88: 608.20 | K88: 619.60 | L88: 596.8 | M88: 578.05 | N88: 3138000 | O88: 5.13%
A89: 79 | B89: Pharma | C89: GRANULES | D89: 107.40 | E89: 108.02 | F89: 106.38 | G89: 105.37 | H89: 103.73 | I89: 109.03 | J89: 110.67 | K89: 111.68 | L89: 109.65 | M89: 107 | N89: 15065000 | O89: 2.00%
A90: 80 | B90: Cement | C90: GRASIM | D90: 1096.35 | E90: 1096.28 | F90: 1089.37 | G90: 1082.38 | H90: 1075.47 | I90: 1103.27 | J90: 1110.18 | K90: 1117.17 | L90: 1103.2 | M90: 1089.3 | N90: 5969250 | O90: -0.61%
A91: 81 | B91: Others | C91: GSFC | D91: 126.50 | E91: 127.22 | F91: 124.98 | G91: 123.47 | H91: 121.23 | I91: 128.73 | J91: 130.97 | K91: 132.48 | L91: 129.45 | M91: 125.7 | N91: 18562500 | O91: 0.19%
A92: 82 | B92: Others | C92: HAVELLS | D92: 548.75 | E92: 550.57 | F92: 545.43 | G92: 542.12 | H92: 536.98 | I92: 553.88 | J92: 559.02 | K92: 562.33 | L92: 555.7 | M92: 547.25 | N92: 6012000 | O92: 1.04%
A93: 83 | B93: Others | C93: HCC | D93: 24.65 | E93: 24.77 | F93: 24.33 | G93: 24.02 | H93: 23.58 | I93: 25.08 | J93: 25.52 | K93: 25.83 | L93: 25.2 | M93: 24.45 | N93: 46560000 | O93: -0.39%
A94: 84 | B94: Technology | C94: HCLTECH | D94: 1000.30 | E94: 1004.20 | F94: 991.45 | G94: 982.60 | H94: 969.85 | I94: 1013.05 | J94: 1025.80 | K94: 1034.65 | L94: 1016.95 | M94: 995.35 | N94: 10880800 | O94: 1.24%
A95: 85 | B95: Finance | C95: HDFC | D95: 1880.60 | E95: 1884.07 | F95: 1869.48 | G95: 1858.37 | H95: 1843.78 | I95: 1895.18 | J95: 1909.77 | K95: 1920.88 | L95: 1898.65 | M95: 1872.95 | N95: 18698500 | O95: -0.11%
A96: 86 | B96: Banking | C96: HDFCBANK | D96: 1935.40 | E96: 1939.70 | F96: 1928.50 | G96: 1921.60 | H96: 1910.40 | I96: 1946.60 | J96: 1957.80 | K96: 1964.70 | L96: 1950.9 | M96: 1932.8 | N96: 20385000 | O96: -0.98%
A97: 87 | B97: Realty | C97: HDIL | D97: 41.80 | E97: 41.85 | F97: 40.55 | G97: 39.30 | H97: 38.00 | I97: 43.10 | J97: 44.40 | K97: 45.65 | L97: 43.15 | M97: 40.6 | N97: 26559000 | O97: -0.67%
A98: 88 | B98: Automobile | C98: HEROMOTOCO | D98: 3751.25 | E98: 3761.78 | F98: 3734.42 | G98: 3717.58 | H98: 3690.22 | I98: 3778.62 | J98: 3805.98 | K98: 3822.82 | L98: 3789.15 | M98: 3744.95 | N98: 1562200 | O98: 4.24%
A99: 89 | B99: Technology | C99: HEXAWARE | D99: 415.90 | E99: 418.15 | F99: 410.30 | G99: 404.70 | H99: 396.85 | I99: 423.75 | J99: 431.60 | K99: 437.20 | L99: 426 | M99: 412.55 | N99: 5436000 | O99: 1.91%
A100: 90 | B100: Metals | C100: HINDALCO | D100: 243.55 | E100: 241.67 | F100: 238.53 | G100: 233.52 | H100: 230.38 | I100: 246.68 | J100: 249.82 | K100: 254.83 | L100: 244.8 | M100: 236.65 | N100: 53424000 | O100: 1.77%
A101: 91 | B101: Oil_Gas | C101: HINDPETRO | D101: 320.60 | E101: 323.58 | F101: 316.22 | G101: 311.83 | H101: 304.47 | I101: 327.97 | J101: 335.33 | K101: 339.72 | L101: 330.95 | M101: 319.2 | N101: 28483875 | O101: 3.89%
A102: 92 | B102: FMCG | C102: HINDUNILVR | D102: 1452.00 | E102: 1448.97 | F102: 1442.93 | G102: 1433.87 | H102: 1427.83 | I102: 1458.03 | J102: 1464.07 | K102: 1473.13 | L102: 1455 | M102: 1439.9 | N102: 10161600 | O102: 0.33%
A103: 93 | B103: Metals | C103: HINDZINC | D103: 324.50 | E103: 322.33 | F103: 319.17 | G103: 313.83 | H103: 310.67 | I103: 327.67 | J103: 330.83 | K103: 336.17 | L103: 325.5 | M103: 317 | N103: 11168000 | O103: 1.42%
A104: 94 | B104: Finance | C104: IBULHSGFIN | D104: 1369.80 | E104: 1371.92 | F104: 1352.83 | G104: 1335.87 | H104: 1316.78 | I104: 1388.88 | J104: 1407.97 | K104: 1424.93 | L104: 1391 | M104: 1354.95 | N104: 11640800 | O104: -3.58%
A105: 95 | B105: Banking | C105: ICICIBANK | D105: 289.65 | E105: 290.98 | F105: 287.27 | G105: 284.88 | H105: 281.17 | I105: 293.37 | J105: 297.08 | K105: 299.47 | L105: 294.7 | M105: 288.6 | N105: 82530250 | O105: -0.29%
A106: 96 | B106: Others | C106: ICICIPRULI | D106: 383.25 | E106: 385.27 | F106: 379.33 | G106: 375.42 | H106: 369.48 | I106: 389.18 | J106: 395.12 | K106: 399.03 | L106: 391.2 | M106: 381.35 | N106: 5408000 | O106: 11.95%
A107: 97 | B107: Banking | C107: IDBI | D107: 70.10 | E107: 70.63 | F107: 69.17 | G107: 68.23 | H107: 66.77 | I107: 71.57 | J107: 73.03 | K107: 73.97 | L107: 72.1 | M107: 69.7 | N107: 53520000 | O107: 1.34%
A108: 98 | B108: Telecom | C108: IDEA | D108: 71.70 | E108: 71.93 | F108: 71.12 | G108: 70.53 | H108: 69.72 | I108: 72.52 | J108: 73.33 | K108: 73.92 | L108: 72.75 | M108: 71.35 | N108: 130165000 | O108: 0.97%
A109: 99 | B109: Finance | C109: IDFC | D109: 53.20 | E109: 53.37 | F109: 52.53 | G109: 51.87 | H109: 51.03 | I109: 54.03 | J109: 54.87 | K109: 55.53 | L109: 54.2 | M109: 52.7 | N109: 158109600 | O109: 0.90%
A110: 100 | B110: Banking | C110: IDFCBANK | D110: 49.50 | E110: 49.60 | F110: 49.05 | G110: 48.60 | H110: 48.05 | I110: 50.05 | J110: 50.60 | K110: 51.05 | L110: 50.15 | M110: 49.15 | N110: 191070000 | O110: 1.13%
A111: 101 | B111: Finance | C111: IFCI | D111: 20.85 | E111: 20.90 | F111: 20.60 | G111: 20.35 | H111: 20.05 | I111: 21.15 | J111: 21.45 | K111: 21.70 | L111: 21.2 | M111: 20.65 | N111: 77066000 | O111: -0.06%
A112: 102 | B112: Oil_Gas | C112: IGL | D112: 293.30 | E112: 292.93 | F112: 291.07 | G112: 288.83 | H112: 286.97 | I112: 295.17 | J112: 297.03 | K112: 299.27 | L112: 294.8 | M112: 290.7 | N112: 4829000 | O112: -3.25%
A113: 103 | B113: Cement | C113: INDIACEM | D113: 149.75 | E113: 151.08 | F113: 147.92 | G113: 146.08 | H113: 142.92 | I113: 152.92 | J113: 156.08 | K113: 157.92 | L113: 154.25 | M113: 149.25 | N113: 26729500 | O113: 0.99%
A114: 104 | B114: Banking | C114: INDIANB | D114: 307.50 | E114: 312.55 | F114: 301.30 | G114: 295.10 | H114: 283.85 | I114: 318.75 | J114: 330.00 | K114: 336.20 | L114: 323.8 | M114: 306.35 | N114: 3586000 | O114: 8.21%
A115: 105 | B115: Others | C115: INDIGO | D115: 1471.55 | E115: 1476.40 | F115: 1459.90 | G115: 1448.25 | H115: 1431.75 | I115: 1488.05 | J115: 1504.55 | K115: 1516.20 | L115: 1492.9 | M115: 1464.75 | N115: 3657600 | O115: -2.56%
A116: 106 | B116: Banking | C116: INDUSINDBK | D116: 1841.70 | E116: 1849.38 | F116: 1827.82 | G116: 1813.93 | H116: 1792.37 | I116: 1863.27 | J116: 1884.83 | K116: 1898.72 | L116: 1870.95 | M116: 1835.5 | N116: 6870900 | O116: -0.44%
A117: 107 | B117: Technology | C117: INFIBEAM | D117: 170.30 | E117: 170.77 | F117: 169.08 | G117: 167.87 | H117: 166.18 | I117: 171.98 | J117: 173.67 | K117: 174.88 | L117: 172.45 | M117: 169.55 | N117: 37440000 | O117: -2.05%
A118: 108 | B118: Telecom | C118: INFRATEL | D118: 336.60 | E118: 336.07 | F118: 333.63 | G118: 330.67 | H118: 328.23 | I118: 339.03 | J118: 341.47 | K118: 344.43 | L118: 338.5 | M118: 333.1 | N118: 7663600 | O118: -0.62%
A119: 109 | B119: Technology | C119: INFY | D119: 1123.05 | E119: 1122.05 | F119: 1112.35 | G119: 1101.65 | H119: 1091.95 | I119: 1132.75 | J119: 1142.45 | K119: 1153.15 | L119: 1131.75 | M119: 1111.35 | N119: 41746800 | O119: 2.18%
A120: 110 | B120: Oil_Gas | C120: IOC | D120: 165.65 | E120: 166.23 | F120: 164.57 | G120: 163.48 | H120: 161.82 | I120: 167.32 | J120: 168.98 | K120: 170.07 | L120: 167.9 | M120: 165.15 | N120: 46017000 | O120: -1.78%
A121: 111 | B121: Infrastructure | C121: IRB | D121: 257.60 | E121: 260.78 | F121: 252.82 | G121: 248.03 | H121: 240.07 | I121: 265.57 | J121: 273.53 | K121: 278.32 | L121: 268.75 | M121: 256 | N121: 17095000 | O121: -1.75%
A122: 112 | B122: FMCG | C122: ITC | D122: 275.65 | E122: 274.23 | F122: 269.67 | G122: 263.68 | H122: 259.12 | I122: 280.22 | J122: 284.78 | K122: 290.77 | L122: 278.8 | M122: 268.25 | N122: 96261600 | O122: 0.50%
A123: 113 | B123: Others | C123: JETAIRWAYS | D123: 618.05 | E123: 626.70 | F123: 606.90 | G123: 595.75 | H123: 575.95 | I123: 637.85 | J123: 657.65 | K123: 668.80 | L123: 646.5 | M123: 615.55 | N123: 7804800 | O123: 1.01%
A124: 114 | B124: Metals | C124: JINDALSTEL | D124: 250.70 | E124: 251.90 | F124: 247.85 | G124: 245.00 | H124: 240.95 | I124: 254.75 | J124: 258.80 | K124: 261.65 | L124: 255.95 | M124: 249.05 | N124: 34164000 | O124: 0.21%
A125: 115 | B125: Others | C125: JISLJALEQS | D125: 114.85 | E125: 115.43 | F125: 113.82 | G125: 112.78 | H125: 111.17 | I125: 116.47 | J125: 118.08 | K125: 119.12 | L125: 117.05 | M125: 114.4 | N125: 42507000 | O125: -0.90%
A126: 116 | B126: Realty | C126: JPASSOCIAT | D126: 21.00 | E126: 20.62 | F126: 19.93 | G126: 18.87 | H126: 18.18 | I126: 21.68 | J126: 22.37 | K126: 23.43 | L126: 21.3 | M126: 19.55 | N126: 208794000 | O126: -2.32%
A127: 117 | B127: Metals | C127: JSWSTEEL | D127: 310.75 | E127: 310.77 | F127: 308.53 | G127: 306.32 | H127: 304.08 | I127: 312.98 | J127: 315.22 | K127: 317.43 | L127: 313 | M127: 308.55 | N127: 68208000 | O127: -0.14%
A128: 118 | B128: Others | C128: JUBLFOOD | D128: 2494.40 | E128: 2505.47 | F128: 2472.98 | G128: 2451.57 | H128: 2419.08 | I128: 2526.88 | J128: 2559.37 | K128: 2580.78 | L128: 2537.95 | M128: 2484.05 | N128: 2236000 | O128: -2.99%
A129: 119 | B129: Others | C129: JUSTDIAL | D129: 450.40 | E129: 452.37 | F129: 444.98 | G129: 439.57 | H129: 432.18 | I129: 457.78 | J129: 465.17 | K129: 470.58 | L129: 459.75 | M129: 446.95 | N129: 4855200 | O129: 3.37%
A130: 120 | B130: Others | C130: KAJARIACER | D130: 567.85 | E130: 569.08 | F130: 564.42 | G130: 560.98 | H130: 556.32 | I130: 572.52 | J130: 577.18 | K130: 580.62 | L130: 573.75 | M130: 565.65 | N130: 1513600 | O130: 0.58%
A131: 121 | B131: Banking | C131: KOTAKBANK | D131: 1155.60 | E131: 1159.00 | F131: 1149.60 | G131: 1143.60 | H131: 1134.20 | I131: 1165.00 | J131: 1174.40 | K131: 1180.40 | L131: 1168.4 | M131: 1153 | N131: 13048000 | O131: -2.11%
A132: 122 | B132: Technology | C132: KPIT | D132: 232.10 | E132: 231.67 | F132: 229.48 | G132: 226.87 | H132: 224.68 | I132: 234.28 | J132: 236.47 | K132: 239.08 | L132: 233.85 | M132: 229.05 | N132: 9855000 | O132: -2.01%
A133: 123 | B133: Others | C133: KSCL | D133: 532.30 | E133: 535.83 | F133: 525.97 | G133: 519.63 | H133: 509.77 | I133: 542.17 | J133: 552.03 | K133: 558.37 | L133: 545.7 | M133: 529.5 | N133: 2503500 | O133: 1.52%
A134: 124 | B134: Banking | C134: KTKBANK | D134: 122.45 | E134: 123.38 | F134: 121.07 | G134: 119.68 | H134: 117.37 | I134: 124.77 | J134: 127.08 | K134: 128.47 | L134: 125.7 | M134: 122 | N134: 26197200 | O134: -0.81%
A135: 125 | B135: Finance | C135: L&TFH | D135: 171.95 | E135: 172.87 | F135: 170.08 | G135: 168.22 | H135: 165.43 | I135: 174.73 | J135: 177.52 | K135: 179.38 | L135: 175.65 | M135: 171 | N135: 36342000 | O135: -0.04%
A136: 126 | B136: Finance | C136: LICHSGFIN | D136: 559.35 | E136: 560.77 | F136: 556.13 | G136: 552.92 | H136: 548.28 | I136: 563.98 | J136: 568.62 | K136: 571.83 | L136: 565.4 | M136: 557.55 | N136: 12050500 | O136: -0.15%
A137: 127 | B137: Capital_Goods | C137: LT | D137: 1358.25 | E137: 1360.28 | F137: 1350.77 | G137: 1343.28 | H137: 1333.77 | I137: 1367.77 | J137: 1377.28 | K137: 1384.77 | L137: 1369.8 | M137: 1352.8 | N137: 14505000 | O137: 3.05%
A138: 128 | B138: Pharma | C138: LUPIN | D138: 791.40 | E138: 798.02 | F138: 783.03 | G138: 774.67 | H138: 759.68 | I138: 806.38 | J138: 821.37 | K138: 829.73 | L138: 813 | M138: 789.65 | N138: 13791000 | O138: -0.43%
A139: 129 | B139: Automobile | C139: M&M | D139: 800.95 | E139: 804.30 | F139: 795.15 | G139: 789.35 | H139: 780.20 | I139: 810.10 | J139: 819.25 | K139: 825.05 | L139: 813.45 | M139: 798.5 | N139: 15483000 | O139: 0.95%
A140: 130 | B140: Finance | C140: M&MFIN | D140: 508.35 | E140: 509.37 | F140: 503.98 | G140: 499.62 | H140: 494.23 | I140: 513.73 | J140: 519.12 | K140: 523.48 | L140: 514.75 | M140: 505 | N140: 7822500 | O140: -0.40%
A141: 131 | B141: Others | C141: MANAPPURAM | D141: 120.25 | E141: 120.78 | F141: 119.32 | G141: 118.38 | H141: 116.92 | I141: 121.72 | J141: 123.18 | K141: 124.12 | L141: 122.25 | M141: 119.85 | N141: 19416000 | O141: 0.47%
A142: 132 | B142: FMCG | C142: MARICO | D142: 320.05 | E142: 321.00 | F142: 317.55 | G142: 315.05 | H142: 311.60 | I142: 323.50 | J142: 326.95 | K142: 329.45 | L142: 324.45 | M142: 318.5 | N142: 7423000 | O142: 2.85%
A143: 133 | B143: Automobile | C143: MARUTI | D143: 9136.90 | E143: 9163.12 | F143: 9086.23 | G143: 9035.57 | H143: 8958.68 | I143: 9213.78 | J143: 9290.67 | K143: 9341.33 | L143: 9240 | M143: 9112.45 | N143: 2565975 | O143: -0.96%
A144: 134 | B144: FMCG | C144: MCDOWELL-N | D144: 3428.90 | E144: 3450.47 | F144: 3391.08 | G144: 3353.27 | H144: 3293.88 | I144: 3488.28 | J144: 3547.67 | K144: 3585.48 | L144: 3509.85 | M144: 3412.65 | N144: 2208000 | O144: -2.31%
A145: 135 | B145: Others | C145: MCX | D145: 753.65 | E145: 758.68 | F145: 742.37 | G145: 731.08 | H145: 714.77 | I145: 769.97 | J145: 786.28 | K145: 797.57 | L145: 775 | M145: 747.4 | N145: 3613000 | O145: 3.32%
A146: 136 | B146: Finance | C146: MFSL | D146: 436.80 | E146: 435.17 | F146: 430.03 | G146: 423.27 | H146: 418.13 | I146: 441.93 | J146: 447.07 | K146: 453.83 | L146: 440.3 | M146: 428.4 | N146: 3373000 | O146: -2.09%
A147: 137 | B147: Others | C147: MGL | D147: 897.45 | E147: 898.22 | F147: 892.43 | G147: 887.42 | H147: 881.63 | I147: 903.23 | J147: 909.02 | K147: 914.03 | L147: 904 | M147: 893.2 | N147: 4364400 | O147: -2.36%
A148: 138 | B148: Technology | C148: MINDTREE | D148: 865.60 | E148: 871.98 | F148: 854.47 | G148: 843.33 | H148: 825.82 | I148: 883.12 | J148: 900.63 | K148: 911.77 | L148: 889.5 | M148: 860.85 | N148: 3235200 | O148: 1.74%
A149: 139 | B149: Automobile | C149: MOTHERSUMI | D149: 342.40 | E149: 343.03 | F149: 340.17 | G149: 337.93 | H149: 335.07 | I149: 345.27 | J149: 348.13 | K149: 350.37 | L149: 345.9 | M149: 340.8 | N149: 13924800 | O149: -0.67%
A150: 140 | B150: Automobile | C150: MRF | D150: 79209.10 | E150: 79402.68 | F150: 78806.42 | G150: 78403.73 | H150: 77807.47 | I150: 79805.37 | J150: 80401.63 | K150: 80804.32 | L150: 79998.95 | M150: 79000 | N150: 41265 | O150: -3.68%
A151: 141 | B151: Others | C151: MRPL | D151: 107.25 | E151: 107.73 | F151: 105.57 | G151: 103.88 | H151: 101.72 | I151: 109.42 | J151: 111.58 | K151: 113.27 | L151: 109.9 | M151: 106.05 | N151: 6313500 | O151: 3.47%
A152: 142 | B152: Finance | C152: MUTHOOTFIN | D152: 430.30 | E152: 435.33 | F152: 423.17 | G152: 416.03 | H152: 403.87 | I152: 442.47 | J152: 454.63 | K152: 461.77 | L152: 447.5 | M152: 428.2 | N152: 2101500 | O152: 3.93%
A153: 143 | B153: Others | C153: NATIONALUM | D153: 80.35 | E153: 79.97 | F153: 79.13 | G153: 77.92 | H153: 77.08 | I153: 81.18 | J153: 82.02 | K153: 83.23 | L153: 80.8 | M153: 78.75 | N153: 45432000 | O153: -4.65%
A154: 144 | B154: Others | C154: NBCC | D154: 211.45 | E154: 212.67 | F154: 208.93 | G154: 206.42 | H154: 202.68 | I154: 215.18 | J154: 218.92 | K154: 221.43 | L154: 216.4 | M154: 210.15 | N154: 10752000 | O154: 5.82%
A155: 145 | B155: Infrastructure | C155: NCC | D155: 132.65 | E155: 133.40 | F155: 130.45 | G155: 128.25 | H155: 125.30 | I155: 135.60 | J155: 138.55 | K155: 140.75 | L155: 136.35 | M155: 131.2 | N155: 26192000 | O155: -6.54%
A156: 146 | B156: Others | C156: NESTLEIND | D156: 8999.70 | E156: 9036.57 | F156: 8948.33 | G156: 8896.97 | H156: 8808.73 | I156: 9087.93 | J156: 9176.17 | K156: 9227.53 | L156: 9124.8 | M156: 8985.2 | N156: 295600 | O156: 1.16%
A157: 147 | B157: Power | C157: NHPC | D157: 27.40 | E157: 27.47 | F157: 27.18 | G157: 26.97 | H157: 26.68 | I157: 27.68 | J157: 27.97 | K157: 28.18 | L157: 27.75 | M157: 27.25 | N157: 39366000 | O157: 2.68%
A158: 148 | B158: Technology | C158: NIITTECH | D158: 927.70 | E158: 933.53 | F158: 919.37 | G158: 911.03 | H158: 896.87 | I158: 941.87 | J158: 956.03 | K158: 964.37 | L158: 947.7 | M158: 925.2 | N158: 2058000 | O158: -7.05%
A159: 149 | B159: Metals | C159: NMDC | D159: 122.90 | E159: 123.42 | F159: 121.63 | G159: 120.37 | H159: 118.58 | I159: 124.68 | J159: 126.47 | K159: 127.73 | L159: 125.2 | M159: 122.15 | N159: 31038000 | O159: -0.60%
A160: 150 | B160: Power | C160: NTPC | D160: 178.30 | E160: 177.93 | F160: 176.47 | G160: 174.63 | H160: 173.17 | I160: 179.77 | J160: 181.23 | K160: 183.07 | L160: 179.4 | M160: 176.1 | N160: 39220000 | O160: 2.78%
A161: 151 | B161: Technology | C161: OFSS | D161: 4122.15 | E161: 4126.82 | F161: 4083.63 | G161: 4045.12 | H161: 4001.93 | I161: 4165.33 | J161: 4208.52 | K161: 4247.03 | L161: 4170 | M161: 4088.3 | N161: 72300 | O161: -1.03%
A162: 152 | B162: Oil_Gas | C162: OIL | D162: 217.90 | E162: 217.93 | F162: 216.97 | G162: 216.03 | H162: 215.07 | I162: 218.87 | J162: 219.83 | K162: 220.77 | L162: 218.9 | M162: 217 | N162: 3548556 | O162: -1.60%
A163: 153 | B163: Oil_Gas | C163: ONGC | D163: 182.35 | E163: 182.15 | F163: 181.35 | G163: 180.35 | H163: 179.55 | I163: 183.15 | J163: 183.95 | K163: 184.95 | L163: 182.95 | M163: 181.15 | N163: 35932500 | O163: -2.89%
A164: 154 | B164: Banking | C164: ORIENTBANK | D164: 94.75 | E164: 95.37 | F164: 93.43 | G164: 92.12 | H164: 90.18 | I164: 96.68 | J164: 98.62 | K164: 99.93 | L164: 97.3 | M164: 94.05 | N164: 15894000 | O164: 4.70%
A165: 155 | B165: Textile | C165: PAGEIND | D165: 24859.70 | E165: 24936.38 | F165: 24723.32 | G165: 24586.93 | H165: 24373.87 | I165: 25072.77 | J165: 25285.83 | K165: 25422.22 | L165: 25149.45 | M165: 24800 | N165: 47250 | O165: 2.49%
A166: 156 | B166: Others | C166: PCJEWELLER | D166: 294.40 | E166: 298.48 | F166: 287.17 | G166: 279.93 | H166: 268.62 | I166: 305.72 | J166: 317.03 | K166: 324.27 | L166: 309.8 | M166: 291.25 | N166: 10486500 | O166: -0.09%
A167: 157 | B167: Pharma | C167: PEL | D167: 2584.95 | E167: 2589.55 | F167: 2569.40 | G167: 2553.85 | H167: 2533.70 | I167: 2605.10 | J167: 2625.25 | K167: 2640.80 | L167: 2609.7 | M167: 2574 | N167: 1836462 | O167: -0.11%
A168: 158 | B168: Oil_Gas | C168: PETRONET | D168: 239.10 | E168: 240.80 | F168: 236.50 | G168: 233.90 | H168: 229.60 | I168: 243.40 | J168: 247.70 | K168: 250.30 | L168: 245.1 | M168: 238.2 | N168: 16947000 | O168: 1.67%
A169: 159 | B169: Finance | C169: PFC | D169: 86.60 | E169: 87.02 | F169: 86.03 | G169: 85.47 | H169: 84.48 | I169: 87.58 | J169: 88.57 | K169: 89.13 | L169: 88 | M169: 86.45 | N169: 75828000 | O169: 1.70%
A170: 160 | B170: FMCG | C170: PIDILITIND | D170: 1047.40 | E170: 1044.05 | F170: 1037.10 | G170: 1026.80 | H170: 1019.85 | I170: 1054.35 | J170: 1061.30 | K170: 1071.60 | L170: 1051 | M170: 1033.75 | N170: 1950000 | O170: 1.67%
A171: 161 | B171: Banking | C171: PNB | D171: 97.20 | E171: 97.83 | F171: 96.37 | G171: 95.53 | H171: 94.07 | I171: 98.67 | J171: 100.13 | K171: 100.97 | L171: 99.3 | M171: 97 | N171: 71224000 | O171: 0.80%
A172: 162 | B172: Power | C172: POWERGRID | D172: 205.25 | E172: 205.35 | F172: 204.70 | G172: 204.15 | H172: 203.50 | I172: 205.90 | J172: 206.55 | K172: 207.10 | L172: 206 | M172: 204.8 | N172: 34036000 | O172: 0.31%
A173: 163 | B173: Power | C173: PTC | D173: 93.90 | E173: 94.28 | F173: 93.27 | G173: 92.63 | H173: 91.62 | I173: 94.92 | J173: 95.93 | K173: 96.57 | L173: 95.3 | M173: 93.65 | N173: 22320000 | O173: -1.03%
A174: 164 | B174: Others | C174: PVR | D174: 1328.20 | E174: 1332.38 | F174: 1318.82 | G174: 1309.43 | H174: 1295.87 | I174: 1341.77 | J174: 1355.33 | K174: 1364.72 | L174: 1345.95 | M174: 1323 | N174: 820000 | O174: 0.59%
A175: 165 | B175: Cement | C175: RAMCOCEM | D175: 826.00 | E175: 828.62 | F175: 820.23 | G175: 814.47 | H175: 806.08 | I175: 834.38 | J175: 842.77 | K175: 848.53 | L175: 837 | M175: 822.85 | N175: 1371200 | O175: -0.29%
A176: 166 | B176: Others | C176: RAYMOND | D176: 1044.00 | E176: 1047.63 | F176: 1035.22 | G176: 1026.43 | H176: 1014.02 | I176: 1056.42 | J176: 1068.83 | K176: 1077.62 | L176: 1060.05 | M176: 1038.85 | N176: 5103200 | O176: -1.80%
A177: 167 | B177: Banking | C177: RBLBANK | D177: 510.85 | E177: 511.30 | F177: 506.90 | G177: 502.95 | H177: 498.55 | I177: 515.25 | J177: 519.65 | K177: 523.60 | L177: 515.7 | M177: 507.35 | N177: 4309000 | O177: -0.60%
A178: 168 | B178: Telecom | C178: RCOM | D178: 21.15 | E178: 21.20 | F178: 20.95 | G178: 20.75 | H178: 20.50 | I178: 21.40 | J178: 21.65 | K178: 21.85 | L178: 21.45 | M178: 21 | N178: 127596000 | O178: -2.71%
A179: 169 | B179: Capital_Goods | C179: RNAVAL | D179: 29.15 | E179: 29.25 | F179: 28.85 | G179: 28.55 | H179: 28.15 | I179: 29.55 | J179: 29.95 | K179: 30.25 | L179: 29.65 | M179: 28.95 | N179: 42174000 | O179: 2.34%
A180: 170 | B180: Power | C180: RECLTD | D180: 128.30 | E180: 128.58 | F180: 127.27 | G180: 126.23 | H180: 124.92 | I180: 129.62 | J180: 130.93 | K180: 131.97 | L180: 129.9 | M180: 127.55 | N180: 36912000 | O180: 1.58%
A181: 171 | B181: Finance | C181: RELCAPITAL | D181: 436.05 | E181: 439.48 | F181: 431.22 | G181: 426.38 | H181: 418.12 | I181: 444.32 | J181: 452.58 | K181: 457.42 | L181: 447.75 | M181: 434.65 | N181: 12700500 | O181: 0.90%
A182: 172 | B182: Oil_Gas | C182: RELIANCE | D182: 938.95 | E182: 940.98 | F182: 933.57 | G182: 928.18 | H182: 920.77 | I182: 946.37 | J182: 953.78 | K182: 959.17 | L182: 948.4 | M182: 935.6 | N182: 54001000 | O182: 1.31%
A183: 173 | B183: Power | C183: RELINFRA | D183: 459.80 | E183: 460.70 | F183: 455.60 | G183: 451.40 | H183: 446.30 | I183: 464.90 | J183: 470.00 | K183: 474.20 | L183: 465.8 | M183: 456.5 | N183: 10042500 | O183: -0.29%
A184: 174 | B184: Others | C184: REPCOHOME | D184: 608.00 | E184: 612.62 | F184: 601.23 | G184: 594.47 | H184: 583.08 | I184: 619.38 | J184: 630.77 | K184: 637.53 | L184: 624 | M184: 605.85 | N184: 827100 | O184: -1.55%
A185: 175 | B185: Power | C185: RPOWER | D185: 39.70 | E185: 39.88 | F185: 39.37 | G185: 39.03 | H185: 38.52 | I185: 40.22 | J185: 40.73 | K185: 41.07 | L185: 40.4 | M185: 39.55 | N185: 69030000 | O185: 3.07%
A186: 176 | B186: Metals | C186: SAIL | D186: 77.45 | E186: 77.30 | F186: 76.55 | G186: 75.65 | H186: 74.90 | I186: 78.20 | J186: 78.95 | K186: 79.85 | L186: 78.05 | M186: 76.4 | N186: 93132000 | O186: -1.03%
A187: 177 | B187: Banking | C187: SBIN | D187: 246.90 | E187: 247.77 | F187: 244.88 | G187: 242.87 | H187: 239.98 | I187: 249.78 | J187: 252.67 | K187: 254.68 | L187: 250.65 | M187: 245.75 | N187: 85398000 | O187: 1.46%
A188: 178 | B188: Cement | C188: SHREECEM | D188: 17069.35 | E188: 17083.35 | F188: 17002.20 | G188: 16935.05 | H188: 16853.90 | I188: 17150.50 | J188: 17231.65 | K188: 17298.80 | L188: 17164.5 | M188: 17016.2 | N188: 66200 | O188: 0.00%
A189: 179 | B189: Capital_Goods | C189: SIEMENS | D189: 1083.55 | E189: 1085.62 | F189: 1078.23 | G189: 1072.92 | H189: 1065.53 | I189: 1090.93 | J189: 1098.32 | K189: 1103.63 | L189: 1093 | M189: 1080.3 | N189: 1248000 | O189: 2.46%
A190: 180 | B190: Banking | C190: SOUTHBANK | D190: 26.20 | E190: 26.40 | F190: 25.85 | G190: 25.50 | H190: 24.95 | I190: 26.75 | J190: 27.30 | K190: 27.65 | L190: 26.95 | M190: 26.05 | N190: 163186284 | O190: 0.41%
A191: 181 | B191: Others | C191: SREINFRA | D191: 85.30 | E191: 86.18 | F191: 84.22 | G191: 83.13 | H191: 81.17 | I191: 87.27 | J191: 89.23 | K191: 90.32 | L191: 88.15 | M191: 85.1 | N191: 15035000 | O191: 1.25%
A192: 182 | B192: Textile | C192: SRF | D192: 2163.25 | E192: 2163.75 | F192: 2151.50 | G192: 2139.75 | H192: 2127.50 | I192: 2175.50 | J192: 2187.75 | K192: 2199.50 | L192: 2176 | M192: 2152 | N192: 459000 | O192: -1.50%
A193: 183 | B193: Finance | C193: SRTRANSFIN | D193: 1574.20 | E193: 1574.33 | F193: 1559.97 | G193: 1545.73 | H193: 1531.37 | I193: 1588.57 | J193: 1602.93 | K193: 1617.17 | L193: 1588.7 | M193: 1560.1 | N193: 3126600 | O193: -3.03%
A194: 184 | B194: Pharma | C194: STAR | D194: 643.80 | E194: 646.83 | F194: 638.72 | G194: 633.63 | H194: 625.52 | I194: 651.92 | J194: 660.03 | K194: 665.12 | L194: 654.95 | M194: 641.75 | N194: 1804200 | O194: 1.86%
A195: 185 | B195: Pharma | C195: SUNPHARMA | D195: 513.50 | E195: 514.92 | F195: 510.63 | G195: 507.77 | H195: 503.48 | I195: 517.78 | J195: 522.07 | K195: 524.93 | L195: 519.2 | M195: 512.05 | N195: 58440800 | O195: 1.12%
A196: 186 | B196: Media | C196: SUNTV | D196: 900.30 | E196: 895.15 | F196: 883.70 | G196: 867.10 | H196: 855.65 | I196: 911.75 | J196: 923.20 | K196: 939.80 | L196: 906.6 | M196: 878.55 | N196: 5652000 | O196: -0.60%
A197: 187 | B197: Power | C197: SUZLON | D197: 11.90 | E197: 11.85 | F197: 11.75 | G197: 11.60 | H197: 11.50 | I197: 12.00 | J197: 12.10 | K197: 12.25 | L197: 11.95 | M197: 11.7 | N197: 348915000 | O197: -0.73%
A198: 188 | B198: Banking | C198: SYNDIBANK | D198: 57.55 | E198: 57.83 | F198: 56.92 | G198: 56.28 | H198: 55.37 | I198: 58.47 | J198: 59.38 | K198: 60.02 | L198: 58.75 | M198: 57.2 | N198: 35397000 | O198: 1.42%
A199: 189 | B199: Fertilisers | C199: TATACHEM | D199: 735.15 | E199: 737.98 | F199: 728.27 | G199: 721.38 | H199: 711.67 | I199: 744.87 | J199: 754.58 | K199: 761.47 | L199: 747.7 | M199: 731.1 | N199: 6015000 | O199: -1.35%
A200: 190 | B200: Telecom | C200: TATACOMM | D200: 621.05 | E200: 623.28 | F200: 617.27 | G200: 613.48 | H200: 607.47 | I200: 627.07 | J200: 633.08 | K200: 636.87 | L200: 629.3 | M200: 619.5 | N200: 6353600 | O200: 1.26%
A201: 191 | B201: Technology | C201: TATAELXSI | D201: 1066.85 | E201: 1069.18 | F201: 1057.97 | G201: 1049.08 | H201: 1037.87 | I201: 1078.07 | J201: 1089.28 | K201: 1098.17 | L201: 1080.4 | M201: 1060.3 | N201: 1713600 | O201: -2.37%
A202: 192 | B202: FMCG | C202: TATAGLOBAL | D202: 284.50 | E202: 283.98 | F202: 280.32 | G202: 276.13 | H202: 272.47 | I202: 288.17 | J202: 291.83 | K202: 296.02 | L202: 287.65 | M202: 279.8 | N202: 28291500 | O202: 1.42%
A203: 193 | B203: Automobile | C203: TATAMOTORS | D203: 336.00 | E203: 337.03 | F203: 333.67 | G203: 331.33 | H203: 327.97 | I203: 339.37 | J203: 342.73 | K203: 345.07 | L203: 340.4 | M203: 334.7 | N203: 75742500 | O203: -0.71%
A204: 194 | B204: Automobile | C204: TATAMTRDVR | D204: 190.85 | E204: 191.58 | F204: 189.32 | G204: 187.78 | H204: 185.52 | I204: 193.12 | J204: 195.38 | K204: 196.92 | L204: 193.85 | M204: 190.05 | N204: 26650000 | O204: 1.52%
A205: 195 | B205: Power | C205: TATAPOWER | D205: 87.70 | E205: 87.77 | F205: 87.18 | G205: 86.67 | H205: 86.08 | I205: 88.28 | J205: 88.87 | K205: 89.38 | L205: 88.35 | M205: 87.25 | N205: 49896000 | O205: -0.31%
A206: 196 | B206: Metals | C206: TATASTEEL | D206: 602.90 | E206: 601.20 | F206: 596.70 | G206: 590.50 | H206: 586.00 | I206: 607.40 | J206: 611.90 | K206: 618.10 | L206: 605.7 | M206: 595 | N206: 21078887 | O206: -0.10%
... 36 more rows

Sheet Cash Intra
M5: Back to Main Page
A6: FOR INTRA DAY TRADING | K6: =Main!B10 -> 2018-04-19
A8: Sr.no | B8: Scrip | C8: CLOSE RATE | D8: Pivot Point | E8: Supports | H8: Resistances
C9: Point | E9: S1 | F9: S2 | G9: S3 | H9: R1 | I9: R2 | J9: R3 | K9: HIGH | L9: LOW | M9: Total Trade Quanity in Lakhs
A10: 1 | B10: Nifty 50 | C10: 10526.2 | D10: 10543.37 | E10: 10492.53 | F10: 10458.87 | G10: 10408.03 | H10: 10577.03 | I10: 10627.87 | J10: 10661.53 | K10: 10594.2 | L10: 10509.7
A11: 2 | B11: Nifty Bank | C11: 25102.3 | D11: 25195.93 | E11: 24965.12 | F11: 24827.93 | G11: 24597.12 | H11: 25333.12 | I11: 25563.93 | J11: 25701.12 | K11: 25426.75 | L11: 25058.75
A12: 3 | B12: Nifty CPSE | C12: 2423.8 | D12: 2426.48 | E12: 2417.27 | F12: 2410.73 | G12: 2401.52 | H12: 2433.02 | I12: 2442.23 | J12: 2448.77 | K12: 2435.7 | L12: 2419.95
A13: 4 | B13: Nifty Infra | C13: 3464 | D13: 3465.48 | E13: 3454.52 | F13: 3445.03 | G13: 3434.07 | H13: 3474.97 | I13: 3485.93 | J13: 3495.42 | K13: 3476.45 | L13: 3456
A14: 5 | B14: Nifty IT | C14: 13124 | D14: 13149.58 | E14: 13080.72 | F14: 13037.43 | G14: 12968.57 | H14: 13192.87 | I14: 13261.73 | J14: 13305.02 | K14: 13218.45 | L14: 13106.3
A15: 6 | B15: Nifty PSE | C15: 3898.2 | D15: 3901.92 | E15: 3887.73 | F15: 3877.27 | G15: 3863.08 | H15: 3912.38 | I15: 3926.57 | J15: 3937.03 | K15: 3916.1 | L15: 3891.45
A16: 7 | B16: Nifty Midcap 50 | C16: 5361.95 | D16: 5369.70 | E16: 5338.00 | F16: 5314.05 | G16: 5282.35 | H16: 5393.65 | I16: 5425.35 | J16: 5449.30 | K16: 5401.4 | L16: 5345.75
A17: 8 | B17: ABB | C17: 1255.65 | D17: 1261.20 | E17: 1248.45 | F17: 1241.25 | G17: 1228.50 | H17: 1268.40 | I17: 1281.15 | J17: 1288.35 | K17: 1273.95 | L17: 1254 | M17: 0.2694
A18: 9 | B18: ACC | C18: 1573.5 | D18: 1579.38 | E18: 1556.07 | F18: 1538.63 | G18: 1515.32 | H18: 1596.82 | I18: 1620.13 | J18: 1637.57 | K18: 1602.7 | L18: 1561.95 | M18: 4.89407
A19: 10 | B19: AIAENG | C19: 1413.55 | D19: 1410.85 | E19: 1391.70 | F19: 1369.85 | G19: 1350.70 | H19: 1432.70 | I19: 1451.85 | J19: 1473.70 | K19: 1430 | L19: 1389 | M19: 0.48552
A20: 11 | B20: AUBANK | C20: 657.7 | D20: 659.20 | E20: 650.95 | F20: 644.20 | G20: 635.95 | H20: 665.95 | I20: 674.20 | J20: 680.95 | K20: 667.45 | L20: 652.45 | M20: 1.55593
A21: 12 | B21: ADANIENT | C21: 136.75 | D21: 137.82 | E21: 134.63 | F21: 132.52 | G21: 129.33 | H21: 139.93 | I21: 143.12 | J21: 145.23 | K21: 141 | L21: 135.7 | M21: 32.9772
A22: 13 | B22: ADANIPORTS | C22: 384.95 | D22: 384.28 | E22: 380.87 | F22: 376.78 | G22: 373.37 | H22: 388.37 | I22: 391.78 | J22: 395.87 | K22: 387.7 | L22: 380.2 | M22: 25.68988
A23: 14 | B23: ADANIPOWER | C23: 25.8 | D23: 25.83 | E23: 25.47 | F23: 25.13 | G23: 24.77 | H23: 26.17 | I23: 26.53 | J23: 26.87 | K23: 26.2 | L23: 25.5 | M23: 295.55267
A24: 15 | B24: ABFRL | C24: 147.1 | D24: 148.22 | E24: 145.43 | F24: 143.77 | G24: 140.98 | H24: 149.88 | I24: 152.67 | J24: 154.33 | K24: 151 | L24: 146.55 | M24: 3.24944
A25: 16 | B25: AJANTPHARM | C25: 1378.7 | D25: 1379.12 | E25: 1370.73 | F25: 1362.77 | G25: 1354.38 | H25: 1387.08 | I25: 1395.47 | J25: 1403.43 | K25: 1387.5 | L25: 1371.15 | M25: 0.47383
A26: 17 | B26: ALKEM | C26: 1779.25 | D26: 1771.43 | E26: 1742.87 | F26: 1706.48 | G26: 1677.92 | H26: 1807.82 | I26: 1836.38 | J26: 1872.77 | K26: 1800 | L26: 1735.05 | M26: 0.33063
A27: 18 | B27: AMARAJABAT | C27: 848.85 | D27: 839.37 | E27: 824.88 | F27: 800.92 | G27: 786.43 | H27: 863.33 | I27: 877.82 | J27: 901.78 | K27: 853.85 | L27: 815.4 | M27: 11.9583
A28: 19 | B28: AMBUJACEM | C28: 244.9 | D28: 244.87 | E28: 242.78 | F28: 240.67 | G28: 238.58 | H28: 246.98 | I28: 249.07 | J28: 251.18 | K28: 246.95 | L28: 242.75 | M28: 16.93395
A29: 20 | B29: APOLLOHOSP | C29: 1076.1 | D29: 1079.37 | E29: 1067.73 | F29: 1059.37 | G29: 1047.73 | H29: 1087.73 | I29: 1099.37 | J29: 1107.73 | K29: 1091 | L29: 1071 | M29: 1.54437
A30: 21 | B30: APOLLOTYRE | C30: 289.45 | D30: 292.30 | E30: 285.40 | F30: 281.35 | G30: 274.45 | H30: 296.35 | I30: 303.25 | J30: 307.30 | K30: 299.2 | L30: 288.25 | M30: 35.21201
A31: 22 | B31: ARVIND | C31: 418.3 | D31: 418.82 | E31: 414.43 | F31: 410.57 | G31: 406.18 | H31: 422.68 | I31: 427.07 | J31: 430.93 | K31: 423.2 | L31: 414.95 | M31: 10.87662
A32: 23 | B32: ASHOKLEY | C32: 149.4 | D32: 149.48 | E32: 147.97 | F32: 146.53 | G32: 145.02 | H32: 150.92 | I32: 152.43 | J32: 153.87 | K32: 151 | L32: 148.05 | M32: 134.84322
A33: 24 | B33: ASIANPAINT | C33: 1172.3 | D33: 1175.10 | E33: 1165.20 | F33: 1158.10 | G33: 1148.20 | H33: 1182.20 | I33: 1192.10 | J33: 1199.20 | K33: 1185 | L33: 1168 | M33: 4.65763
A34: 25 | B34: AUROPHARMA | C34: 609.5 | D34: 613.80 | E34: 602.70 | F34: 595.90 | G34: 584.80 | H34: 620.60 | I34: 631.70 | J34: 638.50 | K34: 624.9 | L34: 607 | M34: 8.04866
A35: 26 | B35: DMART | C35: 1492.65 | D35: 1495.30 | E35: 1482.60 | F35: 1472.55 | G35: 1459.85 | H35: 1505.35 | I35: 1518.05 | J35: 1528.10 | K35: 1508 | L35: 1485.25 | M35: 4.34205
A36: 27 | B36: AXISBANK | C36: 518.25 | D36: 523.42 | E36: 511.33 | F36: 504.42 | G36: 492.33 | H36: 530.33 | I36: 542.42 | J36: 549.33 | K36: 535.5 | L36: 516.5 | M36: 71.31174
A37: 28 | B37: BAJAJ-AUTO | C37: 2862.05 | D37: 2862.25 | E37: 2845.50 | F37: 2828.95 | G37: 2812.20 | H37: 2878.80 | I37: 2895.55 | J37: 2912.10 | K37: 2879 | L37: 2845.7 | M37: 3.52687
A38: 29 | B38: BAJFINANCE | C38: 1926.85 | D38: 1932.90 | E38: 1915.25 | F38: 1903.65 | G38: 1886.00 | H38: 1944.50 | I38: 1962.15 | J38: 1973.75 | K38: 1950.55 | L38: 1921.3 | M38: 4.62905
A39: 30 | B39: BAJAJFINSV | C39: 5371.85 | D39: 5394.52 | E39: 5332.13 | F39: 5292.42 | G39: 5230.03 | H39: 5434.23 | I39: 5496.62 | J39: 5536.33 | K39: 5456.9 | L39: 5354.8 | M39: 0.83355
A40: 31 | B40: BALKRISIND | C40: 1307.15 | D40: 1313.22 | E40: 1296.43 | F40: 1285.72 | G40: 1268.93 | H40: 1323.93 | I40: 1340.72 | J40: 1351.43 | K40: 1330 | L40: 1302.5 | M40: 4.91937
A41: 32 | B41: BANKBARODA | C41: 141.65 | D41: 143.88 | E41: 138.62 | F41: 135.58 | G41: 130.32 | H41: 146.92 | I41: 152.18 | J41: 155.22 | K41: 149.15 | L41: 140.85 | M41: 171.71761
A42: 33 | B42: BANKINDIA | C42: 109.05 | D42: 109.90 | E42: 107.60 | F42: 106.15 | G42: 103.85 | H42: 111.35 | I42: 113.65 | J42: 115.10 | K42: 112.2 | L42: 108.45 | M42: 79.49925
A43: 34 | B43: BATAINDIA | C43: 775.6 | D43: 776.58 | E43: 769.42 | F43: 763.23 | G43: 756.07 | H43: 782.77 | I43: 789.93 | J43: 796.12 | K43: 783.75 | L43: 770.4 | M43: 5.05963
A44: 35 | B44: BERGEPAINT | C44: 269.5 | D44: 271.77 | E44: 266.03 | F44: 262.57 | G44: 256.83 | H44: 275.23 | I44: 280.97 | J44: 284.43 | K44: 277.5 | L44: 268.3 | M44: 3.9628
A45: 36 | B45: BEL | C45: 138.7 | D45: 139.17 | E45: 137.83 | F45: 136.97 | G45: 135.63 | H45: 140.03 | I45: 141.37 | J45: 142.23 | K45: 140.5 | L45: 138.3 | M45: 45.71473
A46: 37 | B46: BHARATFIN | C46: 1139.25 | D46: 1142.75 | E46: 1130.50 | F46: 1121.75 | G46: 1109.50 | H46: 1151.50 | I46: 1163.75 | J46: 1172.50 | K46: 1155 | L46: 1134 | M46: 3.8275
A47: 38 | B47: BHARATFORG | C47: 736.65 | D47: 738.35 | E47: 730.70 | F47: 724.75 | G47: 717.10 | H47: 744.30 | I47: 751.95 | J47: 757.90 | K47: 746 | L47: 732.4 | M47: 6.0045
A48: 39 | B48: BHEL | C48: 87.85 | D48: 88.07 | E48: 87.18 | F48: 86.52 | G48: 85.63 | H48: 88.73 | I48: 89.62 | J48: 90.28 | K48: 88.95 | L48: 87.4 | M48: 21.78827
A49: 40 | B49: BPCL | C49: 405.2 | D49: 405.58 | E49: 402.17 | F49: 399.13 | G49: 395.72 | H49: 408.62 | I49: 412.03 | J49: 415.07 | K49: 409 | L49: 402.55 | M49: 51.62348
A50: 41 | B50: BHARTIARTL | C50: 384.25 | D50: 386.15 | E50: 380.45 | F50: 376.65 | G50: 370.95 | H50: 389.95 | I50: 395.65 | J50: 399.45 | K50: 391.85 | L50: 382.35 | M50: 57.32851
A51: 42 | B51: INFRATEL | C51: 336.05 | D51: 336.18 | E51: 334.37 | F51: 332.68 | G51: 330.87 | H51: 337.87 | I51: 339.68 | J51: 341.37 | K51: 338 | L51: 334.5 | M51: 28.81187
A52: 43 | B52: BIOCON | C52: 623.7 | D52: 624.43 | E52: 619.47 | F52: 615.23 | G52: 610.27 | H52: 628.67 | I52: 633.63 | J52: 637.87 | K52: 629.4 | L52: 620.2 | M52: 8.53008
A53: 44 | B53: BOSCHLTD | C53: 19400.8 | D53: 19440.47 | E53: 19285.93 | F53: 19171.07 | G53: 19016.53 | H53: 19555.33 | I53: 19709.87 | J53: 19824.73 | K53: 19595 | L53: 19325.6 | M53: 0.08661
A54: 45 | B54: BRITANNIA | C54: 5361.65 | D54: 5357.02 | E54: 5325.63 | F54: 5289.62 | G54: 5258.23 | H54: 5393.03 | I54: 5424.42 | J54: 5460.43 | K54: 5388.4 | L54: 5321 | M54: 0.64895
A55: 46 | B55: CRISIL | C55: 1942.1 | D55: 1950.93 | E55: 1921.32 | F55: 1900.53 | G55: 1870.92 | H55: 1971.72 | I55: 2001.33 | J55: 2022.12 | K55: 1980.55 | L55: 1930.15 | M55: 0.40573
A56: 47 | B56: CADILAHC | C56: 385.1 | D56: 386.47 | E56: 381.98 | F56: 378.87 | G56: 374.38 | H56: 389.58 | I56: 394.07 | J56: 397.18 | K56: 390.95 | L56: 383.35 | M56: 4.79171
A57: 48 | B57: CANBK | C57: 277.3 | D57: 278.02 | E57: 273.58 | F57: 269.87 | G57: 265.43 | H57: 281.73 | I57: 286.17 | J57: 289.88 | K57: 282.45 | L57: 274.3 | M57: 88.12949
A58: 49 | B58: CASTROLIND | C58: 207.8 | D58: 209.43 | E58: 205.52 | F58: 203.23 | G58: 199.32 | H58: 211.72 | I58: 215.63 | J58: 217.92 | K58: 213.35 | L58: 207.15 | M58: 16.99905
A59: 50 | B59: CENTRALBK | C59: 69.65 | D59: 69.87 | E59: 69.03 | F59: 68.42 | G59: 67.58 | H59: 70.48 | I59: 71.32 | J59: 71.93 | K59: 70.7 | L59: 69.25 | M59: 6.59563
A60: 51 | B60: CENTURYTEX | C60: 1221.7 | D60: 1226.23 | E60: 1212.47 | F60: 1203.23 | G60: 1189.47 | H60: 1235.47 | I60: 1249.23 | J60: 1258.47 | K60: 1240 | L60: 1217 | M60: 4.23982
A61: 52 | B61: CHOLAFIN | C61: 1578.95 | D61: 1585.98 | E61: 1567.97 | F61: 1556.98 | G61: 1538.97 | H61: 1596.97 | I61: 1614.98 | J61: 1625.97 | K61: 1604 | L61: 1575 | M61: 2.32558
A62: 53 | B62: CIPLA | C62: 584.6 | D62: 587.87 | E62: 578.73 | F62: 572.87 | G62: 563.73 | H62: 593.73 | I62: 602.87 | J62: 608.73 | K62: 597 | L62: 582 | M62: 38.53951
A63: 54 | B63: COALINDIA | C63: 285.1 | D63: 285.48 | E63: 282.52 | F63: 279.93 | G63: 276.97 | H63: 288.07 | I63: 291.03 | J63: 293.62 | K63: 288.45 | L63: 282.9 | M63: 14.33406
A64: 55 | B64: COLPAL | C64: 1105.25 | D64: 1102.60 | E64: 1094.95 | F64: 1084.65 | G64: 1077.00 | H64: 1112.90 | I64: 1120.55 | J64: 1130.85 | K64: 1110.25 | L64: 1092.3 | M64: 4.00221
A65: 56 | B65: CONCOR | C65: 1345.4 | D65: 1355.88 | E65: 1331.77 | F65: 1318.13 | G65: 1294.02 | H65: 1369.52 | I65: 1393.63 | J65: 1407.27 | K65: 1380 | L65: 1342.25 | M65: 2.20585
A66: 57 | B66: COROMANDEL | C66: 520.5 | D66: 523.48 | E66: 512.22 | F66: 503.93 | G66: 492.67 | H66: 531.77 | I66: 543.03 | J66: 551.32 | K66: 534.75 | L66: 515.2 | M66: 1.51656
A67: 58 | B67: CROMPTON | C67: 226.2 | D67: 226.03 | E67: 224.42 | F67: 222.63 | G67: 221.02 | H67: 227.82 | I67: 229.43 | J67: 231.22 | K67: 227.65 | L67: 224.25 | M67: 9.48507
A68: 59 | B68: CUMMINSIND | C68: 730.4 | D68: 730.50 | E68: 722.90 | F68: 715.40 | G68: 707.80 | H68: 738.00 | I68: 745.60 | J68: 753.10 | K68: 738.1 | L68: 723 | M68: 4.46868
A69: 60 | B69: DLF | C69: 212.5 | D69: 214.42 | E69: 209.33 | F69: 206.17 | G69: 201.08 | H69: 217.58 | I69: 222.67 | J69: 225.83 | K69: 219.5 | L69: 211.25 | M69: 62.46878
A70: 61 | B70: DABUR | C70: 355.85 | D70: 353.57 | E70: 349.78 | F70: 343.72 | G70: 339.93 | H70: 359.63 | I70: 363.42 | J70: 369.48 | K70: 357.35 | L70: 347.5 | M70: 25.52706
A71: 62 | B71: DALMIABHA | C71: 2890.25 | D71: 2872.75 | E71: 2837.55 | F71: 2784.85 | G71: 2749.65 | H71: 2925.45 | I71: 2960.65 | J71: 3013.35 | K71: 2907.95 | L71: 2820.05 | M71: 1.13893
A72: 63 | B72: DHFL | C72: 593.15 | D72: 595.85 | E72: 587.90 | F72: 582.65 | G72: 574.70 | H72: 601.10 | I72: 609.05 | J72: 614.30 | K72: 603.8 | L72: 590.6 | M72: 82.49266
A73: 64 | B73: DISHTV | C73: 77.6 | D73: 78.05 | E73: 76.85 | F73: 76.10 | G73: 74.90 | H73: 78.80 | I73: 80.00 | J73: 80.75 | K73: 79.25 | L73: 77.3 | M73: 45.88318
A74: 65 | B74: DIVISLAB | C74: 1174.9 | D74: 1183.10 | E74: 1162.80 | F74: 1150.70 | G74: 1130.40 | H74: 1195.20 | I74: 1215.50 | J74: 1227.60 | K74: 1203.4 | L74: 1171 | M74: 8.79419
A75: 66 | B75: LALPATHLAB | C75: 855.2 | D75: 858.87 | E75: 847.78 | F75: 840.37 | G75: 829.28 | H75: 866.28 | I75: 877.37 | J75: 884.78 | K75: 869.95 | L75: 851.45 | M75: 1.29416
A76: 67 | B76: DRREDDY | C76: 2101.65 | D76: 2103.32 | E76: 2089.38 | F76: 2077.12 | G76: 2063.18 | H76: 2115.58 | I76: 2129.52 | J76: 2141.78 | K76: 2117.25 | L76: 2091.05 | M76: 2.27808
A77: 68 | B77: EDELWEISS | C77: 273.75 | D77: 274.07 | E77: 271.68 | F77: 269.62 | G77: 267.23 | H77: 276.13 | I77: 278.52 | J77: 280.58 | K77: 276.45 | L77: 272 | M77: 9.01124
A78: 69 | B78: EICHERMOT | C78: 30873.9 | D78: 31003.72 | E78: 30670.18 | F78: 30466.47 | G78: 30132.93 | H78: 31207.43 | I78: 31540.97 | J78: 31744.68 | K78: 31337.25 | L78: 30800 | M78: 0.2224
A79: 70 | B79: EMAMILTD | C79: 1135.85 | D79: 1138.15 | E79: 1127.80 | F79: 1119.75 | G79: 1109.40 | H79: 1146.20 | I79: 1156.55 | J79: 1164.60 | K79: 1148.5 | L79: 1130.1 | M79: 0.59995
A80: 71 | B80: ENDURANCE | C80: 1314.75 | D80: 1320.92 | E80: 1301.83 | F80: 1288.92 | G80: 1269.83 | H80: 1333.83 | I80: 1352.92 | J80: 1365.83 | K80: 1340 | L80: 1308 | M80: 0.21692
A81: 72 | B81: ENGINERSIN | C81: 156.6 | D81: 157.30 | E81: 155.60 | F81: 154.60 | G81: 152.90 | H81: 158.30 | I81: 160.00 | J81: 161.00 | K81: 159 | L81: 156.3 | M81: 14.29045
A82: 73 | B82: EXIDEIND | C82: 242.8 | D82: 243.47 | E82: 239.93 | F82: 237.07 | G82: 233.53 | H82: 246.33 | I82: 249.87 | J82: 252.73 | K82: 247 | L82: 240.6 | M82: 23.41475
A83: 74 | B83: FEDERALBNK | C83: 99.2 | D83: 99.93 | E83: 98.27 | F83: 97.33 | G83: 95.67 | H83: 100.87 | I83: 102.53 | J83: 103.47 | K83: 101.6 | L83: 99 | M83: 122.51759
A84: 75 | B84: GAIL | C84: 330.65 | D84: 329.73 | E84: 326.92 | F84: 323.18 | G84: 320.37 | H84: 333.47 | I84: 336.28 | J84: 340.02 | K84: 332.55 | L84: 326 | M84: 21.41002
A85: 76 | B85: GMRINFRA | C85: 19.7 | D85: 19.83 | E85: 19.47 | F85: 19.23 | G85: 18.87 | H85: 20.07 | I85: 20.43 | J85: 20.67 | K85: 20.2 | L85: 19.6 | M85: 214.87532
A86: 77 | B86: GSKCONS | C86: 5911.4 | D86: 5909.93 | E86: 5877.87 | F86: 5844.33 | G86: 5812.27 | H86: 5943.47 | I86: 5975.53 | J86: 6009.07 | K86: 5942 | L86: 5876.4 | M86: 0.30745
A87: 78 | B87: GLAXO | C87: 2360.2 | D87: 2368.17 | E87: 2334.33 | F87: 2308.47 | G87: 2274.63 | H87: 2394.03 | I87: 2427.87 | J87: 2453.73 | K87: 2402 | L87: 2342.3 | M87: 0.09895
A88: 79 | B88: GLENMARK | C88: 566.85 | D88: 572.00 | E88: 559.10 | F88: 551.35 | G88: 538.45 | H88: 579.75 | I88: 592.65 | J88: 600.40 | K88: 584.9 | L88: 564.25 | M88: 9.07017
A89: 80 | B89: GODREJCP | C89: 1131.3 | D89: 1115.97 | E89: 1091.13 | F89: 1050.97 | G89: 1026.13 | H89: 1156.13 | I89: 1180.97 | J89: 1221.13 | K89: 1140.8 | L89: 1075.8 | M89: 14.77714
A90: 81 | B90: GODREJIND | C90: 591.2 | D90: 587.58 | E90: 580.02 | F90: 568.83 | G90: 561.27 | H90: 598.77 | I90: 606.33 | J90: 617.52 | K90: 595.15 | L90: 576.4 | M90: 9.44505
A91: 82 | B91: GRUH | C91: 639.65 | D91: 641.95 | E91: 635.70 | F91: 631.75 | G91: 625.50 | H91: 645.90 | I91: 652.15 | J91: 656.10 | K91: 648.2 | L91: 638 | M91: 1.67923
A92: 83 | B92: GPPL | C92: 143.15 | D92: 144.37 | E92: 141.03 | F92: 138.92 | G92: 135.58 | H92: 146.48 | I92: 149.82 | J92: 151.93 | K92: 147.7 | L92: 142.25 | M92: 1.32965
A93: 84 | B93: GSPL | C93: 187.2 | D93: 186.95 | E93: 185.25 | F93: 183.30 | G93: 181.60 | H93: 188.90 | I93: 190.60 | J93: 192.55 | K93: 188.65 | L93: 185 | M93: 3.38916
A94: 85 | B94: HCLTECH | C94: 996.85 | D94: 1001.88 | E94: 987.97 | F94: 979.08 | G94: 965.17 | H94: 1010.77 | I94: 1024.68 | J94: 1033.57 | K94: 1015.8 | L94: 993 | M94: 10.04131
A95: 86 | B95: HDFCBANK | C95: 1932.6 | D95: 1938.72 | E95: 1923.93 | F95: 1915.27 | G95: 1900.48 | H95: 1947.38 | I95: 1962.17 | J95: 1970.83 | K95: 1953.5 | L95: 1930.05 | M95: 6.7818
A96: 87 | B96: HAVELLS | C96: 547.25 | D96: 549.23 | E96: 543.67 | F96: 540.08 | G96: 534.52 | H96: 552.82 | I96: 558.38 | J96: 561.97 | K96: 554.8 | L96: 545.65 | M96: 11.29693
A97: 88 | B97: HEROMOTOCO | C97: 3737.8 | D97: 3751.13 | E97: 3718.27 | F97: 3698.73 | G97: 3665.87 | H97: 3770.67 | I97: 3803.53 | J97: 3823.07 | K97: 3784 | L97: 3731.6 | M97: 2.04458
A98: 89 | B98: HEXAWARE | C98: 416.1 | D98: 419.37 | E98: 410.33 | F98: 404.57 | G98: 395.53 | H98: 425.13 | I98: 434.17 | J98: 439.93 | K98: 428.4 | L98: 413.6 | M98: 40.03152
A99: 90 | B99: HINDALCO | C99: 242.8 | D99: 241.20 | E99: 237.65 | F99: 232.50 | G99: 228.95 | H99: 246.35 | I99: 249.90 | J99: 255.05 | K99: 244.75 | L99: 236.05 | M99: 233.23232
A100: 91 | B100: HINDPETRO | C100: 319.6 | D100: 322.95 | E100: 315.05 | F100: 310.50 | G100: 302.60 | H100: 327.50 | I100: 335.40 | J100: 339.95 | K100: 330.85 | L100: 318.4 | M100: 68.42423
A101: 92 | B101: HINDUNILVR | C101: 1450.5 | D101: 1448.88 | E101: 1441.62 | F101: 1432.73 | G101: 1425.47 | H101: 1457.77 | I101: 1465.03 | J101: 1473.92 | K101: 1456.15 | L101: 1440 | M101: 7.65225
A102: 93 | B102: HINDZINC | C102: 323.4 | D102: 321.72 | E102: 318.88 | F102: 314.37 | G102: 311.53 | H102: 326.23 | I102: 329.07 | J102: 333.58 | K102: 324.55 | L102: 317.2 | M102: 19.90928
A103: 94 | B103: HUDCO | C103: 67.85 | D103: 68.08 | E103: 67.32 | F103: 66.78 | G103: 66.02 | H103: 68.62 | I103: 69.38 | J103: 69.92 | K103: 68.85 | L103: 67.55 | M103: 12.26841
A104: 95 | B104: HDFC | C104: 1877.7 | D104: 1882.27 | E104: 1866.53 | F104: 1855.37 | G104: 1839.63 | H104: 1893.43 | I104: 1909.17 | J104: 1920.33 | K104: 1898 | L104: 1871.1 | M104: 16.90874
A105: 96 | B105: ITC | C105: 275.35 | D105: 274.08 | E105: 269.27 | F105: 263.18 | G105: 258.37 | H105: 280.17 | I105: 284.98 | J105: 291.07 | K105: 278.9 | L105: 268 | M105: 238.15794
A106: 97 | B106: ICICIBANK | C106: 290.05 | D106: 291.32 | E106: 287.73 | F106: 285.42 | G106: 281.83 | H106: 293.63 | I106: 297.22 | J106: 299.53 | K106: 294.9 | L106: 289 | M106: 207.55245
A107: 98 | B107: ICICIPRULI | C107: 381.9 | D107: 384.70 | E107: 377.40 | F107: 372.90 | G107: 365.60 | H107: 389.20 | I107: 396.50 | J107: 401.00 | K107: 392 | L107: 380.2 | M107: 14.45512
A108: 99 | B108: IDBI | C108: 69.95 | D108: 70.43 | E108: 69.02 | F108: 68.08 | G108: 66.67 | H108: 71.37 | I108: 72.78 | J108: 73.72 | K108: 71.85 | L108: 69.5 | M108: 108.37853
A109: 100 | B109: IDFCBANK | C109: 49.45 | D109: 49.52 | E109: 48.98 | F109: 48.52 | G109: 47.98 | H109: 49.98 | I109: 50.52 | J109: 50.98 | K109: 50.05 | L109: 49.05 | M109: 57.77892
A110: 101 | B110: IDFC | C110: 53.2 | D110: 53.30 | E110: 52.50 | F110: 51.80 | G110: 51.00 | H110: 54.00 | I110: 54.80 | J110: 55.50 | K110: 54.1 | L110: 52.6 | M110: 53.97119
A111: 102 | B111: IRB | C111: 255.4 | D111: 258.98 | E111: 250.72 | F111: 246.03 | G111: 237.77 | H111: 263.67 | I111: 271.93 | J111: 276.62 | K111: 267.25 | L111: 254.3 | M111: 63.43221
A112: 103 | B112: IDEA | C112: 71.5 | D112: 71.75 | E112: 71.05 | F112: 70.60 | G112: 69.90 | H112: 72.20 | I112: 72.90 | J112: 73.35 | K112: 72.45 | L112: 71.3 | M112: 305.83733
A113: 104 | B113: IBULHSGFIN | C113: 1369.6 | D113: 1370.32 | E113: 1354.28 | F113: 1338.97 | G113: 1322.93 | H113: 1385.63 | I113: 1401.67 | J113: 1416.98 | K113: 1386.35 | L113: 1355 | M113: 14.79968
A114: 105 | B114: INDIANB | C114: 306.75 | D114: 311.70 | E114: 300.45 | F114: 294.15 | G114: 282.90 | H114: 318.00 | I114: 329.25 | J114: 335.55 | K114: 322.95 | L114: 305.4 | M114: 11.54026
A115: 106 | B115: INDHOTEL | C115: 152.55 | D115: 151.95 | E115: 148.60 | F115: 144.65 | G115: 141.30 | H115: 155.90 | I115: 159.25 | J115: 163.20 | K115: 155.3 | L115: 148 | M115: 101.68995
A116: 107 | B116: IOC | C116: 164.95 | D116: 165.68 | E116: 163.77 | F116: 162.58 | G116: 160.67 | H116: 166.87 | I116: 168.78 | J116: 169.97 | K116: 167.6 | L116: 164.5 | M116: 52.36513
A117: 108 | B117: IGL | C117: 293.05 | D117: 292.70 | E117: 290.65 | F117: 288.25 | G117: 286.20 | H117: 295.10 | I117: 297.15 | J117: 299.55 | K117: 294.75 | L117: 290.3 | M117: 12.71552
A118: 109 | B118: INDUSINDBK | C118: 1843.6 | D118: 1850.93 | E118: 1828.67 | F118: 1813.73 | G118: 1791.47 | H118: 1865.87 | I118: 1888.13 | J118: 1903.07 | K118: 1873.2 | L118: 1836 | M118: 5.76214
A119: 110 | B119: NAUKRI | C119: 1227.5 | D119: 1229.85 | E119: 1209.75 | F119: 1192.00 | G119: 1171.90 | H119: 1247.60 | I119: 1267.70 | J119: 1285.45 | K119: 1249.95 | L119: 1212.1 | M119: 0.18192
A120: 111 | B120: INFY | C120: 1125.95 | D120: 1124.85 | E120: 1114.95 | F120: 1103.95 | G120: 1094.05 | H120: 1135.85 | I120: 1145.75 | J120: 1156.75 | K120: 1134.75 | L120: 1113.85 | M120: 52.1519
A121: 112 | B121: INDIGO | C121: 1474.65 | D121: 1478.78 | E121: 1460.07 | F121: 1445.48 | G121: 1426.77 | H121: 1493.37 | I121: 1512.08 | J121: 1526.67 | K121: 1497.5 | L121: 1464.2 | M121: 6.0151
A122: 113 | B122: IPCALAB | C122: 709.7 | D122: 709.00 | E122: 701.00 | F122: 692.30 | G122: 684.30 | H122: 717.70 | I122: 725.70 | J122: 734.40 | K122: 717 | L122: 700.3 | M122: 1.70637
A123: 114 | B123: JSWENERGY | C123: 85 | D123: 84.55 | E123: 83.30 | F123: 81.60 | G123: 80.35 | H123: 86.25 | I123: 87.50 | J123: 89.20 | K123: 85.8 | L123: 82.85 | M123: 29.4445
A124: 115 | B124: JSWSTEEL | C124: 309.95 | D124: 309.65 | E124: 307.30 | F124: 304.65 | G124: 302.30 | H124: 312.30 | I124: 314.65 | J124: 317.30 | K124: 312 | L124: 307 | M124: 32.3414
A125: 116 | B125: JINDALSTEL | C125: 249.9 | D125: 250.53 | E125: 247.82 | F125: 245.73 | G125: 243.02 | H125: 252.62 | I125: 255.33 | J125: 257.42 | K125: 253.25 | L125: 248.45 | M125: 49.78526
A126: 117 | B126: JUBLFOOD | C126: 2486.9 | D126: 2499.18 | E126: 2466.17 | F126: 2445.43 | G126: 2412.42 | H126: 2519.92 | I126: 2552.93 | J126: 2573.67 | K126: 2532.2 | L126: 2478.45 | M126: 5.11719
A127: 118 | B127: JUBILANT | C127: 797.15 | D127: 802.72 | E127: 788.43 | F127: 779.72 | G127: 765.43 | H127: 811.43 | I127: 825.72 | J127: 834.43 | K127: 817 | L127: 794 | M127: 2.13783
A128: 119 | B128: KARURVYSYA | C128: 106.15 | D128: 106.30 | E128: 105.35 | F128: 104.55 | G128: 103.60 | H128: 107.10 | I128: 108.05 | J128: 108.85 | K128: 107.25 | L128: 105.5 | M128: 6.39154
A129: 120 | B129: KOTAKBANK | C129: 1153.95 | D129: 1157.53 | E129: 1147.57 | F129: 1141.18 | G129: 1131.22 | H129: 1163.92 | I129: 1173.88 | J129: 1180.27 | K129: 1167.5 | L129: 1151.15 | M129: 8.8961
A130: 121 | B130: L&TFH | C130: 171.65 | D130: 172.65 | E130: 169.85 | F130: 168.05 | G130: 165.25 | H130: 174.45 | I130: 177.25 | J130: 179.05 | K130: 175.45 | L130: 170.85 | M130: 27.87553
A131: 122 | B131: LICHSGFIN | C131: 559.25 | D131: 560.32 | E131: 555.43 | F131: 551.62 | G131: 546.73 | H131: 564.13 | I131: 569.02 | J131: 572.83 | K131: 565.2 | L131: 556.5 | M131: 12.21905
A132: 123 | B132: LT | C132: 1360.1 | D132: 1360.85 | E132: 1350.25 | F132: 1340.40 | G132: 1329.80 | H132: 1370.70 | I132: 1381.30 | J132: 1391.15 | K132: 1371.45 | L132: 1351 | M132: 14.59202
A133: 124 | B133: LUPIN | C133: 790.55 | D133: 797.03 | E133: 781.02 | F133: 771.48 | G133: 755.47 | H133: 806.57 | I133: 822.58 | J133: 832.12 | K133: 813.05 | L133: 787.5 | M133: 12.73598
A134: 125 | B134: MRF | C134: 79069.85 | D134: 79373.28 | E134: 78646.57 | F134: 78223.28 | G134: 77496.57 | H134: 79796.57 | I134: 80523.28 | J134: 80946.57 | K134: 80100 | L134: 78950 | M134: 0.05399
A135: 126 | B135: MGL | C135: 895.7 | D135: 896.27 | E135: 890.33 | F135: 884.97 | G135: 879.03 | H135: 901.63 | I135: 907.57 | J135: 912.93 | K135: 902.2 | L135: 890.9 | M135: 3.71646
A136: 127 | B136: M&MFIN | C136: 509.05 | D136: 509.57 | E136: 504.13 | F136: 499.22 | G136: 493.78 | H136: 514.48 | I136: 519.92 | J136: 524.83 | K136: 515 | L136: 504.65 | M136: 12.87396
A137: 128 | B137: M&M | C137: 798.3 | D137: 802.33 | E137: 791.67 | F137: 785.03 | G137: 774.37 | H137: 808.97 | I137: 819.63 | J137: 826.27 | K137: 813 | L137: 795.7 | M137: 15.03151
A138: 129 | B138: MANAPPURAM | C138: 120.05 | D138: 120.77 | E138: 118.98 | F138: 117.92 | G138: 116.13 | H138: 121.83 | I138: 123.62 | J138: 124.68 | K138: 122.55 | L138: 119.7 | M138: 20.69251
A139: 130 | B139: MRPL | C139: 107.15 | D139: 107.63 | E139: 105.37 | F139: 103.58 | G139: 101.32 | H139: 109.42 | I139: 111.68 | J139: 113.47 | K139: 109.9 | L139: 105.85 | M139: 12.49822
A140: 131 | B140: MARICO | C140: 319.05 | D140: 319.97 | E140: 316.53 | F140: 314.02 | G140: 310.58 | H140: 322.48 | I140: 325.92 | J140: 328.43 | K140: 323.4 | L140: 317.45 | M140: 11.52263
A141: 132 | B141: MARUTI | C141: 9121.5 | D141: 9148.28 | E141: 9069.12 | F141: 9016.73 | G141: 8937.57 | H141: 9200.67 | I141: 9279.83 | J141: 9332.22 | K141: 9227.45 | L141: 9095.9 | M141: 4.52854
A142: 133 | B142: MFSL | C142: 436 | D142: 434.43 | E142: 428.87 | F142: 421.73 | G142: 416.17 | H142: 441.57 | I142: 447.13 | J142: 454.27 | K142: 440 | L142: 427.3 | M142: 3.20745
A143: 134 | B143: MINDTREE | C143: 865.1 | D143: 873.60 | E143: 851.35 | F143: 837.60 | G143: 815.35 | H143: 887.35 | I143: 909.60 | J143: 923.35 | K143: 895.85 | L143: 859.85 | M143: 33.11973
A144: 135 | B144: MOTHERSUMI | C144: 342.1 | D144: 342.67 | E144: 339.88 | F144: 337.67 | G144: 334.88 | H144: 344.88 | I144: 347.67 | J144: 349.88 | K144: 345.45 | L144: 340.45 | M144: 12.13452
A145: 136 | B145: MPHASIS | C145: 898 | D145: 902.02 | E145: 892.58 | F145: 887.17 | G145: 877.73 | H145: 907.43 | I145: 916.87 | J145: 922.28 | K145: 911.45 | L145: 896.6 | M145: 4.67179
A146: 137 | B146: MUTHOOTFIN | C146: 428.85 | D146: 433.98 | E146: 421.37 | F146: 413.88 | G146: 401.27 | H146: 441.47 | I146: 454.08 | J146: 461.57 | K146: 446.6 | L146: 426.5 | M146: 9.09904
A147: 138 | B147: NATCOPHARM | C147: 801 | D147: 808.33 | E147: 789.67 | F147: 778.33 | G147: 759.67 | H147: 819.67 | I147: 838.33 | J147: 849.67 | K147: 827 | L147: 797 | M147: 4.13944
A148: 139 | B148: NBCC | C148: 211 | D148: 212.35 | E148: 208.75 | F148: 206.50 | G148: 202.90 | H148: 214.60 | I148: 218.20 | J148: 220.45 | K148: 215.95 | L148: 210.1 | M148: 14.6442
A149: 140 | B149: NHPC | C149: 27.3 | D149: 27.43 | E149: 27.02 | F149: 26.73 | G149: 26.32 | H149: 27.72 | I149: 28.13 | J149: 28.42 | K149: 27.85 | L149: 27.15 | M149: 41.20099
A150: 141 | B150: NMDC | C150: 122.85 | D150: 123.52 | E150: 121.53 | F150: 120.22 | G150: 118.23 | H150: 124.83 | I150: 126.82 | J150: 128.13 | K150: 125.5 | L150: 122.2 | M150: 25.1113
A151: 142 | B151: NTPC | C151: 178.55 | D151: 178.30 | E151: 176.60 | F151: 174.65 | G151: 172.95 | H151: 180.25 | I151: 181.95 | J151: 183.90 | K151: 180 | L151: 176.35 | M151: 41.24162
A152: 143 | B152: NATIONALUM | C152: 80.15 | D152: 79.82 | E152: 78.93 | F152: 77.72 | G152: 76.83 | H152: 81.03 | I152: 81.92 | J152: 83.13 | K152: 80.7 | L152: 78.6 | M152: 156.72881
A153: 144 | B153: OBEROIRLTY | C153: 513 | D153: 514.47 | E153: 507.03 | F153: 501.07 | G153: 493.63 | H153: 520.43 | I153: 527.87 | J153: 533.83 | K153: 521.9 | L153: 508.5 | M153: 2.13189
A154: 145 | B154: ONGC | C154: 182.1 | D154: 182.02 | E154: 181.08 | F154: 180.07 | G154: 179.13 | H154: 183.03 | I154: 183.97 | J154: 184.98 | K154: 182.95 | L154: 181 | M154: 32.79393
A155: 146 | B155: OIL | C155: 218.1 | D155: 217.98 | E155: 216.97 | F155: 215.83 | G155: 214.82 | H155: 219.12 | I155: 220.13 | J155: 221.27 | K155: 219 | L155: 216.85 | M155: 3.91209
A156: 147 | B156: OFSS | C156: 4125.2 | D156: 4122.18 | E156: 4074.37 | F156: 4023.53 | G156: 3975.72 | H156: 4173.02 | I156: 4220.83 | J156: 4271.67 | K156: 4170 | L156: 4071.35 | M156: 0.19263
A157: 148 | B157: PCJEWELLER | C157: 293.8 | D157: 297.97 | E157: 286.78 | F157: 279.77 | G157: 268.58 | H157: 304.98 | I157: 316.17 | J157: 323.18 | K157: 309.15 | L157: 290.95 | M157: 53.1062
A158: 149 | B158: PIIND | C158: 845.55 | D158: 848.95 | E158: 834.65 | F158: 823.75 | G158: 809.45 | H158: 859.85 | I158: 874.15 | J158: 885.05 | K158: 863.25 | L158: 838.05 | M158: 3.68969
A159: 150 | B159: PNBHOUSING | C159: 1345.4 | D159: 1343.78 | E159: 1331.72 | F159: 1318.03 | G159: 1305.97 | H159: 1357.47 | I159: 1369.53 | J159: 1383.22 | K159: 1355.85 | L159: 1330.1 | M159: 0.68208
A160: 151 | B160: PAGEIND | C160: 24789.75 | D160: 24880.42 | E160: 24610.88 | F160: 24432.02 | G160: 24162.48 | H160: 25059.28 | I160: 25328.82 | J160: 25507.68 | K160: 25149.95 | L160: 24701.55 | M160: 0.07148
A161: 152 | B161: PETRONET | C161: 238.25 | D161: 240.35 | E161: 235.35 | F161: 232.45 | G161: 227.45 | H161: 243.25 | I161: 248.25 | J161: 251.15 | K161: 245.35 | L161: 237.45 | M161: 18.44619
A162: 153 | B162: PIDILITIND | C162: 1051.6 | D162: 1048.77 | E162: 1042.53 | F162: 1033.47 | G162: 1027.23 | H162: 1057.83 | I162: 1064.07 | J162: 1073.13 | K162: 1055 | L162: 1039.7 | M162: 6.66465
A163: 154 | B163: PEL | C163: 2579.65 | D163: 2586.15 | E163: 2563.50 | F163: 2547.35 | G163: 2524.70 | H163: 2602.30 | I163: 2624.95 | J163: 2641.10 | K163: 2608.8 | L163: 2570 | M163: 0.72279
A164: 155 | B164: PFC | C164: 86.4 | D164: 86.78 | E164: 85.87 | F164: 85.33 | G164: 84.42 | H164: 87.32 | I164: 88.23 | J164: 88.77 | K164: 87.7 | L164: 86.25 | M164: 19.48745
A165: 156 | B165: POWERGRID | C165: 205 | D165: 205.05 | E165: 204.30 | F165: 203.60 | G165: 202.85 | H165: 205.75 | I165: 206.50 | J165: 207.20 | K165: 205.8 | L165: 204.35 | M165: 49.57945
A166: 157 | B166: PRESTIGE | C166: 301.25 | D166: 302.48 | E166: 298.77 | F166: 296.28 | G166: 292.57 | H166: 304.97 | I166: 308.68 | J166: 311.17 | K166: 306.2 | L166: 300 | M166: 7.49971
A167: 158 | B167: PGHH | C167: 9793.65 | D167: 9780.43 | E167: 9760.87 | F167: 9728.08 | G167: 9708.52 | H167: 9813.22 | I167: 9832.78 | J167: 9865.57 | K167: 9800 | L167: 9747.65 | M167: 0.03038
A168: 159 | B168: PNB | C168: 97.15 | D168: 97.72 | E168: 96.43 | F168: 95.72 | G168: 94.43 | H168: 98.43 | I168: 99.72 | J168: 100.43 | K168: 99 | L168: 97 | M168: 194.30044
A169: 160 | B169: RBLBANK | C169: 510.05 | D169: 510.35 | E169: 505.85 | F169: 501.65 | G169: 497.15 | H169: 514.55 | I169: 519.05 | J169: 523.25 | K169: 514.85 | L169: 506.15 | M169: 3.11527
A170: 161 | B170: RAJESHEXPO | C170: 696.65 | D170: 698.15 | E170: 692.50 | F170: 688.35 | G170: 682.70 | H170: 702.30 | I170: 707.95 | J170: 712.10 | K170: 703.8 | L170: 694 | M170: 1.75716
A171: 162 | B171: RELCAPITAL | C171: 436 | D171: 439.10 | E171: 431.50 | F171: 427.00 | G171: 419.40 | H171: 443.60 | I171: 451.20 | J171: 455.70 | K171: 446.7 | L171: 434.6 | M171: 24.90644
A172: 163 | B172: RCOM | C172: 21 | D172: 21.08 | E172: 20.72 | F172: 20.43 | G172: 20.07 | H172: 21.37 | I172: 21.73 | J172: 22.02 | K172: 21.45 | L172: 20.8 | M172: 385.35617
A173: 164 | B173: RELIANCE | C173: 938 | D173: 940.42 | E173: 932.63 | F173: 927.27 | G173: 919.48 | H173: 945.78 | I173: 953.57 | J173: 958.93 | K173: 948.2 | L173: 935.05 | M173: 33.65196
A174: 165 | B174: RELINFRA | C174: 460.05 | D174: 460.70 | E174: 455.55 | F174: 451.05 | G174: 445.90 | H174: 465.20 | I174: 470.35 | J174: 474.85 | K174: 465.85 | L174: 456.2 | M174: 17.24203
A175: 166 | B175: RPOWER | C175: 39.6 | D175: 39.82 | E175: 39.23 | F175: 38.87 | G175: 38.28 | H175: 40.18 | I175: 40.77 | J175: 41.13 | K175: 40.4 | L175: 39.45 | M175: 24.01347
A176: 167 | B176: RECLTD | C176: 128.15 | D176: 128.33 | E176: 127.27 | F176: 126.38 | G176: 125.32 | H176: 129.22 | I176: 130.28 | J176: 131.17 | K176: 129.4 | L176: 127.45 | M176: 15.55739
A177: 168 | B177: SRF | C177: 2162.9 | D177: 2165.00 | E177: 2151.10 | F177: 2139.30 | G177: 2125.40 | H177: 2176.80 | I177: 2190.70 | J177: 2202.50 | K177: 2178.9 | L177: 2153.2 | M177: 1.6985
A178: 169 | B178: SHREECEM | C178: 17034.85 | D178: 17030.10 | E178: 16960.20 | F178: 16885.55 | G178: 16815.65 | H178: 17104.75 | I178: 17174.65 | J178: 17249.30 | K178: 17100 | L178: 16955.45 | M178: 0.13847
A179: 170 | B179: SRTRANSFIN | C179: 1569.65 | D179: 1569.98 | E179: 1554.97 | F179: 1540.28 | G179: 1525.27 | H179: 1584.67 | I179: 1599.68 | J179: 1614.37 | K179: 1585 | L179: 1555.3 | M179: 6.62794
A180: 171 | B180: SIEMENS | C180: 1080.2 | D180: 1082.02 | E180: 1075.18 | F180: 1070.17 | G180: 1063.33 | H180: 1087.03 | I180: 1093.87 | J180: 1098.88 | K180: 1088.85 | L180: 1077 | M180: 1.04016
A181: 172 | B181: SBIN | C181: 246.45 | D181: 247.22 | E181: 244.53 | F181: 242.62 | G181: 239.93 | H181: 249.13 | I181: 251.82 | J181: 253.73 | K181: 249.9 | L181: 245.3 | M181: 161.42387
A182: 173 | B182: SAIL | C182: 77.3 | D182: 77.33 | E182: 76.72 | F182: 76.13 | G182: 75.52 | H182: 77.92 | I182: 78.53 | J182: 79.12 | K182: 77.95 | L182: 76.75 | M182: 65.62102
A183: 174 | B183: SPARC | C183: 415.75 | D183: 417.62 | E183: 410.23 | F183: 404.72 | G183: 397.33 | H183: 423.13 | I183: 430.52 | J183: 436.03 | K183: 425 | L183: 412.1 | M183: 2.8876
A184: 175 | B184: SUNPHARMA | C184: 512 | D184: 513.35 | E184: 509.30 | F184: 506.60 | G184: 502.55 | H184: 516.05 | I184: 520.10 | J184: 522.80 | K184: 517.4 | L184: 510.65 | M184: 24.12444
A185: 176 | B185: SUNTV | C185: 899.55 | D185: 893.73 | E185: 881.47 | F185: 863.38 | G185: 851.12 | H185: 911.82 | I185: 924.08 | J185: 942.17 | K185: 906 | L185: 875.65 | M185: 28.86581
A186: 177 | B186: SUZLON | C186: 11.9 | D186: 11.83 | E186: 11.72 | F186: 11.53 | G186: 11.42 | H186: 12.02 | I186: 12.13 | J186: 12.32 | K186: 11.95 | L186: 11.65 | M186: 165.76108
A187: 178 | B187: SYNDIBANK | C187: 57.35 | D187: 57.65 | E187: 56.80 | F187: 56.25 | G187: 55.40 | H187: 58.20 | I187: 59.05 | J187: 59.60 | K187: 58.5 | L187: 57.1 | M187: 32.92064
A188: 179 | B188: SYNGENE | C188: 635.45 | D188: 635.27 | E188: 626.53 | F188: 617.62 | G188: 608.88 | H188: 644.18 | I188: 652.92 | J188: 661.83 | K188: 644 | L188: 626.35 | M188: 1.33149
A189: 180 | B189: TV18BRDCST | C189: 67.85 | D189: 67.75 | E189: 66.85 | F189: 65.85 | G189: 64.95 | H189: 68.75 | I189: 69.65 | J189: 70.65 | K189: 68.65 | L189: 66.75 | M189: 75.75512
A190: 181 | B190: TVSMOTOR | C190: 673.55 | D190: 672.32 | E190: 666.23 | F190: 658.92 | G190: 652.83 | H190: 679.63 | I190: 685.72 | J190: 693.03 | K190: 678.4 | L190: 665 | M190: 11.17965
A191: 182 | B191: TATACHEM | C191: 735.95 | D191: 737.85 | E191: 728.90 | F191: 721.85 | G191: 712.90 | H191: 744.90 | I191: 753.85 | J191: 760.90 | K191: 746.8 | L191: 730.8 | M191: 7.16807
A192: 183 | B192: TATACOMM | C192: 620.4 | D192: 622.48 | E192: 615.97 | F192: 611.53 | G192: 605.02 | H192: 626.92 | I192: 633.43 | J192: 637.87 | K192: 629 | L192: 618.05 | M192: 2.16223
A193: 184 | B193: TCS | C193: 3159.1 | D193: 3166.13 | E193: 3138.82 | F193: 3118.53 | G193: 3091.22 | H193: 3186.42 | I193: 3213.73 | J193: 3234.02 | K193: 3193.45 | L193: 3145.85 | M193: 12.16533
A194: 185 | B194: TATAGLOBAL | C194: 284.1 | D194: 283.60 | E194: 279.75 | F194: 275.40 | G194: 271.55 | H194: 287.95 | I194: 291.80 | J194: 296.15 | K194: 287.45 | L194: 279.25 | M194: 47.19061
A195: 186 | B195: TATAMTRDVR | C195: 190.4 | D195: 191.18 | E195: 188.67 | F195: 186.93 | G195: 184.42 | H195: 192.92 | I195: 195.43 | J195: 197.17 | K195: 193.7 | L195: 189.45 | M195: 14.26847
A196: 187 | B196: TATAMOTORS | C196: 334.8 | D196: 335.98 | E196: 332.22 | F196: 329.63 | G196: 325.87 | H196: 338.57 | I196: 342.33 | J196: 344.92 | K196: 339.75 | L196: 333.4 | M196: 66.99271
A197: 188 | B197: TATAPOWER | C197: 87.65 | D197: 87.70 | E197: 87.05 | F197: 86.45 | G197: 85.80 | H197: 88.30 | I197: 88.95 | J197: 89.55 | K197: 88.35 | L197: 87.1 | M197: 34.71674
A198: 189 | B198: TATASTEEL | C198: 601.6 | D198: 600.37 | E198: 595.83 | F198: 590.07 | G198: 585.53 | H198: 606.13 | I198: 610.67 | J198: 616.43 | K198: 604.9 | L198: 594.6 | M198: 42.59135
A199: 190 | B199: TECHM | C199: 656.8 | D199: 661.67 | E199: 649.33 | F199: 641.87 | G199: 629.53 | H199: 669.13 | I199: 681.47 | J199: 688.93 | K199: 674 | L199: 654.2 | M199: 16.7606
A200: 191 | B200: RAMCOCEM | C200: 827.2 | D200: 829.23 | E200: 822.97 | F200: 818.73 | G200: 812.47 | H200: 833.47 | I200: 839.73 | J200: 843.97 | K200: 835.5 | L200: 825 | M200: 1.62233
A201: 192 | B201: TITAN | C201: 977.1 | D201: 983.97 | E201: 968.23 | F201: 959.37 | G201: 943.63 | H201: 992.83 | I201: 1008.57 | J201: 1017.43 | K201: 999.7 | L201: 975.1 | M201: 26.21345
A202: 193 | B202: TORNTPHARM | C202: 1353.55 | D202: 1349.05 | E202: 1336.55 | F202: 1319.55 | G202: 1307.05 | H202: 1366.05 | I202: 1378.55 | J202: 1395.55 | K202: 1361.55 | L202: 1332.05 | M202: 0.98305
A203: 194 | B203: TORNTPOWER | C203: 238.3 | D203: 238.97 | E203: 235.63 | F203: 232.97 | G203: 229.63 | H203: 241.63 | I203: 244.97 | J203: 247.63 | K203: 242.3 | L203: 236.3 | M203: 5.8208
A204: 195 | B204: UPL | C204: 757.6 | D204: 757.77 | E204: 752.43 | F204: 747.27 | G204: 741.93 | H204: 762.93 | I204: 768.27 | J204: 773.43 | K204: 763.1 | L204: 752.6 | M204: 5.93398
A205: 196 | B205: ULTRACEMCO | C205: 3992.35 | D205: 3974.50 | E205: 3940.30 | F205: 3888.25 | G205: 3854.05 | H205: 4026.55 | I205: 4060.75 | J205: 4112.80 | K205: 4008.7 | L205: 3922.45 | M205: 1.59338
... 30 more rows

Sheet MidCap Intra
L5: Back To Main Page
A6: FOR INTRA DAY TRADING | K6: =Main!B10 -> 2018-04-19
A9: Sr.no | B9: Scrip | C9: CLOSE RATE | D9: Pivot Point | E9: Supports | H9: Resistances
C10: Point | E10: S1 | F10: S2 | G10: S3 | H10: R1 | I10: R2 | J10: R3 | K10: HIGH | L10: LOW | M10: Total Trade Quanity in Lakhs
A11: 1 | B11: 3MINDIA | C11: 20629.5 | D11: 20608.77 | E11: 20417.53 | F11: 20205.57 | G11: 20014.33 | H11: 20820.73 | I11: 21011.97 | J11: 21223.93 | K11: 20800 | L11: 20396.8 | M11: 0.00456
A12: 2 | B12: 8KMILES | C12: 749.25 | D12: 751.20 | E12: 736.70 | F12: 724.15 | G12: 709.65 | H12: 763.75 | I12: 778.25 | J12: 790.80 | K12: 765.7 | L12: 738.65 | M12: 2.27247
A13: 3 | B13: ABB | C13: 1255.65 | D13: 1261.20 | E13: 1248.45 | F13: 1241.25 | G13: 1228.50 | H13: 1268.40 | I13: 1281.15 | J13: 1288.35 | K13: 1273.95 | L13: 1254 | M13: 0.2694
A14: 4 | B14: ACC | C14: 1573.5 | D14: 1579.38 | E14: 1556.07 | F14: 1538.63 | G14: 1515.32 | H14: 1596.82 | I14: 1620.13 | J14: 1637.57 | K14: 1602.7 | L14: 1561.95 | M14: 4.89407
A15: 5 | B15: AIAENG | C15: 1413.55 | D15: 1410.85 | E15: 1391.70 | F15: 1369.85 | G15: 1350.70 | H15: 1432.70 | I15: 1451.85 | J15: 1473.70 | K15: 1430 | L15: 1389 | M15: 0.48552
A16: 6 | B16: APLAPOLLO | C16: 2131.05 | D16: 2146.37 | E16: 2105.78 | F16: 2080.52 | G16: 2039.93 | H16: 2171.63 | I16: 2212.22 | J16: 2237.48 | K16: 2186.95 | L16: 2121.1 | M16: 0.12345
A17: 7 | B17: AUBANK | C17: 657.7 | D17: 659.20 | E17: 650.95 | F17: 644.20 | G17: 635.95 | H17: 665.95 | I17: 674.20 | J17: 680.95 | K17: 667.45 | L17: 652.45 | M17: 1.55593
A18: 8 | B18: AARTIIND | C18: 1327.7 | D18: 1317.57 | E18: 1298.13 | F18: 1268.57 | G18: 1249.13 | H18: 1347.13 | I18: 1366.57 | J18: 1396.13 | K18: 1337 | L18: 1288 | M18: 0.71564
A19: 9 | B19: ABAN | C19: 172.4 | D19: 173.15 | E19: 170.55 | F19: 168.70 | G19: 166.10 | H19: 175.00 | I19: 177.60 | J19: 179.45 | K19: 175.75 | L19: 171.3 | M19: 9.24824
A20: 10 | B20: ADANIENT | C20: 136.75 | D20: 137.82 | E20: 134.63 | F20: 132.52 | G20: 129.33 | H20: 139.93 | I20: 143.12 | J20: 145.23 | K20: 141 | L20: 135.7 | M20: 32.9772
A21: 11 | B21: ADANIPORTS | C21: 384.95 | D21: 384.28 | E21: 380.87 | F21: 376.78 | G21: 373.37 | H21: 388.37 | I21: 391.78 | J21: 395.87 | K21: 387.7 | L21: 380.2 | M21: 25.68988
A22: 12 | B22: ADANIPOWER | C22: 25.8 | D22: 25.83 | E22: 25.47 | F22: 25.13 | G22: 24.77 | H22: 26.17 | I22: 26.53 | J22: 26.87 | K22: 26.2 | L22: 25.5 | M22: 295.55267
A23: 13 | B23: ADANITRANS | C23: 174 | D23: 175.68 | E23: 171.42 | F23: 168.83 | G23: 164.57 | H23: 178.27 | I23: 182.53 | J23: 185.12 | K23: 179.95 | L23: 173.1 | M23: 43.22748
A24: 14 | B24: ABFRL | C24: 147.1 | D24: 148.22 | E24: 145.43 | F24: 143.77 | G24: 140.98 | H24: 149.88 | I24: 152.67 | J24: 154.33 | K24: 151 | L24: 146.55 | M24: 3.24944
A25: 15 | B25: ADVENZYMES | C25: 227.15 | D25: 228.55 | E25: 224.60 | F25: 222.05 | G25: 218.10 | H25: 231.10 | I25: 235.05 | J25: 237.60 | K25: 232.5 | L25: 226 | M25: 1.21227
A26: 16 | B26: AEGISCHEM | C26: 283.3 | D26: 283.67 | E26: 281.43 | F26: 279.57 | G26: 277.33 | H26: 285.53 | I26: 287.77 | J26: 289.63 | K26: 285.9 | L26: 281.8 | M26: 0.78915
A27: 17 | B27: AHLUCONT | C27: 420.55 | D27: 423.08 | E27: 416.67 | F27: 412.78 | G27: 406.37 | H27: 426.97 | I27: 433.38 | J27: 437.27 | K27: 429.5 | L27: 419.2 | M27: 0.08008
A28: 18 | B28: AJANTPHARM | C28: 1378.7 | D28: 1379.12 | E28: 1370.73 | F28: 1362.77 | G28: 1354.38 | H28: 1387.08 | I28: 1395.47 | J28: 1403.43 | K28: 1387.5 | L28: 1371.15 | M28: 0.47383
A29: 19 | B29: AKZOINDIA | C29: 1905.8 | D29: 1910.00 | E29: 1900.80 | F29: 1895.80 | G29: 1886.60 | H29: 1915.00 | I29: 1924.20 | J29: 1929.20 | K29: 1919.2 | L29: 1905 | M29: 0.04315
A30: 20 | B30: APLLTD | C30: 499.05 | D30: 502.38 | E30: 493.97 | F30: 488.88 | G30: 480.47 | H30: 507.47 | I30: 515.88 | J30: 520.97 | K30: 510.8 | L30: 497.3 | M30: 0.1187
A31: 21 | B31: ALKEM | C31: 1779.25 | D31: 1771.43 | E31: 1742.87 | F31: 1706.48 | G31: 1677.92 | H31: 1807.82 | I31: 1836.38 | J31: 1872.77 | K31: 1800 | L31: 1735.05 | M31: 0.33063
A32: 22 | B32: ALBK | C32: 51.05 | D32: 51.40 | E32: 50.50 | F32: 49.95 | G32: 49.05 | H32: 51.95 | I32: 52.85 | J32: 53.40 | K32: 52.3 | L32: 50.85 | M32: 24.97065
A33: 23 | B33: ALLCARGO | C33: 149.3 | D33: 150.00 | E33: 148.25 | F33: 147.20 | G33: 145.45 | H33: 151.05 | I33: 152.80 | J33: 153.85 | K33: 151.75 | L33: 148.95 | M33: 1.41383
A34: 24 | B34: AMARAJABAT | C34: 848.85 | D34: 839.37 | E34: 824.88 | F34: 800.92 | G34: 786.43 | H34: 863.33 | I34: 877.82 | J34: 901.78 | K34: 853.85 | L34: 815.4 | M34: 11.9583
A35: 25 | B35: AMBUJACEM | C35: 244.9 | D35: 244.87 | E35: 242.78 | F35: 240.67 | G35: 238.58 | H35: 246.98 | I35: 249.07 | J35: 251.18 | K35: 246.95 | L35: 242.75 | M35: 16.93395
A36: 26 | B36: ANDHRABANK | C36: 42.05 | D36: 42.38 | E36: 41.52 | F36: 40.98 | G36: 40.12 | H36: 42.92 | I36: 43.78 | J36: 44.32 | K36: 43.25 | L36: 41.85 | M36: 37.29309
A37: 27 | B37: APARINDS | C37: 779.5 | D37: 773.80 | E37: 764.70 | F37: 749.90 | G37: 740.80 | H37: 788.60 | I37: 797.70 | J37: 812.50 | K37: 782.9 | L37: 759 | M37: 1.84913
A38: 28 | B38: APOLLOHOSP | C38: 1076.1 | D38: 1079.37 | E38: 1067.73 | F38: 1059.37 | G38: 1047.73 | H38: 1087.73 | I38: 1099.37 | J38: 1107.73 | K38: 1091 | L38: 1071 | M38: 1.54437
A39: 29 | B39: APOLLOTYRE | C39: 289.45 | D39: 292.30 | E39: 285.40 | F39: 281.35 | G39: 274.45 | H39: 296.35 | I39: 303.25 | J39: 307.30 | K39: 299.2 | L39: 288.25 | M39: 35.21201
A40: 30 | B40: ARVIND | C40: 418.3 | D40: 418.82 | E40: 414.43 | F40: 410.57 | G40: 406.18 | H40: 422.68 | I40: 427.07 | J40: 430.93 | K40: 423.2 | L40: 414.95 | M40: 10.87662
A41: 31 | B41: ASHOKLEY | C41: 149.4 | D41: 149.48 | E41: 147.97 | F41: 146.53 | G41: 145.02 | H41: 150.92 | I41: 152.43 | J41: 153.87 | K41: 151 | L41: 148.05 | M41: 134.84322
A42: 32 | B42: ASHOKA | C42: 267.05 | D42: 266.78 | E42: 264.47 | F42: 261.88 | G42: 259.57 | H42: 269.37 | I42: 271.68 | J42: 274.27 | K42: 269.1 | L42: 264.2 | M42: 4.644
A43: 33 | B43: ASIANPAINT | C43: 1172.3 | D43: 1175.10 | E43: 1165.20 | F43: 1158.10 | G43: 1148.20 | H43: 1182.20 | I43: 1192.10 | J43: 1199.20 | K43: 1185 | L43: 1168 | M43: 4.65763
A44: 34 | B44: ASTRAZEN | C44: 1022.35 | D44: 1037.32 | E44: 990.83 | F44: 959.32 | G44: 912.83 | H44: 1068.83 | I44: 1115.32 | J44: 1146.83 | K44: 1083.8 | L44: 1005.8 | M44: 0.39055
A45: 35 | B45: ASTRAL | C45: 922.9 | D45: 930.80 | E45: 912.10 | F45: 901.30 | G45: 882.60 | H45: 941.60 | I45: 960.30 | J45: 971.10 | K45: 949.5 | L45: 920 | M45: 0.33433
A46: 36 | B46: ATUL | C46: 2706.1 | D46: 2720.07 | E46: 2681.13 | F46: 2656.17 | G46: 2617.23 | H46: 2745.03 | I46: 2783.97 | J46: 2808.93 | K46: 2759 | L46: 2695.1 | M46: 0.06347
A47: 37 | B47: AUROPHARMA | C47: 609.5 | D47: 613.80 | E47: 602.70 | F47: 595.90 | G47: 584.80 | H47: 620.60 | I47: 631.70 | J47: 638.50 | K47: 624.9 | L47: 607 | M47: 8.04866
A48: 38 | B48: AVANTIFEED | C48: 2162.5 | D48: 2164.13 | E48: 2148.37 | F48: 2134.23 | G48: 2118.47 | H48: 2178.27 | I48: 2194.03 | J48: 2208.17 | K48: 2179.9 | L48: 2150 | M48: 0.57467
A49: 39 | B49: DMART | C49: 1492.65 | D49: 1495.30 | E49: 1482.60 | F49: 1472.55 | G49: 1459.85 | H49: 1505.35 | I49: 1518.05 | J49: 1528.10 | K49: 1508 | L49: 1485.25 | M49: 4.34205
A50: 40 | B50: AXISBANK | C50: 518.25 | D50: 523.42 | E50: 511.33 | F50: 504.42 | G50: 492.33 | H50: 530.33 | I50: 542.42 | J50: 549.33 | K50: 535.5 | L50: 516.5 | M50: 71.31174
A51: 41 | B51: BASF | C51: 2014.4 | D51: 2021.47 | E51: 1993.93 | F51: 1973.47 | G51: 1945.93 | H51: 2041.93 | I51: 2069.47 | J51: 2089.93 | K51: 2049 | L51: 2001 | M51: 0.03746
A52: 42 | B52: BEML | C52: 1120 | D52: 1123.13 | E52: 1108.87 | F52: 1097.73 | G52: 1083.47 | H52: 1134.27 | I52: 1148.53 | J52: 1159.67 | K52: 1137.4 | L52: 1112 | M52: 2.67775
A53: 43 | B53: BFUTILITIE | C53: 411.85 | D53: 414.08 | E53: 404.87 | F53: 397.88 | G53: 388.67 | H53: 421.07 | I53: 430.28 | J53: 437.27 | K53: 423.3 | L53: 407.1 | M53: 4.28247
A54: 44 | B54: BGRENERGY | C54: 105.25 | D54: 105.93 | E54: 103.97 | F54: 102.68 | G54: 100.72 | H54: 107.22 | I54: 109.18 | J54: 110.47 | K54: 107.9 | L54: 104.65 | M54: 0.7023
A55: 45 | B55: BSE | C55: 825.05 | D55: 825.38 | E55: 820.77 | F55: 816.48 | G55: 811.87 | H55: 829.67 | I55: 834.28 | J55: 838.57 | K55: 830 | L55: 821.1 | M55: 0.81595
A56: 46 | B56: BAJAJ-AUTO | C56: 2862.05 | D56: 2862.25 | E56: 2845.50 | F56: 2828.95 | G56: 2812.20 | H56: 2878.80 | I56: 2895.55 | J56: 2912.10 | K56: 2879 | L56: 2845.7 | M56: 3.52687
A57: 47 | B57: BAJAJCORP | C57: 475.6 | D57: 475.72 | E57: 471.43 | F57: 467.27 | G57: 462.98 | H57: 479.88 | I57: 484.17 | J57: 488.33 | K57: 480 | L57: 471.55 | M57: 0.28572
A58: 48 | B58: BAJAJELEC | C58: 649.4 | D58: 651.28 | E58: 643.62 | F58: 637.83 | G58: 630.17 | H58: 657.07 | I58: 664.73 | J58: 670.52 | K58: 658.95 | L58: 645.5 | M58: 6.31526
A59: 49 | B59: BAJFINANCE | C59: 1926.85 | D59: 1932.90 | E59: 1915.25 | F59: 1903.65 | G59: 1886.00 | H59: 1944.50 | I59: 1962.15 | J59: 1973.75 | K59: 1950.55 | L59: 1921.3 | M59: 4.62905
A60: 50 | B60: BAJAJFINSV | C60: 5371.85 | D60: 5394.52 | E60: 5332.13 | F60: 5292.42 | G60: 5230.03 | H60: 5434.23 | I60: 5496.62 | J60: 5536.33 | K60: 5456.9 | L60: 5354.8 | M60: 0.83355
A61: 51 | B61: BAJAJHIND | C61: 8.95 | D61: 9.07 | E61: 8.78 | F61: 8.62 | G61: 8.33 | H61: 9.23 | I61: 9.52 | J61: 9.68 | K61: 9.35 | L61: 8.9 | M61: 21.07049
A62: 52 | B62: BAJAJHLDNG | C62: 2647.55 | D62: 2649.17 | E62: 2638.38 | F62: 2629.22 | G62: 2618.43 | H62: 2658.33 | I62: 2669.12 | J62: 2678.28 | K62: 2659.95 | L62: 2640 | M62: 0.08254
A63: 53 | B63: BALKRISIND | C63: 1307.15 | D63: 1313.22 | E63: 1296.43 | F63: 1285.72 | G63: 1268.93 | H63: 1323.93 | I63: 1340.72 | J63: 1351.43 | K63: 1330 | L63: 1302.5 | M63: 4.91937
A64: 54 | B64: BALLARPUR | C64: 13.85 | D64: 13.88 | E64: 13.52 | F64: 13.18 | G64: 12.82 | H64: 14.22 | I64: 14.58 | J64: 14.92 | K64: 14.25 | L64: 13.55 | M64: 12.75298
A65: 55 | B65: BALMLAWRIE | C65: 222.5 | D65: 223.10 | E65: 221.60 | F65: 220.70 | G65: 219.20 | H65: 224.00 | I65: 225.50 | J65: 226.40 | K65: 224.6 | L65: 222.2 | M65: 0.43162
A66: 56 | B66: BALRAMCHIN | C66: 70.45 | D66: 71.73 | E66: 68.97 | F66: 67.48 | G66: 64.72 | H66: 73.22 | I66: 75.98 | J66: 77.47 | K66: 74.5 | L66: 70.25 | M66: 73.95211
A67: 57 | B67: BANKBARODA | C67: 141.65 | D67: 143.88 | E67: 138.62 | F67: 135.58 | G67: 130.32 | H67: 146.92 | I67: 152.18 | J67: 155.22 | K67: 149.15 | L67: 140.85 | M67: 171.71761
A68: 58 | B68: BANKINDIA | C68: 109.05 | D68: 109.90 | E68: 107.60 | F68: 106.15 | G68: 103.85 | H68: 111.35 | I68: 113.65 | J68: 115.10 | K68: 112.2 | L68: 108.45 | M68: 79.49925
A69: 59 | B69: BATAINDIA | C69: 775.6 | D69: 776.58 | E69: 769.42 | F69: 763.23 | G69: 756.07 | H69: 782.77 | I69: 789.93 | J69: 796.12 | K69: 783.75 | L69: 770.4 | M69: 5.05963
A70: 60 | B70: BERGEPAINT | C70: 269.5 | D70: 271.77 | E70: 266.03 | F70: 262.57 | G70: 256.83 | H70: 275.23 | I70: 280.97 | J70: 284.43 | K70: 277.5 | L70: 268.3 | M70: 3.9628
A71: 61 | B71: BEL | C71: 138.7 | D71: 139.17 | E71: 137.83 | F71: 136.97 | G71: 135.63 | H71: 140.03 | I71: 141.37 | J71: 142.23 | K71: 140.5 | L71: 138.3 | M71: 45.71473
A72: 62 | B72: BHARATFIN | C72: 1139.25 | D72: 1142.75 | E72: 1130.50 | F72: 1121.75 | G72: 1109.50 | H72: 1151.50 | I72: 1163.75 | J72: 1172.50 | K72: 1155 | L72: 1134 | M72: 3.8275
A73: 63 | B73: BHARATFORG | C73: 736.65 | D73: 738.35 | E73: 730.70 | F73: 724.75 | G73: 717.10 | H73: 744.30 | I73: 751.95 | J73: 757.90 | K73: 746 | L73: 732.4 | M73: 6.0045
A74: 64 | B74: BHEL | C74: 87.85 | D74: 88.07 | E74: 87.18 | F74: 86.52 | G74: 85.63 | H74: 88.73 | I74: 89.62 | J74: 90.28 | K74: 88.95 | L74: 87.4 | M74: 21.78827
A75: 65 | B75: BPCL | C75: 405.2 | D75: 405.58 | E75: 402.17 | F75: 399.13 | G75: 395.72 | H75: 408.62 | I75: 412.03 | J75: 415.07 | K75: 409 | L75: 402.55 | M75: 51.62348
A76: 66 | B76: BHARTIARTL | C76: 384.25 | D76: 386.15 | E76: 380.45 | F76: 376.65 | G76: 370.95 | H76: 389.95 | I76: 395.65 | J76: 399.45 | K76: 391.85 | L76: 382.35 | M76: 57.32851
A77: 67 | B77: INFRATEL | C77: 336.05 | D77: 336.18 | E77: 334.37 | F77: 332.68 | G77: 330.87 | H77: 337.87 | I77: 339.68 | J77: 341.37 | K77: 338 | L77: 334.5 | M77: 28.81187
A78: 68 | B78: BHUSANSTL | C78: 40.4 | D78: 39.43 | E78: 36.37 | F78: 32.33 | G78: 29.27 | H78: 43.47 | I78: 46.53 | J78: 50.57 | K78: 42.5 | L78: 35.4 | M78: 35.20119
A79: 69 | B79: BIOCON | C79: 623.7 | D79: 624.43 | E79: 619.47 | F79: 615.23 | G79: 610.27 | H79: 628.67 | I79: 633.63 | J79: 637.87 | K79: 629.4 | L79: 620.2 | M79: 8.53008
A80: 70 | B80: BIRLACORPN | C80: 750 | D80: 752.70 | E80: 742.85 | F80: 735.70 | G80: 725.85 | H80: 759.85 | I80: 769.70 | J80: 776.85 | K80: 762.55 | L80: 745.55 | M80: 0.57247
A81: 71 | B81: BLISSGVS | C81: 200.6 | D81: 201.62 | E81: 198.98 | F81: 197.37 | G81: 194.73 | H81: 203.23 | I81: 205.87 | J81: 207.48 | K81: 204.25 | L81: 200 | M81: 2.56048
A82: 72 | B82: BLUEDART | C82: 3803.75 | D82: 3808.97 | E82: 3779.93 | F82: 3756.12 | G82: 3727.08 | H82: 3832.78 | I82: 3861.82 | J82: 3885.63 | K82: 3838 | L82: 3785.15 | M82: 0.10197
A83: 73 | B83: BLUESTARCO | C83: 779.95 | D83: 780.68 | E83: 774.37 | F83: 768.78 | G83: 762.47 | H83: 786.27 | I83: 792.58 | J83: 798.17 | K83: 787 | L83: 775.1 | M83: 0.71889
A84: 74 | B84: BBTC | C84: 1368.95 | D84: 1344.65 | E84: 1294.30 | F84: 1219.65 | G84: 1169.30 | H84: 1419.30 | I84: 1469.65 | J84: 1544.30 | K84: 1395 | L84: 1270 | M84: 14.14411
A85: 75 | B85: BOMDYEING | C85: 267.7 | D85: 267.90 | E85: 261.30 | F85: 254.90 | G85: 248.30 | H85: 274.30 | I85: 280.90 | J85: 287.30 | K85: 274.5 | L85: 261.5 | M85: 60.86042
A86: 76 | B86: BRFL | C86: 34.2 | D86: 34.80 | E86: 33.60 | F86: 33.00 | G86: 31.80 | H86: 35.40 | I86: 36.60 | J86: 37.20 | K86: 36 | L86: 34.2 | M86: 1.61797
A87: 77 | B87: BOSCHLTD | C87: 19400.8 | D87: 19440.47 | E87: 19285.93 | F87: 19171.07 | G87: 19016.53 | H87: 19555.33 | I87: 19709.87 | J87: 19824.73 | K87: 19595 | L87: 19325.6 | M87: 0.08661
A88: 78 | B88: BRIGADE | C88: 246.7 | D88: 248.30 | E88: 244.60 | F88: 242.50 | G88: 238.80 | H88: 250.40 | I88: 254.10 | J88: 256.20 | K88: 252 | L88: 246.2 | M88: 0.37096
A89: 79 | B89: BRITANNIA | C89: 5361.65 | D89: 5357.02 | E89: 5325.63 | F89: 5289.62 | G89: 5258.23 | H89: 5393.03 | I89: 5424.42 | J89: 5460.43 | K89: 5388.4 | L89: 5321 | M89: 0.64895
A90: 80 | B90: CARERATING | C90: 1300.75 | D90: 1295.23 | E90: 1281.77 | F90: 1262.78 | G90: 1249.32 | H90: 1314.22 | I90: 1327.68 | J90: 1346.67 | K90: 1308.7 | L90: 1276.25 | M90: 0.5442
A91: 81 | B91: CCL | C91: 289.65 | D91: 290.47 | E91: 287.28 | F91: 284.92 | G91: 281.73 | H91: 292.83 | I91: 296.02 | J91: 298.38 | K91: 293.65 | L91: 288.1 | M91: 0.21515
A92: 82 | B92: CGPOWER | C92: 81.95 | D92: 82.27 | E92: 81.23 | F92: 80.52 | G92: 79.48 | H92: 82.98 | I92: 84.02 | J92: 84.73 | K92: 83.3 | L92: 81.55 | M92: 10.17743
A93: 83 | B93: CRISIL | C93: 1942.1 | D93: 1950.93 | E93: 1921.32 | F93: 1900.53 | G93: 1870.92 | H93: 1971.72 | I93: 2001.33 | J93: 2022.12 | K93: 1980.55 | L93: 1930.15 | M93: 0.40573
A94: 84 | B94: CADILAHC | C94: 385.1 | D94: 386.47 | E94: 381.98 | F94: 378.87 | G94: 374.38 | H94: 389.58 | I94: 394.07 | J94: 397.18 | K94: 390.95 | L94: 383.35 | M94: 4.79171
A95: 85 | B95: CANFINHOME | C95: 441.55 | D95: 443.15 | E95: 438.40 | F95: 435.25 | G95: 430.50 | H95: 446.30 | I95: 451.05 | J95: 454.20 | K95: 447.9 | L95: 440 | M95: 3.3635
A96: 86 | B96: CANBK | C96: 277.3 | D96: 278.02 | E96: 273.58 | F96: 269.87 | G96: 265.43 | H96: 281.73 | I96: 286.17 | J96: 289.88 | K96: 282.45 | L96: 274.3 | M96: 88.12949
A97: 87 | B97: CAPF | C97: 650.2 | D97: 653.02 | E97: 645.33 | F97: 640.47 | G97: 632.78 | H97: 657.88 | I97: 665.57 | J97: 670.43 | K97: 660.7 | L97: 648.15 | M97: 3.67904
A98: 88 | B98: CAPLIPOINT | C98: 598.4 | D98: 599.80 | E98: 595.10 | F98: 591.80 | G98: 587.10 | H98: 603.10 | I98: 607.80 | J98: 611.10 | K98: 604.5 | L98: 596.5 | M98: 0.13349
A99: 89 | B99: CARBORUNIV | C99: 358.5 | D99: 363.00 | E99: 352.00 | F99: 345.50 | G99: 334.50 | H99: 369.50 | I99: 380.50 | J99: 387.00 | K99: 374 | L99: 356.5 | M99: 0.68513
A100: 90 | B100: CASTROLIND | C100: 207.8 | D100: 209.43 | E100: 205.52 | F100: 203.23 | G100: 199.32 | H100: 211.72 | I100: 215.63 | J100: 217.92 | K100: 213.35 | L100: 207.15 | M100: 16.99905
A101: 91 | B101: CEATLTD | C101: 1596.8 | D101: 1606.93 | E101: 1578.87 | F101: 1560.93 | G101: 1532.87 | H101: 1624.87 | I101: 1652.93 | J101: 1670.87 | K101: 1635 | L101: 1589 | M101: 4.7833
A102: 92 | B102: CENTRALBK | C102: 69.65 | D102: 69.87 | E102: 69.03 | F102: 68.42 | G102: 67.58 | H102: 70.48 | I102: 71.32 | J102: 71.93 | K102: 70.7 | L102: 69.25 | M102: 6.59563
A103: 93 | B103: CENTURYPLY | C103: 343.85 | D103: 343.00 | E103: 341.00 | F103: 338.15 | G103: 336.15 | H103: 345.85 | I103: 347.85 | J103: 350.70 | K103: 345 | L103: 340.15 | M103: 0.77129
A104: 94 | B104: CENTURYTEX | C104: 1221.7 | D104: 1226.23 | E104: 1212.47 | F104: 1203.23 | G104: 1189.47 | H104: 1235.47 | I104: 1249.23 | J104: 1258.47 | K104: 1240 | L104: 1217 | M104: 4.23982
A105: 95 | B105: CERA | C105: 3197.25 | D105: 3217.42 | E105: 3164.83 | F105: 3132.42 | G105: 3079.83 | H105: 3249.83 | I105: 3302.42 | J105: 3334.83 | K105: 3270 | L105: 3185 | M105: 0.04991
A106: 96 | B106: CHAMBLFERT | C106: 178.45 | D106: 177.78 | E106: 175.17 | F106: 171.88 | G106: 169.27 | H106: 181.07 | I106: 183.68 | J106: 186.97 | K106: 180.4 | L106: 174.5 | M106: 6.71042
A107: 97 | B107: CHENNPETRO | C107: 331.55 | D107: 333.10 | E107: 328.65 | F107: 325.75 | G107: 321.30 | H107: 336.00 | I107: 340.45 | J107: 343.35 | K107: 337.55 | L107: 330.2 | M107: 2.86309
A108: 98 | B108: CHOLAFIN | C108: 1578.95 | D108: 1585.98 | E108: 1567.97 | F108: 1556.98 | G108: 1538.97 | H108: 1596.97 | I108: 1614.98 | J108: 1625.97 | K108: 1604 | L108: 1575 | M108: 2.32558
A109: 99 | B109: CIPLA | C109: 584.6 | D109: 587.87 | E109: 578.73 | F109: 572.87 | G109: 563.73 | H109: 593.73 | I109: 602.87 | J109: 608.73 | K109: 597 | L109: 582 | M109: 38.53951
A110: 100 | B110: CUB | C110: 179.8 | D110: 178.67 | E110: 175.43 | F110: 171.07 | G110: 167.83 | H110: 183.03 | I110: 186.27 | J110: 190.63 | K110: 181.9 | L110: 174.3 | M110: 3.82602
A111: 101 | B111: COALINDIA | C111: 285.1 | D111: 285.48 | E111: 282.52 | F111: 279.93 | G111: 276.97 | H111: 288.07 | I111: 291.03 | J111: 293.62 | K111: 288.45 | L111: 282.9 | M111: 14.33406
A112: 102 | B112: COCHINSHIP | C112: 526.75 | D112: 525.00 | E112: 520.75 | F112: 514.75 | G112: 510.50 | H112: 531.00 | I112: 535.25 | J112: 541.25 | K112: 529.25 | L112: 519 | M112: 0.51685
A113: 103 | B113: COFFEEDAY | C113: 304.15 | D113: 304.42 | E113: 301.93 | F113: 299.72 | G113: 297.23 | H113: 306.63 | I113: 309.12 | J113: 311.33 | K113: 306.9 | L113: 302.2 | M113: 0.54926
A114: 104 | B114: COLPAL | C114: 1105.25 | D114: 1102.60 | E114: 1094.95 | F114: 1084.65 | G114: 1077.00 | H114: 1112.90 | I114: 1120.55 | J114: 1130.85 | K114: 1110.25 | L114: 1092.3 | M114: 4.00221
A115: 105 | B115: CONCOR | C115: 1345.4 | D115: 1355.88 | E115: 1331.77 | F115: 1318.13 | G115: 1294.02 | H115: 1369.52 | I115: 1393.63 | J115: 1407.27 | K115: 1380 | L115: 1342.25 | M115: 2.20585
A116: 106 | B116: COROMANDEL | C116: 520.5 | D116: 523.48 | E116: 512.22 | F116: 503.93 | G116: 492.67 | H116: 531.77 | I116: 543.03 | J116: 551.32 | K116: 534.75 | L116: 515.2 | M116: 1.51656
A117: 107 | B117: CORPBANK | C117: 30.65 | D117: 30.75 | E117: 30.40 | F117: 30.15 | G117: 29.80 | H117: 31.00 | I117: 31.35 | J117: 31.60 | K117: 31.1 | L117: 30.5 | M117: 1.36364
A118: 108 | B118: COX&KINGS | C118: 236.65 | D118: 238.93 | E118: 232.87 | F118: 229.08 | G118: 223.02 | H118: 242.72 | I118: 248.78 | J118: 252.57 | K118: 245 | L118: 235.15 | M118: 1.58808
A119: 109 | B119: CROMPTON | C119: 226.2 | D119: 226.03 | E119: 224.42 | F119: 222.63 | G119: 221.02 | H119: 227.82 | I119: 229.43 | J119: 231.22 | K119: 227.65 | L119: 224.25 | M119: 9.48507
A120: 110 | B120: CUMMINSIND | C120: 730.4 | D120: 730.50 | E120: 722.90 | F120: 715.40 | G120: 707.80 | H120: 738.00 | I120: 745.60 | J120: 753.10 | K120: 738.1 | L120: 723 | M120: 4.46868
A121: 111 | B121: CYIENT | C121: 643.25 | D121: 648.65 | E121: 633.10 | F121: 622.95 | G121: 607.40 | H121: 658.80 | I121: 674.35 | J121: 684.50 | K121: 664.2 | L121: 638.5 | M121: 2.19223
A122: 112 | B122: DBREALTY | C122: 60.05 | D122: 61.75 | E122: 57.80 | F122: 55.55 | G122: 51.60 | H122: 64.00 | I122: 67.95 | J122: 70.20 | K122: 65.7 | L122: 59.5 | M122: 11.56622
A123: 113 | B123: DBCORP | C123: 312.45 | D123: 314.50 | E123: 309.00 | F123: 305.55 | G123: 300.05 | H123: 317.95 | I123: 323.45 | J123: 326.90 | K123: 320 | L123: 311.05 | M123: 0.60882
A124: 114 | B124: DCBBANK | C124: 197 | D124: 198.82 | E124: 193.98 | F124: 190.97 | G124: 186.13 | H124: 201.83 | I124: 206.67 | J124: 209.68 | K124: 203.65 | L124: 195.8 | M124: 110.01666
A125: 115 | B125: DCMSHRIRAM | C125: 446.4 | D125: 447.87 | E125: 431.73 | F125: 417.07 | G125: 400.93 | H125: 462.53 | I125: 478.67 | J125: 493.33 | K125: 464 | L125: 433.2 | M125: 5.09116
A126: 116 | B126: DLF | C126: 212.5 | D126: 214.42 | E126: 209.33 | F126: 206.17 | G126: 201.08 | H126: 217.58 | I126: 222.67 | J126: 225.83 | K126: 219.5 | L126: 211.25 | M126: 62.46878
A127: 117 | B127: DABUR | C127: 355.85 | D127: 353.57 | E127: 349.78 | F127: 343.72 | G127: 339.93 | H127: 359.63 | I127: 363.42 | J127: 369.48 | K127: 357.35 | L127: 347.5 | M127: 25.52706
A128: 118 | B128: DALMIABHA | C128: 2890.25 | D128: 2872.75 | E128: 2837.55 | F128: 2784.85 | G128: 2749.65 | H128: 2925.45 | I128: 2960.65 | J128: 3013.35 | K128: 2907.95 | L128: 2820.05 | M128: 1.13893
A129: 119 | B129: DEEPAKFERT | C129: 371.85 | D129: 372.40 | E129: 364.45 | F129: 357.05 | G129: 349.10 | H129: 379.80 | I129: 387.75 | J129: 395.15 | K129: 380.35 | L129: 365 | M129: 2.30584
A130: 120 | B130: DELTACORP | C130: 284.75 | D130: 282.88 | E130: 278.87 | F130: 272.98 | G130: 268.97 | H130: 288.77 | I130: 292.78 | J130: 298.67 | K130: 286.9 | L130: 277 | M130: 31.35219
A131: 121 | B131: DEN | C131: 105.05 | D131: 105.10 | E131: 103.40 | F131: 101.75 | G131: 100.05 | H131: 106.75 | I131: 108.45 | J131: 110.10 | K131: 106.8 | L131: 103.45 | M131: 1.73171
A132: 122 | B132: DENABANK | C132: 19.15 | D132: 19.22 | E132: 18.88 | F132: 18.62 | G132: 18.28 | H132: 19.48 | I132: 19.82 | J132: 20.08 | K132: 19.55 | L132: 18.95 | M132: 8.08048
A133: 123 | B133: DHFL | C133: 593.15 | D133: 595.85 | E133: 587.90 | F133: 582.65 | G133: 574.70 | H133: 601.10 | I133: 609.05 | J133: 614.30 | K133: 603.8 | L133: 590.6 | M133: 82.49266
A134: 124 | B134: DHANUKA | C134: 600.55 | D134: 601.38 | E134: 595.77 | F134: 590.98 | G134: 585.37 | H134: 606.17 | I134: 611.78 | J134: 616.57 | K134: 607 | L134: 596.6 | M134: 0.06711
A135: 125 | B135: DBL | C135: 1140.7 | D135: 1144.83 | E135: 1126.97 | F135: 1113.23 | G135: 1095.37 | H135: 1158.57 | I135: 1176.43 | J135: 1190.17 | K135: 1162.7 | L135: 1131.1 | M135: 1.15469
A136: 126 | B136: DISHTV | C136: 77.6 | D136: 78.05 | E136: 76.85 | F136: 76.10 | G136: 74.90 | H136: 78.80 | I136: 80.00 | J136: 80.75 | K136: 79.25 | L136: 77.3 | M136: 45.88318
A137: 127 | B137: DIVISLAB | C137: 1174.9 | D137: 1183.10 | E137: 1162.80 | F137: 1150.70 | G137: 1130.40 | H137: 1195.20 | I137: 1215.50 | J137: 1227.60 | K137: 1203.4 | L137: 1171 | M137: 8.79419
A138: 128 | B138: LALPATHLAB | C138: 855.2 | D138: 858.87 | E138: 847.78 | F138: 840.37 | G138: 829.28 | H138: 866.28 | I138: 877.37 | J138: 884.78 | K138: 869.95 | L138: 851.45 | M138: 1.29416
A139: 129 | B139: DRREDDY | C139: 2101.65 | D139: 2103.32 | E139: 2089.38 | F139: 2077.12 | G139: 2063.18 | H139: 2115.58 | I139: 2129.52 | J139: 2141.78 | K139: 2117.25 | L139: 2091.05 | M139: 2.27808
A140: 130 | B140: DREDGECORP | C140: 615.55 | D140: 618.07 | E140: 609.48 | F140: 603.42 | G140: 594.83 | H140: 624.13 | I140: 632.72 | J140: 638.78 | K140: 626.65 | L140: 612 | M140: 0.76693
A141: 131 | B141: EIDPARRY | C141: 274.2 | D141: 276.12 | E141: 270.83 | F141: 267.47 | G141: 262.18 | H141: 279.48 | I141: 284.77 | J141: 288.13 | K141: 281.4 | L141: 272.75 | M141: 0.48654
A142: 132 | B142: EIHOTEL | C142: 198.25 | D142: 202.67 | E142: 192.08 | F142: 185.92 | G142: 175.33 | H142: 208.83 | I142: 219.42 | J142: 225.58 | K142: 213.25 | L142: 196.5 | M142: 30.30008
A143: 133 | B143: EDELWEISS | C143: 273.75 | D143: 274.07 | E143: 271.68 | F143: 269.62 | G143: 267.23 | H143: 276.13 | I143: 278.52 | J143: 280.58 | K143: 276.45 | L143: 272 | M143: 9.01124
A144: 134 | B144: EICHERMOT | C144: 30873.9 | D144: 31003.72 | E144: 30670.18 | F144: 30466.47 | G144: 30132.93 | H144: 31207.43 | I144: 31540.97 | J144: 31744.68 | K144: 31337.25 | L144: 30800 | M144: 0.2224
A145: 135 | B145: EMAMILTD | C145: 1135.85 | D145: 1138.15 | E145: 1127.80 | F145: 1119.75 | G145: 1109.40 | H145: 1146.20 | I145: 1156.55 | J145: 1164.60 | K145: 1148.5 | L145: 1130.1 | M145: 0.59995
A146: 136 | B146: ENDURANCE | C146: 1314.75 | D146: 1320.92 | E146: 1301.83 | F146: 1288.92 | G146: 1269.83 | H146: 1333.83 | I146: 1352.92 | J146: 1365.83 | K146: 1340 | L146: 1308 | M146: 0.21692
A147: 137 | B147: ENGINERSIN | C147: 156.6 | D147: 157.30 | E147: 155.60 | F147: 154.60 | G147: 152.90 | H147: 158.30 | I147: 160.00 | J147: 161.00 | K147: 159 | L147: 156.3 | M147: 14.29045
A148: 138 | B148: EQUITAS | C148: 151.55 | D148: 152.78 | E148: 149.42 | F148: 147.28 | G148: 143.92 | H148: 154.92 | I148: 158.28 | J148: 160.42 | K148: 156.15 | L148: 150.65 | M148: 10.85846
A149: 139 | B149: EROSMEDIA | C149: 179.35 | D149: 180.20 | E149: 177.40 | F149: 175.45 | G149: 172.65 | H149: 182.15 | I149: 184.95 | J149: 186.90 | K149: 183 | L149: 178.25 | M149: 2.06735
A150: 140 | B150: ESCORTS | C150: 964.35 | D150: 969.15 | E150: 957.45 | F150: 950.55 | G150: 938.85 | H150: 976.05 | I150: 987.75 | J150: 994.65 | K150: 980.85 | L150: 962.25 | M150: 9.63565
A151: 141 | B151: ESSELPACK | C151: 257.25 | D151: 257.85 | E151: 254.40 | F151: 251.55 | G151: 248.10 | H151: 260.70 | I151: 264.15 | J151: 267.00 | K151: 261.3 | L151: 255 | M151: 0.25804
A152: 142 | B152: EVEREADY | C152: 369.75 | D152: 370.92 | E152: 365.88 | F152: 362.02 | G152: 356.98 | H152: 374.78 | I152: 379.82 | J152: 383.68 | K152: 375.95 | L152: 367.05 | M152: 0.40923
A153: 143 | B153: EXIDEIND | C153: 242.8 | D153: 243.47 | E153: 239.93 | F153: 237.07 | G153: 233.53 | H153: 246.33 | I153: 249.87 | J153: 252.73 | K153: 247 | L153: 240.6 | M153: 23.41475
A154: 144 | B154: FEDERALBNK | C154: 99.2 | D154: 99.93 | E154: 98.27 | F154: 97.33 | G154: 95.67 | H154: 100.87 | I154: 102.53 | J154: 103.47 | K154: 101.6 | L154: 99 | M154: 122.51759
A155: 145 | B155: FINCABLES | C155: 694.8 | D155: 696.68 | E155: 688.67 | F155: 682.53 | G155: 674.52 | H155: 702.82 | I155: 710.83 | J155: 716.97 | K155: 704.7 | L155: 690.55 | M155: 0.34728
A156: 146 | B156: FINPIPE | C156: 650.55 | D156: 653.60 | E156: 646.30 | F156: 642.05 | G156: 634.75 | H156: 657.85 | I156: 665.15 | J156: 669.40 | K156: 660.9 | L156: 649.35 | M156: 0.40477
A157: 147 | B157: FSL | C157: 58.45 | D157: 58.12 | E157: 57.08 | F157: 55.72 | G157: 54.68 | H157: 59.48 | I157: 60.52 | J157: 61.88 | K157: 59.15 | L157: 56.75 | M157: 85.09081
A158: 148 | B158: FCONSUMER | C158: 58.7 | D158: 58.92 | E158: 57.78 | F158: 56.87 | G158: 55.73 | H158: 59.83 | I158: 60.97 | J158: 61.88 | K158: 60.05 | L158: 58 | M158: 29.34626
A159: 149 | B159: FLFL | C159: 447.9 | D159: 450.63 | E159: 442.27 | F159: 436.63 | G159: 428.27 | H159: 456.27 | I159: 464.63 | J159: 470.27 | K159: 459 | L159: 445 | M159: 0.31161
A160: 150 | B160: GAIL | C160: 330.65 | D160: 329.73 | E160: 326.92 | F160: 323.18 | G160: 320.37 | H160: 333.47 | I160: 336.28 | J160: 340.02 | K160: 332.55 | L160: 326 | M160: 21.41002
A161: 151 | B161: GEPIL | C161: 855.15 | D161: 861.05 | E161: 845.10 | F161: 835.05 | G161: 819.10 | H161: 871.10 | I161: 887.05 | J161: 897.10 | K161: 877 | L161: 851 | M161: 0.05857
A162: 152 | B162: GET&D | C162: 375 | D162: 374.60 | E162: 371.40 | F162: 367.80 | G162: 364.60 | H162: 378.20 | I162: 381.40 | J162: 385.00 | K162: 377.8 | L162: 371 | M162: 0.29557
A163: 153 | B163: GHCL | C163: 285.35 | D163: 288.50 | E163: 281.00 | F163: 276.65 | G163: 269.15 | H163: 292.85 | I163: 300.35 | J163: 304.70 | K163: 296 | L163: 284.15 | M163: 7.62592
A164: 154 | B164: GMRINFRA | C164: 19.7 | D164: 19.83 | E164: 19.47 | F164: 19.23 | G164: 18.87 | H164: 20.07 | I164: 20.43 | J164: 20.67 | K164: 20.2 | L164: 19.6 | M164: 214.87532
A165: 155 | B165: GVKPIL | C165: 15.5 | D165: 15.65 | E165: 15.30 | F165: 15.10 | G165: 14.75 | H165: 15.85 | I165: 16.20 | J165: 16.40 | K165: 16 | L165: 15.45 | M165: 18.92472
A166: 156 | B166: GDL | C166: 183.4 | D166: 181.57 | E166: 178.13 | F166: 172.87 | G166: 169.43 | H166: 186.83 | I166: 190.27 | J166: 195.53 | K166: 185 | L166: 176.3 | M166: 1.67847
A167: 157 | B167: GATI | C167: 99.9 | D167: 100.30 | E167: 99.10 | F167: 98.30 | G167: 97.10 | H167: 101.10 | I167: 102.30 | J167: 103.10 | K167: 101.5 | L167: 99.5 | M167: 3.25367
A168: 158 | B168: GILLETTE | C168: 6547.2 | D168: 6563.73 | E168: 6488.47 | F168: 6429.73 | G168: 6354.47 | H168: 6622.47 | I168: 6697.73 | J168: 6756.47 | K168: 6639 | L168: 6505 | M168: 0.03433
A169: 159 | B169: GSKCONS | C169: 5911.4 | D169: 5909.93 | E169: 5877.87 | F169: 5844.33 | G169: 5812.27 | H169: 5943.47 | I169: 5975.53 | J169: 6009.07 | K169: 5942 | L169: 5876.4 | M169: 0.30745
A170: 160 | B170: GLAXO | C170: 2360.2 | D170: 2368.17 | E170: 2334.33 | F170: 2308.47 | G170: 2274.63 | H170: 2394.03 | I170: 2427.87 | J170: 2453.73 | K170: 2402 | L170: 2342.3 | M170: 0.09895
A171: 161 | B171: GLENMARK | C171: 566.85 | D171: 572.00 | E171: 559.10 | F171: 551.35 | G171: 538.45 | H171: 579.75 | I171: 592.65 | J171: 600.40 | K171: 584.9 | L171: 564.25 | M171: 9.07017
A172: 162 | B172: GODFRYPHLP | C172: 876.6 | D172: 878.85 | E172: 868.55 | F172: 860.50 | G172: 850.20 | H172: 886.90 | I172: 897.20 | J172: 905.25 | K172: 889.15 | L172: 870.8 | M172: 0.46004
A173: 163 | B173: GODREJCP | C173: 1131.3 | D173: 1115.97 | E173: 1091.13 | F173: 1050.97 | G173: 1026.13 | H173: 1156.13 | I173: 1180.97 | J173: 1221.13 | K173: 1140.8 | L173: 1075.8 | M173: 14.77714
A174: 164 | B174: GODREJIND | C174: 591.2 | D174: 587.58 | E174: 580.02 | F174: 568.83 | G174: 561.27 | H174: 598.77 | I174: 606.33 | J174: 617.52 | K174: 595.15 | L174: 576.4 | M174: 9.44505
A175: 165 | B175: GODREJPROP | C175: 789.05 | D175: 782.72 | E175: 771.43 | F175: 753.82 | G175: 742.53 | H175: 800.33 | I175: 811.62 | J175: 829.23 | K175: 794 | L175: 765.1 | M175: 5.43799
A176: 166 | B176: GRANULES | C176: 107.15 | D176: 107.75 | E176: 106.10 | F176: 105.05 | G176: 103.40 | H176: 108.80 | I176: 110.45 | J176: 111.50 | K176: 109.4 | L176: 106.7 | M176: 5.92512
A177: 167 | B177: GESHIP | C177: 332.65 | D177: 336.05 | E177: 327.80 | F177: 322.95 | G177: 314.70 | H177: 340.90 | I177: 349.15 | J177: 354.00 | K177: 344.3 | L177: 331.2 | M177: 0.78651
A178: 168 | B178: GREAVESCOT | C178: 124.7 | D178: 123.43 | E178: 120.87 | F178: 117.03 | G178: 114.47 | H178: 127.27 | I178: 129.83 | J178: 133.67 | K178: 126 | L178: 119.6 | M178: 11.57007
A179: 169 | B179: GREENPLY | C179: 314.1 | D179: 314.55 | E179: 312.10 | F179: 310.10 | G179: 307.65 | H179: 316.55 | I179: 319.00 | J179: 321.00 | K179: 317 | L179: 312.55 | M179: 0.25173
A180: 170 | B180: GRUH | C180: 639.65 | D180: 641.95 | E180: 635.70 | F180: 631.75 | G180: 625.50 | H180: 645.90 | I180: 652.15 | J180: 656.10 | K180: 648.2 | L180: 638 | M180: 1.67923
A181: 171 | B181: GUJALKALI | C181: 775.85 | D181: 777.68 | E181: 770.37 | F181: 764.88 | G181: 757.57 | H181: 783.17 | I181: 790.48 | J181: 795.97 | K181: 785 | L181: 772.2 | M181: 0.55073
A182: 172 | B182: GUJFLUORO | C182: 850.1 | D182: 854.70 | E182: 840.40 | F182: 830.70 | G182: 816.40 | H182: 864.40 | I182: 878.70 | J182: 888.40 | K182: 869 | L182: 845 | M182: 0.26731
A183: 173 | B183: GUJGASLTD | C183: 859.65 | D183: 861.08 | E183: 852.17 | F183: 844.68 | G183: 835.77 | H183: 868.57 | I183: 877.48 | J183: 884.97 | K183: 870 | L183: 853.6 | M183: 0.19609
A184: 174 | B184: GMDCLTD | C184: 137.55 | D184: 138.23 | E184: 136.47 | F184: 135.38 | G184: 133.62 | H184: 139.32 | I184: 141.08 | J184: 142.17 | K184: 140 | L184: 137.15 | M184: 0.62729
A185: 175 | B185: GNFC | C185: 410.95 | D185: 412.10 | E185: 405.70 | F185: 400.45 | G185: 394.05 | H185: 417.35 | I185: 423.75 | J185: 429.00 | K185: 418.5 | L185: 406.85 | M185: 11.78498
A186: 176 | B186: GPPL | C186: 143.15 | D186: 144.37 | E186: 141.03 | F186: 138.92 | G186: 135.58 | H186: 146.48 | I186: 149.82 | J186: 151.93 | K186: 147.7 | L186: 142.25 | M186: 1.32965
A187: 177 | B187: GSFC | C187: 126.3 | D187: 127.13 | E187: 124.82 | F187: 123.33 | G187: 121.02 | H187: 128.62 | I187: 130.93 | J187: 132.42 | K187: 129.45 | L187: 125.65 | M187: 9.05248
A188: 178 | B188: GSPL | C188: 187.2 | D188: 186.95 | E188: 185.25 | F188: 183.30 | G188: 181.60 | H188: 188.90 | I188: 190.60 | J188: 192.55 | K188: 188.65 | L188: 185 | M188: 3.38916
A189: 179 | B189: GULFOILLUB | C189: 907.6 | D189: 911.20 | E189: 892.40 | F189: 877.20 | G189: 858.40 | H189: 926.40 | I189: 945.20 | J189: 960.40 | K189: 930 | L189: 896 | M189: 2.40942
A190: 180 | B190: HCL-INSYS | C190: 53.9 | D190: 54.07 | E190: 53.13 | F190: 52.37 | G190: 51.43 | H190: 54.83 | I190: 55.77 | J190: 56.53 | K190: 55 | L190: 53.3 | M190: 30.46373
A191: 181 | B191: HCLTECH | C191: 996.85 | D191: 1001.88 | E191: 987.97 | F191: 979.08 | G191: 965.17 | H191: 1010.77 | I191: 1024.68 | J191: 1033.57 | K191: 1015.8 | L191: 993 | M191: 10.04131
A192: 182 | B192: HDFCBANK | C192: 1932.6 | D192: 1938.72 | E192: 1923.93 | F192: 1915.27 | G192: 1900.48 | H192: 1947.38 | I192: 1962.17 | J192: 1970.83 | K192: 1953.5 | L192: 1930.05 | M192: 6.7818
A193: 183 | B193: HSIL | C193: 395.4 | D193: 397.82 | E193: 392.58 | F193: 389.77 | G193: 384.53 | H193: 400.63 | I193: 405.87 | J193: 408.68 | K193: 403.05 | L193: 395 | M193: 0.43086
A194: 184 | B194: HTMEDIA | C194: 86.75 | D194: 87.12 | E194: 85.73 | F194: 84.72 | G194: 83.33 | H194: 88.13 | I194: 89.52 | J194: 90.53 | K194: 88.5 | L194: 86.1 | M194: 2.01876
A195: 185 | B195: HATHWAY | C195: 40.65 | D195: 40.48 | E195: 38.57 | F195: 36.48 | G195: 34.57 | H195: 42.57 | I195: 44.48 | J195: 46.57 | K195: 42.4 | L195: 38.4 | M195: 44.98741
A196: 186 | B196: HATSUN | C196: 751.7 | D196: 751.23 | E196: 730.47 | F196: 709.23 | G196: 688.47 | H196: 772.47 | I196: 793.23 | J196: 814.47 | K196: 772 | L196: 730 | M196: 2.5524
A197: 187 | B197: HAVELLS | C197: 547.25 | D197: 549.23 | E197: 543.67 | F197: 540.08 | G197: 534.52 | H197: 552.82 | I197: 558.38 | J197: 561.97 | K197: 554.8 | L197: 545.65 | M197: 11.29693
A198: 188 | B198: HEIDELBERG | C198: 154.1 | D198: 154.53 | E198: 152.77 | F198: 151.43 | G198: 149.67 | H198: 155.87 | I198: 157.63 | J198: 158.97 | K198: 156.3 | L198: 153.2 | M198: 1.44168
A199: 189 | B199: HERITGFOOD | C199: 724.75 | D199: 725.52 | E199: 719.23 | F199: 713.72 | G199: 707.43 | H199: 731.03 | I199: 737.32 | J199: 742.83 | K199: 731.8 | L199: 720 | M199: 2.23974
A200: 190 | B200: HEROMOTOCO | C200: 3737.8 | D200: 3751.13 | E200: 3718.27 | F200: 3698.73 | G200: 3665.87 | H200: 3770.67 | I200: 3803.53 | J200: 3823.07 | K200: 3784 | L200: 3731.6 | M200: 2.04458
A201: 191 | B201: HEXAWARE | C201: 416.1 | D201: 419.37 | E201: 410.33 | F201: 404.57 | G201: 395.53 | H201: 425.13 | I201: 434.17 | J201: 439.93 | K201: 428.4 | L201: 413.6 | M201: 40.03152
A202: 192 | B202: HFCL | C202: 27.15 | D202: 27.30 | E202: 26.90 | F202: 26.65 | G202: 26.25 | H202: 27.55 | I202: 27.95 | J202: 28.20 | K202: 27.7 | L202: 27.05 | M202: 21.29816
A203: 193 | B203: HIMATSEIDE | C203: 391.9 | D203: 393.82 | E203: 387.73 | F203: 383.57 | G203: 377.48 | H203: 397.98 | I203: 404.07 | J203: 408.23 | K203: 399.9 | L203: 389.65 | M203: 0.45342
A204: 194 | B204: HINDALCO | C204: 242.8 | D204: 241.20 | E204: 237.65 | F204: 232.50 | G204: 228.95 | H204: 246.35 | I204: 249.90 | J204: 255.05 | K204: 244.75 | L204: 236.05 | M204: 233.23232
A205: 195 | B205: HCC | C205: 24.6 | D205: 24.75 | E205: 24.25 | F205: 23.90 | G205: 23.40 | H205: 25.10 | I205: 25.60 | J205: 25.95 | K205: 25.25 | L205: 24.4 | M205: 34.87821
A206: 196 | B206: HINDCOPPER | C206: 71.4 | D206: 71.83 | E206: 70.77 | F206: 70.13 | G206: 69.07 | H206: 72.47 | I206: 73.53 | J206: 74.17 | K206: 72.9 | L206: 71.2 | M206: 9.556
... 306 more rows

Sheet Bulk Deals
E6: Back To Main Page
A7: Subject : | B7: BULK DEAL | D7: =Main!B10 -> 2018-04-19
A9: Date | B9: Scrip code | C9: Scrip Name | D9: Client Name | E9: Buy / Sell | F9: Quantity Traded | G9: Trade Price / Wt.Avg.trade price | H9: Exchange
A10: 2018-04-18 | B10: 537766 | C10: BCP | D10: SURESH PANNALAL JAIN | E10: SELL | F10: 500 | G10: 164.1 | H10: BSE
A11: 2018-04-18 | B11: 537766 | C11: BCP | D11: SURESH PANNALAL JAIN | E11: BUY | F11: 64,900 | G11: 164.26 | H11: BSE
A12: 2018-04-18 | B12: 538566 | C12: BESTSTEEL | D12: GURMEET SINGH | E12: SELL | F12: 240,464 | G12: 147 | H12: BSE
A13: 2018-04-18 | B13: 537326 | C13: CHEMTECH | D13: KAMLESH BHAGWANDAS BATHIJA | E13: SELL | F13: 110,000 | G13: 15.45 | H13: BSE
A14: 2018-04-18 | B14: 532183 | C14: GAYATRI | D14: SHOAIB S KHAN | E14: SELL | F14: 361,934 | G14: 13.55 | H14: BSE
A15: 2018-04-18 | B15: 532183 | C15: GAYATRI | D15: SHOAIB S KHAN | E15: BUY | F15: 360,726 | G15: 13.55 | H15: BSE
A16: 2018-04-18 | B16: 532183 | C16: GAYATRI | D16: MOHAN PROJECT CONTRACTORS P LTD | E16: SELL | F16: 489,000 | G16: 13.51 | H16: BSE
A17: 2018-04-18 | B17: 532183 | C17: GAYATRI | D17: VISHWAMURTE TRAD INVEST PE LTD | E17: SELL | F17: 724,163 | G17: 13.72 | H17: BSE
A18: 2018-04-18 | B18: 532183 | C18: GAYATRI | D18: VISHWAMURTE TRAD INVEST PE LTD | E18: BUY | F18: 25,000 | G18: 13.38 | H18: BSE
A19: 2018-04-18 | B19: 540266 | C19: GLCL | D19: HIMANSHU CHANDRAKANT BHANSALI | E19: BUY | F19: 33,200 | G19: 34.2 | H19: BSE
A20: 2018-04-18 | B20: 540266 | C20: GLCL | D20: KAMLESH MOTTYBHAI PATEL | E20: SELL | F20: 9,300 | G20: 34.2 | H20: BSE
A21: 2018-04-18 | B21: 540266 | C21: GLCL | D21: KAMLESH MOTTYBHAI PATEL | E21: BUY | F21: 24,100 | G21: 34.12 | H21: BSE
A22: 2018-04-18 | B22: 532951 | C22: GSS | D22: SUNIL AGARWAL | E22: SELL | F22: 215,013 | G22: 72.76 | H22: BSE
A23: 2018-04-18 | B23: 532951 | C23: GSS | D23: SUNIL AGARWAL | E23: BUY | F23: 215,013 | G23: 70.52 | H23: BSE
A24: 2018-04-18 | B24: 532951 | C24: GSS | D24: NOMURA SINGAPORE LIMITED | E24: BUY | F24: 200,000 | G24: 74 | H24: BSE
A25: 2018-04-18 | B25: 539679 | C25: KAPILRAJ | D25: DEEPAK PARSHARAM SALVI | E25: SELL | F25: 111,301 | G25: 19.25 | H25: BSE
A26: 2018-04-18 | B26: 539679 | C26: KAPILRAJ | D26: DEEPAK PARSHARAM SALVI | E26: BUY | F26: 111,301 | G26: 19.21 | H26: BSE
A27: 2018-04-18 | B27: 539679 | C27: KAPILRAJ | D27: VINAYAK NARAYAN PRABHU | E27: SELL | F27: 7,000 | G27: 19.25 | H27: BSE
A28: 2018-04-18 | B28: 539679 | C28: KAPILRAJ | D28: VINAYAK NARAYAN PRABHU | E28: BUY | F28: 30,000 | G28: 19.2 | H28: BSE
A29: 2018-04-18 | B29: 538540 | C29: RLFL | D29: RADHEY PORTFOLIO PRIVATE LIMITED | E29: SELL | F29: 288,700 | G29: 0.33 | H29: BSE
A30: 2018-04-18 | B30: 538402 | C30: SPS | D30: ASHOK SHIVLAL RUPANI | E30: SELL | F30: 25,600 | G30: 172 | H30: BSE
A31: 2018-04-18 | B31: 538402 | C31: SPS | D31: SPS MULTI-COMMODITY LLP | E31: BUY | F31: 36,000 | G31: 171.98 | H31: BSE
A32: 2018-04-18 | B32: 540108 | C32: TAHL | D32: NIKUNJ PARIKH | E32: BUY | F32: 100,000 | G32: 11.8 | H32: BSE
A33: 2018-04-18 | B33: 540108 | C33: TAHL | D33: RUSHABH ASHWIN CHOKSI | E33: SELL | F33: 40,000 | G33: 11.8 | H33: BSE
A34: 2018-04-18 | B34: 539658 | C34: TEAMLEASE | D34: GPE (INDIA) LTD | E34: SELL | F34: 113,072 | G34: 2210.01 | H34: BSE
A35: 2018-04-18 | B35: 538610 | C35: UNISON | D35: YAYAATI HASMUKHRAY NADA | E35: BUY | F35: 22,000 | G35: 46 | H35: BSE
A36: 2018-04-18 | B36: 538610 | C36: UNISON | D36: SARITABEN SHASHIKANT PATEL | E36: S | F36: 22,000 | G36: 46 | H36: BSE
A37: 2018-04-18 | B37: ARCHIES | C37: Archies Limited | D37: GOURAV KHANDELWAL | E37: BUY | F37: 698,565 | G37: 42.68 | H37: NSE
A38: 2018-04-18 | B38: AUTOLITIND | C38: Autolite (India) Ltd | D38: SEKHON H S | E38: BUY | F38: 60,036 | G38: 80.33 | H38: NSE
A39: 2018-04-18 | B39: BHANDARI | C39: Bhandari Hosiery Exp Ltd | D39: ORBIT FINANCIAL CAPITAL | E39: BUY | F39: 1,188,000 | G39: 3.2 | H39: NSE
A40: 2018-04-18 | B40: CEREBRAINT | C40: Cerebra Int Tech Ltd | D40: ARCADIA SHARE & STOCK BROKERS PRIVATE LIMITED | E40: BUY | F40: 763,850 | G40: 68.21 | H40: NSE
A41: 2018-04-18 | B41: CEREBRAINT | C41: Cerebra Int Tech Ltd | D41: HASMUKHRAI LALUBHAI MEHTA | E41: BUY | F41: 1,680,101 | G41: 68.03 | H41: NSE
A42: 2018-04-18 | B42: DCBBANK | C42: Dcb Bank Limited | D42: ABU DHABI INVESTMENT AUTHORITY - BEHAVE | E42: BUY | F42: 2,100,000 | G42: 198.18 | H42: NSE
A43: 2018-04-18 | B43: GSS | C43: GSS Infotech Limited | D43: AGARWAL SUNIL | E43: BUY | F43: 930,816 | G43: 72.17 | H43: NSE
A44: 2018-04-18 | B44: GSS | C44: GSS Infotech Limited | D44: CHANDARANA INTERMEDIARIES BROKERS P. LTD | E44: BUY | F44: 97,153 | G44: 71.54 | H44: NSE
A45: 2018-04-18 | B45: GSS | C45: GSS Infotech Limited | D45: ELARA INDIA OPPORTUNITIES FUND LIMITED | E45: BUY | F45: 650,000 | G45: 74 | H45: NSE
A46: 2018-04-18 | B46: GSS | C46: GSS Infotech Limited | D46: GRAVITON RESEARCH CAPITAL LLP | E46: BUY | F46: 117,112 | G46: 70.66 | H46: NSE
A47: 2018-04-18 | B47: GSS | C47: GSS Infotech Limited | D47: NOMURA SINGAPORE LIMITED | E47: BUY | F47: 300,000 | G47: 73.99 | H47: NSE
A48: 2018-04-18 | B48: KARDA | C48: Karda Constructions Ltd | D48: SHAH VAISHALI YATIN | E48: BUY | F48: 86,366 | G48: 186.21 | H48: NSE
A49: 2018-04-18 | B49: PAPERPROD | C49: Huhtamaki PPL Limited | D49: HUHTAVEFA B.V. | E49: BUY | F49: 550,000 | G49: 353.55 | H49: NSE
A50: 2018-04-18 | B50: SUMEETINDS | C50: Sumeet Ind Limited | D50: AMARKUMAR ODHAVJI DHAMECHA | E50: BUY | F50: 3,035,818 | G50: 17.98 | H50: NSE
A51: 2018-04-18 | B51: SUMEETINDS | C51: Sumeet Ind Limited | D51: BP FINTRADE PRIVATE LIMITED | E51: BUY | F51: 537,704 | G51: 18.1 | H51: NSE
A52: 2018-04-18 | B52: SUMEETINDS | C52: Sumeet Ind Limited | D52: GIGANTIC ENTERPRISES | E52: BUY | F52: 1,499,439 | G52: 18.08 | H52: NSE
A53: 2018-04-18 | B53: SUMEETINDS | C53: Sumeet Ind Limited | D53: PANKAJ KUMAR GUPTA | E53: BUY | F53: 481,983 | G53: 17.87 | H53: NSE
A54: 2018-04-18 | B54: TEAMLEASE | C54: Teamlease Services Ltd. | D54: KOTAK FUNDS-INDIA MIDCAP FUND | E54: BUY | F54: 582,716 | G54: 2209.99 | H54: NSE
A55: 2018-04-18 | B55: VAKRANGEE | C55: Vakrangee Limited | D55: BALRAM CHAINRAI | E55: BUY | F55: 5,300,000 | G55: 122.19 | H55: NSE
A56: 2018-04-18 | B56: VISESHINFO | C56: Visesh Infotecnics Limite | D56: BP FINTRADE PRIVATE LIMITED | E56: BUY | F56: 20,250,011 | G56: 0.1 | H56: NSE
A57: 2018-04-18 | B57: ARCHIES | C57: Archies Limited | D57: GOURAV KHANDELWAL | E57: SELL | F57: 698,565 | G57: 43.37 | H57: NSE
A58: 2018-04-18 | B58: ARCOTECH | C58: Arcotech Limited | D58: VASUDHA COMMERCIAL PRIVATE LIMITED | E58: SELL | F58: 1,000,000 | G58: 33.06 | H58: NSE
A59: 2018-04-18 | B59: AUTOLITIND | C59: Autolite (India) Ltd | D59: SEKHON H S | E59: SELL | F59: 58,184 | G59: 81.11 | H59: NSE
A60: 2018-04-18 | B60: BHANDARI | C60: Bhandari Hosiery Exp Ltd | D60: MAMTA ASHISH SHETH | E60: SELL | F60: 1,089,000 | G60: 3.2 | H60: NSE
A61: 2018-04-18 | B61: BHARATGEAR | C61: Bharat Gears Ltd | D61: IDEAS 1ST INFORMATION SERVICES PRIVATE LIMITED | E61: SELL | F61: 42,141 | G61: 189.68 | H61: NSE
A62: 2018-04-18 | B62: CEREBRAINT | C62: Cerebra Int Tech Ltd | D62: ARCADIA SHARE & STOCK BROKERS PRIVATE LIMITED | E62: SELL | F62: 752,298 | G62: 68.04 | H62: NSE
A63: 2018-04-18 | B63: CEREBRAINT | C63: Cerebra Int Tech Ltd | D63: HASMUKHRAI LALUBHAI MEHTA | E63: SELL | F63: 1,681,101 | G63: 68.1 | H63: NSE
A64: 2018-04-18 | B64: GSS | C64: GSS Infotech Limited | D64: AGARWAL SUNIL | E64: SELL | F64: 930,816 | G64: 73.81 | H64: NSE
A65: 2018-04-18 | B65: GSS | C65: GSS Infotech Limited | D65: CHANDARANA INTERMEDIARIES BROKERS P. LTD | E65: SELL | F65: 97,153 | G65: 70.76 | H65: NSE
A66: 2018-04-18 | B66: GSS | C66: GSS Infotech Limited | D66: GRAVITON RESEARCH CAPITAL LLP | E66: SELL | F66: 117,112 | G66: 70.46 | H66: NSE
A67: 2018-04-18 | B67: GSS | C67: GSS Infotech Limited | D67: REAL MARKETING PVT LTD | E67: SELL | F67: 500,000 | G67: 73.85 | H67: NSE
A68: 2018-04-18 | B68: MAJESCO | C68: Majesco Limited | D68: ARUN KUMAR MAHESHWARI | E68: SELL | F68: 240,000 | G68: 532.5 | H68: NSE
A69: 2018-04-18 | B69: PAPERPROD | C69: Huhtamaki PPL Limited | D69: AMAR BANSILAL CHHAJED | E69: SELL | F69: 550,000 | G69: 353.55 | H69: NSE
A70: 2018-04-18 | B70: SUMEETINDS | C70: Sumeet Ind Limited | D70: AMARKUMAR ODHAVJI DHAMECHA | E70: SELL | F70: 2,800,418 | G70: 18.1 | H70: NSE
A71: 2018-04-18 | B71: SUMEETINDS | C71: Sumeet Ind Limited | D71: BP FINTRADE PRIVATE LIMITED | E71: SELL | F71: 487,704 | G71: 18.09 | H71: NSE
A72: 2018-04-18 | B72: SUMEETINDS | C72: Sumeet Ind Limited | D72: GIGANTIC ENTERPRISES | E72: SELL | F72: 1,514,439 | G72: 18.06 | H72: NSE
A73: 2018-04-18 | B73: SUMEETINDS | C73: Sumeet Ind Limited | D73: PANKAJ KUMAR GUPTA | E73: SELL | F73: 510,612 | G73: 17.71 | H73: NSE
A74: 2018-04-18 | B74: TATASPONGE | C74: Tata Sponge Iron Ltd. | D74: AJO EMERGING MARKETS SMALL-CAP MASTER FUND LTD. | E74: SELL | F74: 81,844 | G74: 1148.41 | H74: NSE
A75: 2018-04-18 | B75: TEAMLEASE | C75: Teamlease Services Ltd. | D75: GAJA CAPITAL INDIA FUND I | E75: SELL | F75: 107,884 | G75: 2210 | H75: NSE
A76: 2018-04-18 | B76: TEAMLEASE | C76: Teamlease Services Ltd. | D76: GPE (INDIA) LTD | E76: SELL | F76: 462,116 | G76: 2210 | H76: NSE
A77: 2018-04-18 | B77: VISESHINFO | C77: Visesh Infotecnics Limite | D77: BP FINTRADE PRIVATE LIMITED | E77: SELL | F77: 11 | G77: 0.1 | H77: NSE
A78: 2018-04-18 | B78: VISESHINFO | C78: Visesh Infotecnics Limite | D78: GLOBE FINCAP LTD | E78: SELL | F78: 70,000,000 | G78: 0.1 | H78: NSE

Sheet Call Tracker (Equity & F&O)
N5: Back To Main Page
A6: Retail Research Technical Calls & Fundamental Performance Report for the month of April -2018
N7: =Main!B10 -> 2018-04-19
B8: Positional Call
A9: Sr.no | B9: Date | D9: Company | E9: Rec | F9: Rec Price | G9: Stop Loss*** | H9: Call Closed At | I9: Target | J9: Remark | L9: Profit / Loss per Share | M9: Gain / Loss % | N9: Status | O9: Closed Date | P9: NSE Closed Price
A10: 1 | B10: 2018-02-09 | D10: HINDUNILVR | E10: Buy | F10: 1332 | G10: 1275 | H10: 1375 | I10: 1450 | J10: Profit of Rs.43/- | L10: =H10-F10-K10 -> 43 | M10: =L10/F10 -> 3.23% | N10: Successful | O10: 2018-04-05 | S10: A
A11: 2 | B11: 2018-02-12 | D11: ITC | E11: Buy | F11: 271-272 | G11: 250 | I11: 310 | J11: Open | P11: =VLOOKUP(D11,Sheet2!$A$1:M2109,6,0) -> 275.35 | S11: P
A12: 3 | B12: 2018-03-08 | D12: CADILAHC | E12: Buy | F12: 385 | G12: 367 | H12: 397.5 | I12: 420 | J12: Profit of Rs.12.5/- | L12: =H12-F12-K12 -> 12.5 | M12: =L12/F12 -> 3.25% | N12: Successful | O12: 2018-04-04 | S12: R
A13: 4 | B13: 2018-03-13 | D13: LUPIN | E13: Buy | F13: 772 | G13: 732 | H13: 802.75 | I13: 850 | J13: Profit of Rs.30.75/- | L13: 30.75 | M13: =L13/F13 -> 3.98% | N13: Successful | O13: 2018-04-06 | S13: R
A14: 5 | B14: 2018-03-16 | D14: TATACHEM | E14: Buy | F14: 686.5 | G14: 658 | H14: 714.5 | I14: 730-750 | J14: Profit of Rs.28/- | L14: 28 | M14: =L14/F14 -> 4.08% | N14: Successful | O14: 2018-04-03 | S14: H
A15: 6 | B15: 2018-03-19 | D15: TCS | E15: Buy | F15: 2842.5 | G15: 2720 | H15: 2937.5 | I15: 3050 | J15: Profit of Rs.95/- | L15: 95 | M15: 3.34% | N15: Successful | O15: 2018-04-05 | S15: A
A16: 7 | B16: 2018-03-27 | D16: KPIT | E16: Buy | F16: 219.5 | G16: 210 | H16: 226.4 | I16: 240 | J16: Profit of Rs.6.9/- | L16: 6.9 | M16: =L16/F16 -> 3.14% | N16: Successful | O16: 2018-04-06 | S16: R
A17: 8 | B17: 2018-03-27 | D17: ICICIBANK | E17: Buy | F17: 283 | G17: 268 | H17: 262.5 | I17: 310 | J17: Loss of Rs.20.5/- | L17: -20.5 | M17: -7.24% | N17: Unsuccessful | O17: 2018-04-02 | S17: R
A18: 9 | B18: 2018-03-28 | D18: LT | E18: Buy | F18: 1292.5 | G18: 1245 | H18: 1334.5 | I18: 1375-1395 | J18: Profit of Rs.42/- | L18: 42 | M18: =L18/F18 -> 3.25% | N18: Successful | O18: 2018-04-03 | S18: H
A19: 10 | B19: 2018-04-02 | D19: AMBUJACEM | E19: Buy | F19: 232 | G19: 219 | H19: 239.75 | I19: 250-255 | J19: Profit of Rs.7.75/- | L19: 7.75 | M19: =L19/F19 -> 3.34% | N19: Successful | O19: 2018-04-03 | S19: H
A20: 11 | B20: 2018-04-02 | D20: COLPAL | E20: Buy | F20: 1050 | G20: 998 | H20: 1087 | I20: 1140-1160 | J20: Profit of Rs.37/- | L20: 37 | M20: 3.52% | N20: Successful | O20: 2018-04-04 | S20: H
A21: 12 | B21: 2018-04-02 | D21: ITC | E21: Buy | F21: 257.5 | G21: 248 | H21: 275.75 | I21: 280-285 | J21: Profit of Rs.18.25/- | L21: =H21-F21-K21 -> 18.25 | M21: =L21/F21 -> 7.09% | N21: Successful | O21: 2018-04-18 | S21: A
A22: 13 | B22: 2018-04-03 | D22: UJJIVAN | E22: Buy | F22: 351.5 | G22: 334 | H22: 364.5 | I22: 380-385 | J22: Profit of Rs.13/- | L22: =H22-F22-K22 -> 13 | M22: =L22/F22 -> 3.70% | N22: Successful | O22: 2018-04-04 | S22: R
A23: 14 | B23: 2018-04-03 | D23: IGL | E23: Buy | F23: 278 | G23: 267 | H23: 290.25 | I23: 295-300 | J23: Profit of Rs.12.25/- | L23: =H23-F23-K23 -> 12.25 | M23: 4.41% | N23: Successful | O23: 2018-04-06 | S23: H
A24: 15 | B24: 2018-04-03 | D24: JUBLFOOD | E24: Sell | F24: 2340 | G24: 2450 | H24: 2470 | I24: 2150 | J24: Loss of Rs.130/- | L24: =F24-H24 -> -130 | M24: -5.56% | N24: Unsuccessful | O24: 2018-04-09 | S24: R
A25: 16 | B25: 2018-04-05 | D25: AMBUJACEM | E25: Buy | F25: 236-238 | G25: 227 | I25: 255-260 | J25: Open | P25: =VLOOKUP(D25,Sheet2!$A$1:M2146,6,0) -> 244.9 | S25: H
A26: 17 | B26: 2018-04-05 | D26: PEL | E26: Buy | F26: 2500 | G26: 2420 | H26: 2583 | I26: 2650 | J26: Profit of Rs.83/- | L26: =H26-F26-K26 -> 83 | M26: =L26/F26 -> 3.32% | N26: Successful | O26: 2018-04-06 | S26: R
A27: 18 | B27: 2018-04-05 | D27: RECLTD | E27: Buy | F27: 128-130 | G27: 122 | I27: 140 | J27: Open | P27: =VLOOKUP(D27,Sheet2!$A$1:M2148,6,0) -> 128.15 | S27: R
A28: 19 | B28: 2018-04-06 | D28: INDIGO | E28: Sell | F28: 1421.5 | G28: 1490 | H28: 1490 | I28: 1280 | J28: Loss of Rs.68.5/- | L28: =F28-H28 -> -68.5 | M28: =L28/F28 -> -4.82% | N28: Unsuccessful | O28: 2018-04-09 | S28: R
A29: 20 | B29: 2018-04-11 | D29: GODREJCP | E29: Buy | F29: 1072.5 | G29: 1040 | H29: 1116.5 | I29: 1125-1140 | J29: Profit of Rs.44/- | L29: =H29-F29-K29 -> 44 | M29: 4.10% | N29: Successful | O29: 2018-04-18 | S29: R
A30: 21 | B30: 2018-04-11 | D30: FEDERALBNK | E30: Buy | F30: 98-50-99.00 | G30: 94 | I30: 106-109 | J30: Open | P30: =VLOOKUP(D30,Sheet2!$A$1:M2151,6,0) -> 99.2 | S30: R
A31: 22 | B31: 2018-04-18 | D31: BHEL | E31: Buy | F31: 88-89 | G31: 83 | I31: 100 | J31: Open | S31: A
A36: CLBS = Closing Basis *** | F36: Reinitiated $
A37: Dividend adjusted <> | F37: Revised stoploss #
A39: Master Trade High Risk
A40: Sr.no | B40: Date | D40: Company | E40: Rec | F40: Rec Price | G40: Stop Loss | H40: Call Closed At | I40: Target | J40: Remark | L40: Profit / Loss per share | M40: Gain / Loss per Lot | N40: Lot | O40: Status | P40: Closed Date
A41: 1 | B41: 2018-03-27 | D41: HDFCBANK APR FUT | E41: Buy | F41: 1887.5 | G41: 1858 | H41: 1910 | I41: 1930-1940 | J41: Profit of Rs.22.5/- | L41: =H41-F41 -> 22.5 | M41: =L41*N41 -> 11250 | N41: 500 | O41: Successful | P41: 2018-04-02 | S41: H
A42: 2 | B42: 2018-03-28 | D42: NIFTY APR FUT | E42: Buy | F42: 10156 | G42: 10050 | H42: 10235 | I42: 10350 | J42: Profit of Rs.50/- | L42: =H42-F42 -> 79 | M42: =L42*N42 -> 5925 | N42: 75 | O42: Successful | P42: 2018-04-02 | S42: A
D43: NIFTY APR 10200 CE | E43: Sell | F43: 140 | H43: 169 | L43: =F43-H43 -> -29 | M43: =L43*N42 -> -2175
A44: 3 | B44: 2018-04-09 | D44: NIFTY APR FUT | E44: Sell | F44: 10400 | G44: 10470 | H44: 10470 | I44: 10300-10280 | J44: Loss of Rs.70/- | L44: =H44-F44 -> 70 | M44: =L44*N44 -> 5250 | N44: 75 | O44: Unsuccessful | P44: 2018-04-12 | S44: H
A45: 4 | B45: 2018-04-18 | D45: NIFTY APR FUT | E45: Sell | F45: 10550-10560 | G45: 10620 | I45: 10400 | J45: Open | S45: A
A51: Master Trade Medium Risk
A52: Sr.no | B52: Date | D52: Company | E52: Rec | F52: Rec Price | G52: Stop Loss | H52: Call Closed At | I52: Target | J52: Remark | L52: Profit/Loss per lot | M52: Gain / Loss per Lot | N52: Lot | O52: Status | P52: Closed Date
A53: 1 | B53: 2018-04-05 | D53: BankNifty 05-April 24600 CE | E53: Buy | F53: 17.5 | H53: 52.5 | I53: 100 | J53: Profit of Rs.13/- | L53: =H53-F53 -> 35 | M53: =L53*N53 -> 1400 | N53: 40 | O53: Successful | P53: 2018-04-05 | S53: A
D54: BankNifty 05-April 24300 PE | E54: Sell | F54: 22 | H54: 0 | L54: =H54-F54 -> -22 | M54: =L54*N53 -> -880
A55: 2 | B55: 2018-04-09 | D55: NIFTY APR 10200 PE | E55: Buy | F55: 63 | G55: 45 | H55: 45 | I55: 90-100 | J55: Loss of Rs.18/- | L55: =H55-F55 -> -18 | M55: =L55*N55 -> -1350 | N55: 75 | O55: Unsuccessful | P55: 2018-04-11 | S55: H
A56: 3 | B56: 2018-04-12 | D56: BANKNIFTY 12-APR 24900 PE | E56: Buy | F56: 26 | G56: 0 | H56: 0 | I56: 75 | J56: Loss of Rs.26/- | L56: =H56-F56 -> -26 | M56: =L56*N56 -> -1040 | N56: 40 | O56: Unsuccessful | P56: 2018-04-12 | S56: A
A57: 4 | B57: 2018-04-13 | D57: NIFTY APR 10300 PE | E57: Buy | F57: 45-47 | I57: 100 | J57: Open | S57: H
B63: Smart Delivery Trade
A64: Sr.no | B64: Date | D64: Company | E64: Rec | F64: Rec Price | G64: Stop Loss*** | H64: Call Closed At | I64: Target | J64: Remark | L64: Profit / Loss per Share | M64: Gain / Loss % | N64: Status | O64: Closed Date | P64: NSE Closed Price
A65: 1 | B65: 2018-02-15 | D65: ACC | E65: Buy$ | F65: 1585 | G65: 1520 | I65: 1750 | J65: Open | P65: =VLOOKUP(D65,Sheet2!$A$1:M2140,6,0) -> 1573.5 | S65: R
A66: 2 | B66: 2018-03-12 | D66: MOTHERSUMI | E66: Buy | F66: 317.5 | G66: 307 | H66: 327 | I66: 335 | J66: Profit of Rs.9.5/- | L66: =H66-F66-K66 -> 9.5 | M66: =L66/F66 -> 2.99% | N66: Successful | O66: 2018-04-02 | S66: R
A67: 3 | B67: 2018-03-13 | D67: PETRONET | E67: Buy | F67: 235.5 | G67: 228 | H67: 243 | I67: 245-250 | J67: Profit of Rs.7.5/- | L67: =H67-F67-K67 -> 7.5 | M67: 3.18% | N67: Successful | O67: 2018-04-17 | S67: H
A68: 4 | B68: 2018-03-21 | D68: GREAVESCOT | E68: Buy | F68: 117 | G68: 113 | H68: 120.5 | I68: 125 | J68: Profit of Rs.3.5/- | L68: =H68-F68-K68 -> 3.5 | M68: =L68/F68 -> 2.99% | N68: Successful | O68: 2018-04-02 | S68: R
A69: 5 | B69: 2018-03-26 | D69: VIPIND | E69: Buy | F69: 318 | G69: 310 | H69: 331.5 | I69: 335 | J69: Profit of Rs.13.5/- | L69: 13.5 | M69: 4.25% | N69: Successful | O69: 2018-04-05 | S69: R
A70: 6 | B70: 2018-04-02 | D70: DLF | E70: Buy | F70: 202 | G70: 194 | H70: 208 | I70: 212-215 | J70: Profit of Rs.6/- | L70: 6 | M70: =L70/F70 -> 2.97% | N70: Successful | O70: 2018-04-04 | S70: H
A71: 7 | B71: 2018-04-02 | D71: RADICO | E71: Buy | F71: 339.5 | G71: 330 | H71: 350 | I71: 360 | J71: Profit of Rs.10.5/- | L71: 10.5 | M71: =L71/F71 -> 3.09% | N71: Successful | O71: 2018-04-02 | S71: R
A72: 8 | B72: 2018-04-03 | D72: DHFL | E72: Buy | F72: 526.5 | G72: 510 | H72: 541.5 | I72: 550 | J72: Profit of Rs.15/- | L72: 15 | M72: =L72/F72 -> 2.85% | N72: Successful | O72: 2018-04-04 | S72: R
A73: 9 | B73: 2018-04-03 | D73: JINDALSTEL | E73: Buy | F73: 226.5 | G73: 219 | H73: 233.5 | I73: 237 | J73: Profit of Rs.7/- | L73: 7 | M73: 3.09% | N73: Successful | O73: 2018-04-04 | S73: R
A74: 10 | B74: 2018-04-04 | D74: ULTRACEMCO | E74: Buy | F74: 3960-3970 | G74: 3850 | I74: 4200 | J74: Open | P74: =VLOOKUP(D74,Sheet2!$A$1:M2160,6,0) -> 3992.35 | S74: R
A75: 11 | B75: 2018-04-04 | D75: ADANIPORTS | E75: Buy | F75: 370.5 | G75: 358 | H75: 382.5 | I75: 395 | J75: Profit of Rs.12/- | L75: =H75-F75-K75 -> 12 | M75: =L75/F75 -> 3.24% | N75: Successful | O75: 2018-04-06 | S75: R
A76: 12 | B76: 2018-04-05 | D76: DLF | E76: Buy | F76: 202 | G76: 194 | H76: 209 | I76: 212-215 | J76: Profit of Rs.7/- | L76: =H76-F76-K76 -> 7 | M76: =L76/F76 -> 3.47% | N76: Successful | O76: 2018-04-10 | S76: H
A77: 13 | B77: 2018-04-05 | D77: HINDALCO | E77: Buy | F77: 209 | G77: 199 | H77: 215 | I77: 225-230 | J77: Profit of Rs.6/- | L77: =H77-F77-K77 -> 6 | M77: =L77/F77 -> 2.87% | N77: Successful | O77: 2018-04-06 | S77: H
A78: 14 | B78: 2018-04-09 | D78: BAJAJ-AUTO | E78: Buy | F78: 2800 | G78: 2730 | H78: 2873.5 | I78: 2920-2940 | J78: Profit of Rs.73.5/- | L78: =H78-F78-K78 -> 73.5 | M78: =L78/F78 -> 2.63% | N78: Successful | O78: 2018-04-17 | S78: R
A79: 15 | B79: 2018-04-09 | D79: SUNPHARMA | E79: Buy | F79: 514-517 | G79: 500 | I79: 540-545 | J79: Open | P79: =VLOOKUP(D79,Sheet2!$A$1:M2193,6,0) -> 512 | S79: R
A80: 16 | B80: 2018-04-11 | D80: HERITGFOOD | E80: Buy | F80: 737.5 | G80: 715 | H80: 777.5 | I80: 780 | J80: Profit of Rs.40/- | L80: =H80-F80-K80 -> 40 | M80: =L80/F80 -> 5.42% | N80: Successful | O80: 2018-04-11 | S80: R
A81: 17 | B81: 2018-04-11 | D81: EXIDEIND | E81: Buy | F81: 237 | G81: 228 | H81: 245.75 | I81: 250-255 | J81: Profit of Rs.8.75/- | L81: =H81-F81-K81 -> 8.75 | M81: =L81/F81 -> 3.69% | N81: Successful | O81: 2018-04-18 | S81: H
A82: 18 | B82: 2018-04-13 | D82: HINDALCO | E82: Sell | F82: 236-237 | G82: 247 | I82: 220-217 | J82: Open | P82: =VLOOKUP(D82,Sheet2!$A$1:M2196,6,0) -> 242.8 | S82: R
A83: 19 | B83: 2018-04-16 | D83: NATCOPHARM | E83: Buy | F83: 794 | G83: 770 | H83: 815 | I83: 835-845 | J83: Profit of Rs.21/- | L83: =H83-F83-K83 -> 21 | M83: =L83/F83 -> 2.64% | N83: Successful | O83: 2018-04-17 | S83: R
A84: 20 | B84: 2018-04-16 | D84: TATACHEM | E84: Buy | F84: 736-739 | G84: 720 | I84: 770 | J84: Open | P84: =VLOOKUP(D84,Sheet2!$A$1:M2198,6,0) -> 735.95 | S84: R
A85: 21 | B85: 2018-04-17 | D85: PCJEWELLER | E85: Buy | F85: 303 | G85: 295 | H85: 311 | I85: 315-318 | J85: Profit of Rs.8/- | L85: =H85-F85-K85 -> 8 | M85: =L85/F85 -> 2.64% | N85: Successful | O85: 2018-04-17 | S85: R
A86: 22 | B86: 2018-04-18 | D86: BHARTIARTL | E86: Buy | F86: 381-383 | G86: 369 | I86: 400-410 | J86: Open | S86: H
A92: CLBS = Closing Basis *** | F92: Reinitiated $
A93: Dividend adjusted <> | F93: Revised stoploss #
A96: Techno -Funda (positional)
A97: Sr.no | B97: Date | D97: Company | E97: Rec | F97: Rec Price | G97: Stop Loss*** | H97: Call Closed At | I97: Target | J97: Remark | L97: Profit / Loss per Share | M97: Gain / Loss % | N97: Status | O97: Closed Date | P97: NSE Closed Price
A98: 1 | B98: 2018-03-05 | D98: NILKAMAL | E98: Buy | F98: 1650 | G98: 1520 | H98: 1750 | I98: 1850-1900 | J98: Part Profit of Rs.100/- | L98: =H98-F98-K98 -> 100 | M98: =L98/F98 -> 6.06% | N98: Successful | O98: 2018-04-10 | S98: H
A99: 2 | B99: 2018-04-16 | D99: ENGINERSIN | E99: Buy | F99: 157-160 | G99: 147 | I99: 185-190 | J99: Open | S99: H
A100: CLBS = Closing Basis *** | F100: Reinitiated $
A101: Dividend adjusted <> | F101: Revised stoploss #
B105: Momentum Call
A106: Sr.no | B106: Date | D106: Company | E106: Rec | F106: Rec Price | G106: Stop Loss | H106: Call Closed At | I106: Target | J106: Remark | L106: Profit / Loss per Share/Lot | M106: Gain / Loss % | N106: Gain / Loss per Lot | O106: Lot | P106: Status | Q106: Closed Date | R106: NSE Closed Price
A107: 1 | B107: 2018-04-03 | D107: GLENMARK APR FUT | E107: Buy | F107: 552.5 | G107: 528 | H107: 559.5 | I107: 570 | J107: Profit of Rs.7/- | L107: =H107-F107 -> 7 | N107: =L107*O107 -> 6300 | O107: 900 | P107: Successful | Q107: 2018-04-04 | S107: H
A108: 2 | B108: 2018-04-03 | D108: SUVEN | E108: Buy | F108: 174 | G108: 168 | H108: 178.5 | I108: 188-190 | J108: Profit of Rs.4.5/- | L108: =H108-F108-K108 -> 4.5 | M108: =L108/F108 -> 2.59% | P108: Successful | Q108: 2018-04-09 | S108: R
A109: 3 | B109: 2018-04-03 | D109: VOLTAS | E109: Buy | F109: 533.5 | G109: 517 | H109: 549.5 | I109: 560-565 | J109: Profit of Rs.16/- | L109: =H109-F109-K109 -> 16 | M109: =L109/F109 -> 3.00% | P109: Successful | Q109: 2018-04-03 | S109: H
A110: 4 | B110: 2018-04-03 | D110: ARVIND | E110: Buy | F110: 399 | G110: 389 | H110: 407.5 | I110: 418-422 | J110: Profit of Rs.8.5/- | L110: =H110-F110-K110 -> 8.5 | M110: =L110/F110 -> 2.13% | P110: Successful | Q110: 2018-04-04 | S110: H
A111: 5 | B111: 2018-04-04 | D111: BANKNIFTY 26 APR | E111: Buy | F111: 24255 | G111: 24130 | H111: 24130 | I111: 24500 | J111: Loss of Rs.125/- | L111: -125 | N111: =O111*L111 -> -5000 | O111: 40 | P111: Unsuccessful | Q111: 2018-04-04 | S111: R
A112: 6 | B112: 2018-04-04 | D112: ARVIND | E112: Buy | F112: 399 | G112: 389 | H112: 407.5 | I112: 418-422 | J112: Profit of Rs.8.5/- | L112: =H112-F112-K112 -> 8.5 | M112: =L112/F112 -> 2.13% | P112: Successful | Q112: 2018-04-05 | S112: H
A113: 7 | B113: 2018-04-05 | D113: VOLTAS | E113: Buy | F113: 631.5 | G113: 617 | H113: 645 | I113: 660-665 | J113: Profit of Rs.13.5/- | L113: =H113-F113-K113 -> 13.5 | M113: 2.14% | P113: Successful | Q113: 2018-04-13 | S113: H
A114: 8 | B114: 2018-04-05 | D114: BFUTILITIE | E114: Buy | F114: 401 | G114: 388 | H114: 409.5 | I114: 425 | J114: Profit of Rs.8.5/- | L114: =H114-F114-K114 -> 8.5 | M114: =L114/F114 -> 2.12% | P114: Successful | Q114: 2018-04-06 | S114: R
A115: 9 | B115: 2018-04-06 | D115: LT APR FUT | E115: Buy | F115: 1316.5 | G115: 1297 | H115: 1327.5 | I115: 1350-1360 | J115: Profit of Rs.11/- | L115: =H115-F115-K115 -> 11 | N115: =O115*L115 -> 8250 | O115: 750 | P115: Successful | Q115: 2018-04-09 | S115: H
A116: 10 | B116: 2018-04-06 | D116: BHARTIARTL APR FUT | E116: Sell | F116: 390.5 | G116: 397 | H116: 384.25 | I116: 382 | J116: Profit of Rs.6.25/- | L116: =F116-H116 -> 6.25 | N116: =O116*L116 -> 10625 | O116: 1700 | P116: Successful | Q116: 2018-04-06 | S116: H
A117: 11 | B117: 2018-04-10 | D117: KOTAKBANK APR FUT | E117: Sell | F117: 1128 | G117: 1146 | H117: 1114.5 | I117: 1100-1090 | J117: Profit of Rs.13.5/- | L117: =F117-H117 -> 13.5 | N117: =O117*L117 -> 10800 | O117: 800 | P117: Successful | Q117: 2018-04-06 | S117: H
A118: 12 | B118: 2018-04-10 | D118: BHARATFORG | E118: Buy | F118: 732-735 | G118: 714 | I118: 765 | J118: Open | S118: R
A119: 13 | B119: 2018-04-10 | D119: BOMDYEING | E119: Buy | F119: 257.5 | G119: 250 | H119: 263.75 | I119: 270-275 | J119: Profit of Rs.6.25/- | L119: =H119-F119-K119 -> 6.25 | M119: =L119/F119 -> 2.43% | P119: Successful | Q119: 2018-04-17 | S119: H
A120: 14 | B120: 2018-04-11 | D120: NIITTECH | E120: Buy | F120: 891 | G120: 868 | H120: 909.5 | I120: 918-922 | J120: Profit of Rs.18.5/- | L120: =H120-F120-K120 -> 18.5 | M120: =L120/F120 -> 2.08% | P120: Successful | Q120: 2018-04-12 | S120: R
A121: 15 | B121: 2018-04-12 | D121: DHFL | E121: Buy | F121: 534 | G121: 523 | H121: 544.5 | I121: 550-555 | J121: Profit of Rs.10.5/- | L121: =H121-F121-K121 -> 10.5 | M121: =L121/F121 -> 1.97% | P121: Successful | Q121: 2018-04-13 | S121: R
A122: 16 | B122: 2018-04-12 | D122: JSLHISAR | E122: Buy | F122: 179.5 | G122: 176 | H122: 184 | I122: 190-192 | J122: Profit of Rs.4.5/- | L122: =H122-F122-K122 -> 4.5 | M122: =L122/F122 -> 2.51% | P122: Successful | Q122: 2018-04-12 | S122: R
A123: 17 | B123: 2018-04-16 | D123: GLENMARK | E123: Buy | F123: 574-577 | G123: 559 | I123: 600-610 | J123: Open | S123: H
A124: 18 | B124: 2018-04-16 | D124: BALKRISIND | E124: Buy | F124: 1297.5 | G124: 1268 | H124: 1326.5 | I124: 1340-1350 | J124: Profit of Rs.29/- | L124: =H124-F124-K124 -> 29 | M124: =L124/F124 -> 2.24% | P124: Successful | Q124: 2018-04-16 | S124: H
A125: 19 | B125: 2018-04-16 | D125: RADICO | E125: Buy | F125: 382 | G125: 372 | H125: 391.5 | I125: 395-400 | J125: Profit of Rs.9.5/- | L125: =H125-F125-K125 -> 9.5 | M125: =L125/F125 -> 2.49% | P125: Successful | Q125: 2018-04-17 | S125: R
A126: 20 | B126: 2018-04-17 | D126: ASIANPAINT APR FUT | E126: Buy | F126: 1173.5 | G126: 1158 | H126: 1187.5 | I126: 1200-1210 | J126: Profit of Rs.14/- | L126: =H126-F126-K126 -> 14 | N126: =O126*L126 -> 8400 | O126: 600 | P126: Successful | Q126: 2018-04-17 | S126: H
A127: 21 | B127: 2018-04-17 | D127: BANKNIFTY | E127: Sell | F127: 25355 | G127: 25510 | H127: 25270 | I127: 25100-25050 | J127: Profit of Rs.85/- | L127: =F127-H127 -> 85 | N127: =O127*L127 -> 3400 | O127: 40 | P127: Successful | Q127: 2018-04-17 | S127: R
A128: 22 | B128: 2018-04-18 | D128: SOUTHBANK | E128: Buy | F128: 26.3-26.5 | G128: 25.9 | I128: 27.6-28 | J128: Open | S128: H
A133: CLBS = Closing Basis *** | F133: Reinitiated $
A134: Dividend adjusted <> | F134: Revised stoploss #
B138: Quick Pick Intraday
A139: Sr.no | B139: Date | D139: Company | E139: Rec | F139: Rec Price | G139: Stop Loss*** | H139: Call Closed At | I139: Target | J139: Remark | L139: Profit / Loss per Share | M139: Gain / Loss % | N139: Status | O139: Closed Date
A140: 1 | B140: 2018-04-09 | D140: BFUTILITIE | E140: Buy | F140: 406 | G140: 398 | H140: 413.5 | I140: 425 | J140: Profit of Rs.7.5/- | L140: =H140-F140-K140 -> 7.5 | M140: =L140/F140 -> 1.85% | N140: Successful | O140: 2018-04-09 | S140: R
A141: 2 | B141: 2018-04-09 | D141: WABAG | E141: Buy | F141: 501.5 | G141: 490 | H141: 499.5 | I141: 518 | J141: Loss of Rs.2/- | L141: =H141-F141-K141 -> -2 | M141: =L141/F141 -> -0.40% | N141: Neutral | O141: 2018-04-09 | S141: R
A142: 3 | B142: 2018-04-09 | D142: ORIENTBANK | E142: Sell | F142: 99.5 | G142: 101 | H142: 101 | I142: 97-96 | J142: Loss of Rs.1.5/- | L142: =F142-H142 -> -1.5 | M142: =L142/F142 -> -1.51% | N142: Unsuccessful | O142: 2018-04-09 | S142: H
A143: 4 | B143: 2018-04-10 | D143: RADICO | E143: Buy | F143: 373 | G143: 366 | H143: 373 | I143: 385-390 | J143: No profit no loss | L143: =H143-F143-K143 -> 0 | M143: 0.00% | N143: Neutral | O143: 2018-04-10 | S143: R
A144: 5 | B144: 2018-04-10 | D144: WABAG | E144: Buy | F144: 497 | G144: 487 | H144: 515 | I144: 510 | J144: Profit of Rs.18/- | L144: =H144-F144-K144 -> 18 | M144: 3.62% | N144: Successful | O144: 2018-04-10 | S144: R
A145: 6 | B145: 2018-04-11 | D145: VIPIND | E145: Buy | F145: 377 | G145: 369 | H145: 384.75 | I145: 395 | J145: Profit of Rs.7.75/- | L145: =H145-F145-K145 -> 7.75 | M145: =L145/F145 -> 2.06% | N145: Successful | O145: 2018-04-11 | S145: R
A146: 7 | B146: 2018-04-12 | D146: RADICO | E146: Buy | F146: 374 | G146: 366 | H146: 381.5 | I146: 395-390 | J146: Profit of Rs.7.5/- | L146: =H146-F146 -> 7.5 | M146: =L146/F146 -> 2.01% | N146: Successful | O146: 2018-04-12 | S146: R
A147: 8 | B147: 2018-04-12 | D147: BALKRISIND | E147: Buy | F147: 1283 | G147: 1258 | H147: 1291.5 | I147: 1315-1325 | J147: Profit of Rs.8.5/- | L147: =H147-F147-K147 -> 8.5 | M147: 0.66% | N147: Neutral | O147: 2018-04-11 | S147: H
A148: 9 | B148: 2018-04-12 | D148: HEIDELBERG | E148: Buy | F148: 153.5 | G148: 149 | H148: 156.5 | I148: 157-160 | J148: Profit of Rs.3/- | L148: =H148-F148 -> 3 | M148: =L148/F148 -> 1.95% | N148: Successful | O148: 2018-04-12 | S148: R
A149: 10 | B149: 2018-04-13 | D149: HINDPETRO | E149: Buy | F149: 341 | G149: 334 | H149: 334 | I149: 350-352 | J149: Loss of Rs.7/- | L149: =H149-F149 -> -7 | M149: -2.05% | N149: Unsuccessful | O149: 2018-04-13 | S149: R
A150: 11 | B150: 2018-04-13 | D150: RAIN | E150: Buy | F150: 358 | G150: 354 | H150: 354 | I150: 370 | J150: Loss of Rs.4/- | L150: =H150-F150 -> -4 | M150: =L150/F150 -> -1.12% | N150: Unsuccessful | O150: 2018-04-13 | S150: R
A151: 12 | B151: 2018-04-13 | D151: JAICORPLTD | E151: Buy | F151: 156 | G151: 153 | H151: 153 | I151: 162-164 | J151: Loss of Rs.3/- | L151: -3 | M151: -1.92% | N151: Unsuccessful | O151: 2018-04-13 | S151: R
A152: 13 | B152: 2018-04-17 | D152: PNB | E152: Sell | F152: 99.75 | G152: 102 | H152: 98.55 | I152: 97-96 | J152: Profit of Rs.1.2/- | L152: =F152-H152 -> 1.2 | M152: =L152/F152 -> 1.20% | N152: Successful | O152: 2018-04-17 | S152: H
A153: 14 | B153: 2018-04-17 | D153: VOLTAS | E153: Buy | F153: 645.5 | G153: 637 | H153: 637 | I153: 655-660 | J153: Loss of Rs.8.5/- | L153: =H153-F153 -> -8.5 | M153: -1.32% | N153: Unsuccessful | O153: 2018-04-17 | S153: H
B157: Investment Idea
A158: Sr.no | B158: Date | D158: Company | E158: Rec | F158: Rec Price | G158: Point of Review | H158: Close Rate | I158: Target | J158: Remark | L158: Profit / Loss per Share | M158: Gain / Loss % | N158: Status | O158: Closed Date
A159: 1 | B159: 2013-11-01 | D159: L&T Finance Holding | E159: Accu | F159: 82.00 | G159: - | H159: 100 | I159: 100.00 | J159: Target Achieved | L159: =H159-F159-K159 -> 18.00 | M159: =L159/F159 -> 21.95% | N159: Successful | O159: 2016-10-14
A160: 2 | B160: 2014-06-04 | D160: Finolex Inds | E160: Buy | F160: 257.00 | G160: - | H160: 300 | I160: 300.00 | J160: Target Achieved | L160: 43.00 | M160: 16.73% | N160: Successful | O160: 2014-07-02
A161: =1+A160 -> 3 | B161: 2014-07-08 | D161: JK Cement | E161: Buy | F161: 393.00 | G161: - | H161: 468 | I161: 468.00 | J161: Target Achieved | L161: 75.00 | M161: 19.08% | N161: Successful | O161: 2014-08-12
A162: 4 | B162: 2014-08-06 | D162: Finolex Cables | E162: Buy | F162: 205.00 | G162: - | H162: 275 | I162: 250.00 | J162: Target Achieved | L162: 70.00 | M162: 34.15% | N162: Successful | O162: 2014-11-19
A163: 5 | B163: 2014-09-04 | D163: Exide Inds | E163: Buy | F163: 162.00 | G163: - | H163: 190 | I163: 190.00 | J163: Target Achieved | L163: 28.00 | M163: 17.28% | N163: Successful | O163: 2015-01-02
A164: 6 | B164: 2014-09-04 | D164: Deepak Nitrite | E164: Buy | F164: 75.00 | G164: - | H164: 91.5 | I164: 95-100 | J164: Profit of Rs.16.50/- | L164: 16.50 | M164: 22.00% | N164: Successful | O164: 2014-11-11
A165: 7 | B165: 2014-10-01 | D165: Mercks | E165: Buy | F165: 850.00 | G165: - | H165: 982.5 | I165: 1050.00 | J165: Profit of Rs.132.50/- | L165: 132.50 | M165: 15.59% | N165: Successful | O165: 2015-02-04
A166: 8 | B166: 2014-10-01 | D166: Grindwell Norton | E166: Buy | F166: 475.00 | G166: - | H166: 515 | I166: 600.00 | J166: Profit of Rs.40/- | L166: 40.00 | M166: 8.42% | N166: Successful | O166: 2014-10-27
A167: 9 | B167: 2014-10-01 | D167: Snowman Logistics | E167: Buy | F167: 86.00 | G167: - | H167: 99 | I167: 140.00 | J167: Profit of Rs.13.00/- | L167: 13.00 | M167: 15.12% | N167: Successful | O167: 2014-10-27
A168: 10 | B168: 2014-10-14 | D168: Birla Corp | E168: Buy | F168: 496.60 | G168: - | H168: 621 | I168: 580.00 | J168: Target Achieved | L168: 124.40 | M168: 25.05% | N168: Successful | O168: 2016-08-23
A169: 11 | B169: 2014-10-14 | D169: Ultratech Cem | E169: Buy | F169: 2481.90 | G169: - | H169: 2840 | I169: 2870.00 | J169: Profit of Rs.358.10/- | L169: 358.10 | M169: 14.43% | N169: Successful | O169: 2015-01-13
A170: =1+A167 -> 10 | B170: 2014-10-16 | D170: Sintex Inds | E170: Buy | F170: 84.50 | G170: - | H170: 93 | I170: 110.00 | J170: Profit of Rs.8.50/- | L170: 8.50 | M170: 10.06% | N170: Successful | O170: 2014-10-27
A171: =1+A170 -> 11 | B171: 2014-10-16 | D171: HSIL | E171: Buy | F171: 401.00 | G171: - | H171: 428 | I171: 450.00 | J171: Profit of Rs.27.00/- | L171: 27.00 | M171: 6.73% | N171: Successful | O171: 2015-01-16
A172: 12 | B172: 2014-10-16 | D172: Eveready Inds | E172: Buy | F172: 101.00 | G172: - | H172: 112 | I172: 120.00 | J172: Profit of Rs.11.00/- | L172: 11.00 | M172: 10.89% | N172: Successful | O172: 2014-10-27
A173: 13 | B173: 2014-11-11 | D173: Pennar Inds | E173: Buy | F173: 59.00 | G173: - | H173: 76 | I173: 76.00 | J173: Target Achieved | L173: 17.00 | M173: 28.81% | N173: Successful | O173: 2017-10-24
A174: 14 | B174: 2014-11-11 | D174: Snowman Logistics | E174: Buy | F174: 99.00 | G174: - | H174: 120 | I174: 120.00 | J174: Profit of Rs.21/- | L174: 21.00 | M174: 21.21% | N174: Successful | O174: 2014-11-17
A175: 15 | B175: 2014-11-13 | D175: Dharamsi Morarji Chem | E175: Buy | F175: 22.00 | G175: - | H175: 33.55 | I175: 32.00 | J175: Profit of Rs 11.55/- | L175: 11.55 | M175: 52.50% | N175: Successful | O175: 2015-07-03
A176: 16 | B176: 2014-12-03 | D176: Tatachem | E176: Buy | F176: 440.00 | G176: - | H176: 520 | I176: 520.00 | J176: Profit of Rs 80.00/- | L176: 80.00 | M176: 18.18% | N176: Successful | O176: 2015-07-23
A177: 17 | B177: 2014-12-03 | D177: Advanta | E177: Buy | F177: 360.00 | G177: - | H177: 427 | I177: 425.00 | J177: Profit of Rs.67.00/- | L177: 67.00 | M177: 18.61% | N177: Successful | O177: 2015-02-23
A178: 18 | B178: 2015-01-08 | D178: GDL | E178: Buy | F178: 360.00 | G178: - | H178: 455 | I178: 420.00 | J178: Profit of Rs.95.00/- | L178: 95.00 | M178: 26.39% | N178: Successful | O178: 2015-01-20
A179: 19 | B179: 2015-01-08 | D179: NRB Bearing | E179: Buy | F179: 130.00 | H179: 175.5 | I179: 165.00 | J179: Profit of Rs 45.50/- | L179: 45.50 | M179: 35.00% | N179: Successful | O179: 2017-12-19
A180: 20 | B180: 2015-02-05 | D180: GSFC | E180: Accu | F180: 98.00 | H180: 120 | I180: 120.00 | J180: Target Achieved | L180: 22.00 | M180: 22.45% | N180: Successful | O180: 2017-01-18
A181: 21 | B181: 2015-02-05 | D181: Sundrmfast | E181: Accu | F181: 196.00 | H181: 262 | I181: 255.00 | J181: Target Achieved | L181: 66.00 | M181: 33.67% | N181: Successful | O181: 2016-08-17
A182: 22 | B182: 2015-03-04 | D182: GPPL | E182: Accu | F182: 230-240 | I182: 280-285 | J182: Open
A183: 23 | B183: 2015-03-04 | D183: ORIENTCEM | E183: Accu | F183: 185.00 | H183: 224 | I183: 220-225 | J183: Target Achieved | L183: =H183-F183-K183 -> 39.00 | M183: =L183/F183 -> 21.08% | N183: Successful | O183: 2016-10-04
A184: 24 | B184: 2015-03-27 | D184: PFS | E184: Accu | F184: 49-50 | I184: 67.00 | J184: Open
A185: 25 | B185: 2015-03-30 | D185: Walchandnagar Ind Ltd | E185: Accu | F185: 183.50 | H185: 219 | I185: 218.00 | J185: Profit of Rs.35.50/- | L185: =H185-F185-K185 -> 35.50 | M185: =L185/F185 -> 19.35% | N185: Successful | O185: 2015-04-09
A186: 26 | B186: 2015-04-20 | D186: Kalpataru Power Transmission Ltd | E186: Accu | F186: =(227+237)/2 -> 232.00 | H186: 298 | I186: 298.00 | J186: Target Achieved | L186: 66.00 | M186: 28.45% | N186: Successful | O186: 2017-03-29
A187: 27 | B187: 2015-05-04 | D187: Mastek Ltd | E187: Buy | F187: 385.00 | H187: =212.5+331 -> 543.5 | I187: 510.00 | J187: Profit of Rs 158.50/- | L187: 158.50 | M187: 41.17% | N187: Successful | O187: 2015-08-19
A188: 28 | B188: 2015-05-04 | D188: Suprajit Eng | E188: Buy | F188: 115.50 | H188: 146 | I188: 142.00 | J188: Profit of Rs 30.50/- | L188: 30.50 | M188: 26.41% | N188: Successful | O188: 2015-07-17
A189: 29 | B189: 2015-05-27 | D189: TCI | E189: Buy | F189: 237.50 | H189: 279.5 | I189: 278.00 | J189: Target Achieved | L189: 42.00 | M189: 17.68% | N189: Successful | O189: 2015-08-06
A190: 30 | B190: 2015-06-19 | D190: HSIL | E190: Accu | F190: 340.00 | H190: 448 | I190: 448.00 | J190: Target Achieved | L190: 108.00 | M190: 31.76% | N190: Successful | O190: 2017-10-10
A191: 31 | B191: 2015-07-06 | D191: Capital First | E191: Accu | F191: 390.00 | H191: 460 | I191: 460.00 | J191: Target Achieved | L191: 70.00 | M191: 17.95% | N191: Successful | O191: 2016-04-18
A192: 32 | B192: 2015-07-10 | D192: Dolphin OffShore | E192: Accu | F192: 118-127 | I192: 172.00 | J192: Open
A193: 33 | B193: 2015-08-03 | D193: Allcargo logistics | E193: Accu | F193: 297.50 | H193: 350 | I193: 360.00 | J193: Profit of Rs 52.50/- | L193: =H193-F193-K193 -> 52.50 | M193: =L193/F193 -> 17.65% | N193: Successful | O193: 2015-08-16
A194: 34 | B194: 2015-08-03 | D194: Camline Fine | E194: Accu | F194: 115.50 | H194: 149 | I194: 140.00 | J194: Profit of Rs 33.50/- | L194: 33.50 | M194: 29.00% | N194: Successful | O194: 2017-01-05
A195: 35 | B195: 2015-09-04 | D195: TCI | E195: Accu | F195: 226.00 | H195: 292 | I195: 292.00 | J195: Target Achieved | L195: 66.00 | M195: 29.20% | N195: Successful | O195: 2015-10-09
A196: 36 | B196: 2015-09-07 | D196: Kalpataru Power Transmission Ltd | E196: Accu | F196: 232.50 | H196: 312.5 | I196: 310.00 | J196: Target Achieved | L196: 80.00 | M196: 34.41% | N196: Successful | O196: 2017-03-29
A197: 37 | B197: 2015-09-21 | D197: LLOYD ELECTRIC & ENG LTD | E197: Accu | F197: 196.50 | H197: 238 | I197: 238.00 | J197: Target Achieved | L197: 41.50 | M197: 21.12% | N197: Successful | O197: 2015-10-14
A198: 38 | B198: 2015-09-24 | D198: L&T Finance Holding | E198: Accu | F198: 65.00 | H198: 82 | I198: 82.00 | J198: Target Achieved | L198: 17.00 | M198: 26.15% | N198: Successful | O198: 2016-07-27
A199: 39 | B199: 2015-10-14 | D199: KEC International ltd | E199: Accu | F199: 144.00 | H199: 182.5 | I199: 181.00 | J199: Target Achieved | L199: 38.50 | M199: 26.74% | N199: Successful | O199: 2017-03-23
A200: 40 | B200: 2015-10-14 | D200: Gruh Finance | E200: Accu | F200: 264.00 | H200: 311 | I200: 311.00 | J200: Target Achieved | L200: 47.00 | M200: 17.80% | N200: Successful | O200: 2016-08-22
A201: 41 | B201: 2015-11-10 | D201: Pidilitind | E201: Buy | F201: 549.50 | H201: 630 | I201: 630.00 | J201: Target Achieved | L201: 80.50 | M201: 14.65% | N201: Successful | O201: 2016-02-19
A202: 42 | B202: 2015-12-04 | D202: Zensar Technology | E202: Accu | F202: 1020-1035 | I202: 1250.00 | J202: Open
A203: 43 | B203: 2015-12-29 | D203: Vinati Organics Ltd | E203: Accu | F203: 465.00 | H203: 540 | I203: 540.00 | J203: Target Achieved | L203: =H203-F203-K203 -> 75.00 | M203: =L203/F203 -> 16.13% | N203: Successful | O203: 2016-06-09
A204: 44 | B204: 2016-01-11 | D204: GSFC | E204: Buy | F204: 81.00 | H204: 110 | I204: 110.00 | J204: Target Achieved | L204: 29.00 | M204: 35.80% | N204: Successful | O204: 2017-01-10
A205: 45 | B205: 2016-01-13 | D205: SSWL | E205: Buy | F205: 417.50 | H205: 547 | I205: 535.00 | J205: Target Achieved | L205: 129.50 | M205: 31.02% | N205: Successful | O205: 2016-07-27
A206: 46 | B206: 2016-02-08 | D206: Persistent System Ltd | E206: Accu | F206: 650.00 | H206: 800 | I206: 800.00 | J206: Target Achieved | L206: =H206-F206-K206 -> 150.00 | M206: =L206/F206 -> 23.08% | N206: Successful | O206: 2018-02-23
A207: 47 | B207: 2016-03-04 | D207: UPL | E207: Accu | F207: 437.50 | H207: 504.5 | I207: 522.00 | J207: Profit of Rs.67/- | L207: 67.00 | M207: 15.31% | N207: Successful | O207: 2016-04-20
A208: 48 | B208: 2016-03-09 | D208: Ashoka Buildcon Ltd | E208: Accu | F208: 189.50 | H208: 218 | I208: 218.00 | J208: Target Achieved | L208: 28.50 | M208: 15.04% | N208: Successful | O208: 2017-10-26
A209: 49 | B209: 2016-04-11 | D209: PTC INDIA FIN SERV LTD | E209: Accu | F209: 36-37 | I209: 60.00 | J209: Open
A210: 50 | B210: 2016-04-12 | D210: CAMLINFINE $ | E210: Accu | F210: 93.00 | H210: 149 | I210: 140.00 | J210: Profit of Rs 56/- | L210: =H210-F210-K210 -> 56.00 | M210: =L210/F210 -> 60.22% | N210: Successful | O210: 2017-01-05
A211: 51 | B211: 2016-04-12 | D211: Greaves Cotton Ltd. | E211: Accu | F211: 130.00 | H211: 150 | I211: 150-155 | J211: Target Achieved | L211: 20.00 | M211: 15.38% | N211: Successful | O211: 2016-07-13
A212: 52 | B212: 2016-04-13 | D212: DHFL | E212: Accu | F212: 196.00 | H212: 299 | I212: 299.00 | J212: Target Achieved | L212: 103.00 | M212: 52.55% | N212: Successful | O212: 2016-09-07
A213: 53 | B213: 2016-04-13 | D213: Magma | E213: Accu | F213: 88.00 | H213: 103 | I213: 103.00 | J213: Target Achieved | L213: 15.00 | M213: 17.05% | N213: Successful | O213: 2016-06-09
A214: 54 | B214: 2016-05-02 | D214: KEC International ltd $ | E214: Accu | F214: 127.50 | H214: 148 | I214: 148-150 | J214: Target Achieved | L214: 20.50 | M214: 16.08% | N214: Successful | O214: 2016-07-13
A215: 55 | B215: 2016-05-03 | D215: Mindtree | E215: Accu | F215: 675.00 | H215: 815 | I215: 790-800 | J215: Target Achieved | L215: 140.00 | M215: 20.74% | N215: Successful | O215: 2018-02-23
A216: 56 | B216: 2016-06-01 | D216: Atulauto | E216: Accu | F216: 495-505 | I216: 565-570 | J216: Open
A217: 57 | B217: 2016-06-06 | D217: TRITURBINE | E217: Accu | F217: 110.00 | H217: 126.5 | I217: 125.00 | J217: Profit of Rs.16.50/- | L217: =H217-F217-K217 -> 16.50 | M217: =L217/F217 -> 15.00% | N217: Successful | O217: 2016-07-01
A218: 58 | B218: 2016-06-17 | D218: Pennar Industries Ltd | E218: Accu | F218: 44.00 | H218: 69.5 | I218: 69.50 | J218: Profit of Rs.25.50/- | L218: =H218-F218-K218 -> 25.50 | M218: =L218/F218 -> 57.95% | N218: Successful | O218: 2017-08-30
A219: 59 | B219: 2016-06-28 | D219: EVEREADY INDS. IND. LTD. | E219: Accu | F219: 262.50 | H219: 340 | I219: 333.00 | J219: Profit of Rs.77.50/- | L219: =H219-F219-K219 -> 77.50 | M219: =L219/F219 -> 29.52% | N219: Successful | O219: 2017-10-09
A220: 60 | B220: 2016-06-28 | D220: FIEM INDUSTRIES LIMITED | E220: Accu | F220: 840.00 | H220: 1230 | I220: 1230.00 | J220: Target Achieved | L220: =H220-F220-K220 -> 390.00 | M220: =L220/F220 -> 46.43% | N220: Successful | O220: 2016-10-06
A221: 61 | B221: 2016-07-05 | D221: Bajaj Corp Ltd | E221: Accu | F221: 395 | H221: 468.50 | I221: 510.00 | J221: Part profit of Rs.73.50/- | L221: =H221-F221-K221 -> 73.50 | M221: =L221/F221 -> 19% | N221: Successful | O221: 2017-08-30
A222: 62 | B222: 2016-08-02 | D222: GPPL $ | E222: Buy | F222: 167-172 | I222: 198-200 | J222: Open
A223: 63 | B223: 2016-08-04 | D223: WONDERLA HOLIDAYS LTD | E223: Accu | F223: 395-405 | I223: 475.00 | J223: Open
A224: 64 | B224: 2016-08-11 | D224: CAMLINFINE | E224: Accu | F224: 86.50 | H224: 130 | I224: 130.00 | J224: Profit of Rs.43.50/- | L224: =H224-F224-K224 -> 43.50 | M224: =L224/F224 -> 50.29% | N224: Successful | O224: 2017-12-22
A225: 65 | B225: 2016-08-18 | D225: GRANULES | E225: Accu | F225: 133.5 | H225: 126.50 | I225: 178.00 | J225: Exit | L225: -7.00 | M225: -5.24% | N225: Unsuccessful | O225: 2016-09-02
A226: 66 | B226: 2016-08-31 | D226: VA TECH WABAG | E226: Accu | F226: 560.00 | H226: 725 | I226: 725.00 | J226: Target Achieved | L226: 165.00 | M226: 29.46% | N226: Successful | O226: 2016-03-27
A227: 67 | B227: 2016-09-01 | D227: SKIPPER LIMITED | E227: Accu | F227: 160.50 | H227: 210 | I227: 210.00 | J227: Target Achieved | L227: 49.50 | M227: 30.84% | N227: Successful | O227: 2017-05-16
A228: 68 | B228: 2016-10-03 | D228: IFB Industries | E228: Accu | F228: 430.00 | H228: 596 | I228: 575.00 | J228: Profit of Rs.166/- | L228: 166.00 | M228: 38.60% | N228: Successful | O228: 2017-02-03
A229: 69 | B229: 2016-10-14 | D229: ASIANTILES | E229: Accu | F229: 280.00 | H229: 345 | I229: 345.00 | J229: Target Achieved | L229: 65.00 | M229: 23.21% | N229: Successful | O229: 2017-03-20
A230: 70 | B230: 2016-10-14 | D230: DEEPIND | E230: Accu | F230: 245.00 | H230: 325.5 | I230: 330.00 | J230: Profit of Rs.80.5/- | L230: 80.50 | M230: 32.86% | N230: Successful | O230: 2017-02-03
A231: 71 | B231: 2016-10-17 | D231: DCBBANK | E231: Accu | F231: 125.00 | H231: 160 | I231: 160.00 | J231: Target Achieved | L231: 35.00 | M231: 28.00% | N231: Successful | O231: 2017-03-09
A232: 72 | B232: 2016-10-17 | D232: ORIENTREF | E232: Accu | F232: 114.00 | H232: 145 | I232: 145.00 | J232: Target Achieved | L232: =H232-F232-K232 -> 31.00 | M232: =L232/F232 -> 27.19% | N232: Successful | O232: 2017-05-04
A233: 73 | B233: 2016-10-17 | D233: GANECOS | E233: Accu | F233: 212.00 | H233: 280 | I233: 276.00 | J233: Profit of Rs.68/- | L233: =H233-F233-K233 -> 68.00 | M233: =L233/F233 -> 32.08% | N233: Successful | O233: 2017-05-03
A234: 74 | B234: 2016-11-04 | D234: NBCC | E234: Accu | F234: 155.00 | H234: 210 | I234: 210.00 | J234: Profit of Rs.55/- | L234: =H234-F234-K234 -> 55.00 | M234: =L234/F234 -> 35.48% | N234: Successful | O234: 2017-07-28
A235: 75 | B235: 2016-12-06 | D235: PRECAM | E235: Accu | F235: 148-153 | I235: 174.00 | J235: Open
A236: 76 | B236: 2016-12-08 | D236: INFRATEL | E236: Accu | F236: 380.00 | H236: 478 | I236: 468.00 | J236: Target Achieved | L236: =H236-F236-K236 -> 98.00 | M236: =L236/F236 -> 25.79% | N236: Successful | O236: 2017-10-17
A237: 77 | B237: 2016-12-30 | D237: GODREJPROP | E237: Accu | F237: 305.00 | H237: 375 | I237: 375.00 | J237: Target Achieved | L237: 70.00 | M237: 22.95% | N237: Successful | O237: 2017-02-02
A238: 78 | B238: 2017-01-04 | D238: DEEPAKNTR | E238: Accu | F238: 99.50 | H238: 158 | I238: 158.00 | J238: Target Achieved | L238: 58.50 | M238: 58.79% | N238: Successful | O238: 2017-06-12
A239: 79 | B239: 2017-02-20 | D239: SUBROS | E239: Accu | F239: 202.50 | H239: 234 | I239: 234.00 | J239: Target Achieved | L239: 31.50 | M239: 15.56% | N239: Successful | O239: 2017-04-11
... 46 more rows

Sheet Call Tracker (Currency)
A1: Master Trade High Risk
A2: Sr.no | B2: Date | C2: Company | D2: Rec | E2: Rec Price | F2: Stop Loss | G2: Call Closed At | H2: Target | I2: Remark | K2: Profit / Loss per share | L2: Gain / Loss per Lot | M2: Lot | N2: Status | O2: Closed Date
A3: 1 | B3: 2017-05-08 | C3: USDINR MAY FUT | D3: Buy | E3: 64.3935 | F3: 64.29 | G3: 64.66 | H3: 64.59 | I3: Profit of Rs.0.27/- | K3: 0.27 | L3: 266.5 | M3: 1000 | N3: Successful | O3: 2017-05-09 | R3: P
A4: 2 | B4: 2017-05-08 | C4: USDINR JUN FUT | D4: Buy | E4: 64.6535 | F4: 64.45 | G4: 64.965 | H4: 65.05 | I4: Profit of Rs 0.31/- | K4: 0.31 | L4: 311.5 | M4: 1000 | N4: Successful | O4: 2017-05-09 | R4: P
A5: 3 | B5: 2017-05-09 | C5: EUROINR MAY FUT | D5: Sell | E5: 70.65 | F5: 70.8 | G5: 70.07 | H5: 70.4 | I5: Profit of Rs 0.58/- | K5: 0.58 | L5: 580 | M5: 1000 | N5: Successful | O5: 2017-05-12 | R5: P
A6: 4 | B6: 2017-05-09 | C6: GBPINR MAY FUT | D6: Buy | E6: 83.774 | F6: 83.37 | G6: 83.37 | H6: 84.77 | I6: Loss of Rs 0.40/- | K6: -0.40 | L6: -404 | M6: 1000 | N6: Unsuccessful | O6: 2017-05-11 | R6: P
A7: 5 | B7: 2017-05-11 | C7: USDINR MAY FUT | D7: Buy | E7: 64.6555 | F7: 64.55 | G7: 64.55 | H7: 64.86 | I7: Loss of Rs.0.1055/- | K7: -0.1055 | L7: =K7*M7 -> -105.50 | M7: 1000 | N7: Unsuccessful | O7: 2017-05-11 | R7: P
A8: 6 | B8: 2017-05-15 | C8: USDINR MAY FUT | D8: Buy | E8: 64.2275 | F8: 64.08 | G8: 64.46 | H8: 64.48 | I8: Profit of Rs 0.23/- | K8: 0.23 | L8: 232.5 | M8: 1000 | N8: Successful | O8: 2017-05-18 | R8: P
A9: 7 | B9: 2017-05-19 | C9: USDINR MAY FUT | D9: Sell | E9: 64.83 | F9: 65 | G9: 65 | H9: 64.5 | I9: Loss of Rs.0.17/- | K9: -0.17 | L9: -170 | M9: 1000 | N9: Unsuccessful | O9: 2017-05-19 | R9: P
A10: 8 | B10: 2017-05-23 | C10: USDINR MAY FUT | D10: Buy | E10: 64.83 | F10: 64.62 | G10: 64.95 | H10: 65.2 | I10: Profit of Rs 0.12/- | K10: 0.12 | L10: 120 | M10: 1000 | N10: Successful | O10: 2017-05-24 | R10: P
A11: 9 | B11: 2017-05-25 | C11: USDINR MAY FUT | D11: Buy | E11: 64.57 | F11: 64.25 | G11: 64.56 | H11: 65 | I11: Loss of Rs.0.01/- | K11: -0.01 | L11: -10 | M11: 1000 | N11: Neutral | O11: 2017-05-29 | R11: P
A12: 10 | B12: 2017-05-30 | C12: USDINR JUN FUT | D12: Buy | E12: 64.9125 | F12: 64.71 | G12: 64.71 | H12: 65.31 | I12: Loss of Rs.0.20/- | K12: -0.20 | L12: -202.5 | M12: 1000 | N12: Unsuccessful | O12: 2017-05-31 | R12: P
A13: 11 | B13: 2017-06-01 | C13: USDINR JUN FUT | D13: Buy | E13: 64.655 | F13: 64.45 | G13: 64.45 | H13: 65.05 | I13: Loss of Rs.0.20/- | K13: =G13-E13 -> -0.20 | L13: =K13*M13 -> -205 | M13: 1000.00 | N13: Unsuccessful | O13: 2017-06-08 | R13: P
A14: 12 | B14: 2017-06-12 | C14: USDINR JUN FUT | D14: Buy | E14: 64.45 | F14: 64 | G14: 64.7625 | H14: 65.2 | I14: Profit of Rs 0.31/- | K14: 0.31 | L14: 312.5 | M14: 1000 | N14: Successful | O14: 2017-06-16
A15: 13 | B15: 2017-06-16 | C15: USDINR JUN FUT | D15: Buy | E15: 64.51 | F15: 64.2 | G15: 64.7 | H15: 65.11 | I15: Profit of Rs 0.19/- | K15: 0.19 | L15: 190 | M15: 1000 | N15: Successful | O15: 2017-06-21
A16: 14 | B16: 2017-06-22 | C16: USDINR JUN FUT | D16: Buy | E16: 64.56 | F16: 64.2 | G16: 64.2 | H16: 65.1 | I16: Loss of Rs.0.36/- | K16: -0.36 | L16: -360 | M16: 1000.00 | N16: Unsuccessful | O16: 2017-06-30
A17: 15 | B17: 2017-07-10 | C17: USDINR JUL FUT | D17: Buy | E17: 64.67 | F17: 64.4 | G17: 64.4 | H17: 65.15 | I17: Loss of Rs.0.27/- | K17: -0.27 | L17: -270 | M17: 1000.00 | N17: Unsuccessful | O17: 2017-07-31
A18: 16 | B18: 2017-08-02 | C18: USDINR AUG FUT | D18: Buy | E18: 64.235 | F18: 63.98 | G18: 63.98 | H18: 64.75 | I18: Loss of Rs.0.26/- | K18: -0.26 | L18: -255 | M18: 1000.00 | N18: Unsuccessful | O18: 2017-08-02
A19: 17 | B19: 2017-08-08 | C19: USDINR AUG FUT | D19: Buy | E19: 63.9425 | F19: 63.6 | G19: 64.15 | H19: 64.5 | I19: Profit of Rs 0.21/- | K19: 0.21 | L19: 207.5 | M19: 1000 | N19: Successful | O19: 2017-08-10
A20: 18 | B20: 2017-08-22 | C20: USDINR AUG FUT | D20: Buy | E20: 64.1175 | F20: 63.9 | G20: 64.01 | H20: 64.5 | I20: Loss of Rs.0.11/- | K20: =G20-E20 -> -0.11 | L20: =K20*M20 -> -107.5 | M20: 1000.00 | N20: Unsuccessful | O20: 2017-08-29
A21: 19 | B21: 2017-09-01 | C21: USDINR SEP FUT | D21: Buy | E21: 64.1 | F21: 63.8 | G21: 64.205 | H21: 64.7 | I21: Profit of Rs 0.11/- | K21: 0.11 | L21: 105 | M21: 1000 | N21: Successful | O21: 2017-09-01
A22: 20 | B22: 2017-09-04 | C22: USDINR SEP FUT | D22: Buy | E22: 64.095 | F22: 63.8 | G22: 64.195 | H22: 64.7 | I22: Profit of Rs 0.10/- | K22: 0.10 | L22: =K22*M22 -> 100 | M22: 1000 | N22: Successful | O22: 2017-09-04
A23: 21 | B23: 2017-09-05 | C23: USDINR SEP FUT | D23: Buy | E23: 64.25 | F23: 64 | G23: 64.355 | H23: 64.75 | I23: Profit of Rs 0.11/- | K23: =G23-E23 -> 0.11 | L23: =K23*M23 -> 105 | M23: 1000 | N23: Successful | O23: 2017-09-06
A24: 22 | B24: 2017-09-06 | C24: USDINR SEP FUT | D24: Sell | E24: 64.365 | F24: 64.5 | G24: 64.265 | H24: 64 | I24: Profit of Rs 0.10/- | K24: =E24-G24 -> 0.10 | L24: 100 | M24: 1000 | N24: Successful | O24: 2017-09-06
A25: 23 | B25: 2017-09-07 | C25: USDINR SEP FUT | D25: Buy | E25: 64.145 | F25: 63.9 | G25: 64.2565 | H25: 64.65 | I25: Profit of Rs 0.11/- | K25: =G25-E25 -> 0.11 | L25: =K25*M25 -> 111.5 | M25: 1000 | N25: Successful | O25: 2017-09-14
A26: 24 | B26: 2017-09-11 | C26: JPYINR SEP FUT | D26: Sell | E26: 59.0285 | F26: 59.25 | G26: 58.645 | H26: 58.5 | I26: Profit of Rs 0.38/- | K26: =E26-G26 -> 0.38 | L26: 383.5 | M26: 1000 | N26: Successful | O26: 2017-09-12
A27: 25 | B27: 2017-09-14 | C27: USDINR SEP FUT | D27: Buy | E27: 64.145 | F27: 63.95 | G27: 64.26 | H27: 64.5 | I27: Profit of Rs 0.12/- | K27: =G27-E27 -> 0.12 | L27: 115 | M27: 1000 | N27: Successful | O27: 2017-09-19
A28: 26 | B28: 2017-09-20 | C28: USDINR SEP FUT | D28: Buy | E28: 64.3515 | F28: 64.15 | G28: 64.57 | H28: 64.75 | I28: Profit of Rs 0.22/- | K28: =G28-E28 -> 0.22 | L28: =K28*M28 -> 218.5 | M28: 1000 | N28: Successful | O28: 2017-09-21
A29: 27 | B29: 2017-09-21 | C29: USDINR SEP FUT | D29: Sell | E29: 64.795 | F29: 65.05 | G29: 65.05 | H29: 64.4 | I29: Loss of Rs.0.17/- | K29: -0.17 | L29: -170 | M29: 1000.00 | N29: Unsuccessful | O29: 2017-09-22
A30: 28 | B30: 2017-09-25 | C30: USDINR SEP FUT | D30: Buy | E30: 64.77 | F30: 64.4 | G30: 64.92 | H30: 65.1 | I30: Profit of Rs 0.15/- | K30: =G30-E30 -> 0.15 | L30: =K30*M30 -> 150 | M30: 1000 | N30: Successful | O30: 2017-09-25
A31: 29 | B31: 2017-09-25 | C31: USDINR SEP FUT | D31: Sell | E31: 65.1077 | F31: 65.3 | G31: 65.3 | H31: 64.5 | I31: Loss of Rs.0.19/- | K31: -0.19 | L31: -190 | M31: 1000.00 | N31: Unsuccessful | O31: 2017-09-26
A32: 30 | B32: 2017-09-27 | C32: USDINR SEP FUT | D32: Sell | E32: 65.7225 | F32: 65.83 | G32: 65.7 | H32: 65.52 | I32: Profit of Rs 0.02/- | K32: =E32-G32 -> 0.02 | L32: =K32*M32 -> 22.5 | M32: 1000 | N32: Neutral | O32: 2017-09-27
A33: 31 | B33: 2017-09-27 | C33: USDINR OCT FUT | D33: Sell | E33: 66 | F33: 66.5 | G33: 65.895 | H33: 65 | I33: Profit of Rs 0.11/- | K33: =E33-G33 -> 0.11 | L33: 105 | M33: 1000 | N33: Successful | O33: 2017-09-27
A34: 32 | B34: 2017-09-28 | C34: USDINR OCT FUT | D34: Sell | E34: 66.075 | F34: 66.3 | G34: 65.96 | H34: 65.4 | I34: Profit of Rs 0.12/- | K34: =E34-G34 -> 0.12 | L34: =K34*M34 -> 115 | M34: 1000 | N34: Successful | O34: 2017-09-28
A35: 33 | B35: 2017-09-29 | C35: GBPINR OCT fut | D35: Buy | E35: 87.745 | F35: 87.5 | G35: 87.84 | H35: 88.25 | I35: Profit of Rs 0.09/- | K35: =G35-E35 -> 0.09 | L35: 95 | M35: 1000 | N35: Successful | O35: 2017-09-29
A36: 34 | B36: 2017-09-29 | C36: USDINR OCT FUT | D36: Buy | E36: 65.514 | F36: 65.25 | G36: 65.85 | H36: 66 | I36: Profit of Rs 0.34/- | K36: 0.34 | L36: =K36*M36 -> 336 | M36: 1000 | N36: Successful | O36: 2017-10-03
A37: 35 | B37: 2017-10-09 | C37: USDINR OCT FUT | D37: Buy | E37: 65.48 | F37: 65.23 | G37: 65.5775 | H37: 65.95 | I37: Profit of Rs 0.10/- | K37: =G37-E37 -> 0.10 | L37: =K37*M37 -> 97.5 | M37: 1000 | N37: Successful | O37: 2017-10-09
A38: 36 | B38: 2017-10-10 | C38: USDINR OCT FUT | D38: Buy | E38: 65.41 | F38: 65.15 | G38: 65.5075 | H38: 66 | I38: Profit of Rs 0.10/- | K38: 0.10 | L38: 97.5 | M38: 1000 | N38: Successful | O38: 2017-10-10
A39: 37 | B39: 2017-10-11 | C39: USDINR OCT FUT | D39: Buy | E39: 65.38 | F39: 65.13 | G39: 65.13 | H39: 65.88 | I39: Loss of Rs.0.25/- | K39: -0.25 | L39: -250 | M39: 1000.00 | N39: Unsuccessful | O39: 2017-10-13
A40: 38 | B40: 2017-10-16 | C40: USDINR OCT FUT | D40: Buy | E40: 64.7925 | F40: 64.54 | G40: 64.905 | H40: 65.3 | I40: Profit of Rs 0.11/- | K40: =G40-E40 -> 0.11 | L40: =K40*M40 -> 112.5 | M40: 1000 | N40: Successful | O40: 2017-10-17
A41: 39 | B41: 2017-10-23 | C41: USDINR OCT FUT | D41: Buy | E41: 65.115 | F41: 64.85 | G41: 65.21 | H41: 65.5 | I41: Profit of Rs 0.09/- | K41: =G41-E41 -> 0.09 | L41: =K41*M41 -> 95 | M41: 1000 | N41: Successful | O41: 2017-10-25
A42: 40 | B42: 2017-10-23 | C42: JPYINR OCT FUT | D42: Buy | E42: 57.285 | F42: 57.03 | G42: 57.38 | H42: 58.4 | I42: Profit of Rs 0.10/- | K42: =G42-E42 -> 0.10 | L42: =K42*M42 -> 95 | M42: 1000 | N42: Successful | O42: 2017-10-23
A43: 41 | B43: 2017-10-26 | C43: USDINR OCT FUT | D43: Buy | E43: 64.755 | F43: 64.5 | G43: 64.87 | H43: 65.25 | I43: Profit of Rs 0.12/- | K43: 0.12 | L43: 115 | M43: 1000 | N43: Successful | O43: 2017-10-25
A44: 42 | B44: 2017-10-30 | C44: USDINR NOV FUT | D44: Buy | E44: 65.035 | F44: 64.79 | G44: 64.79 | H44: 65.5 | I44: Loss of Rs.0.24/- | K44: -0.24 | L44: -245 | M44: 1000.00 | N44: Unsuccessful | O44: 2017-11-01
A45: 43 | B45: 2017-11-01 | C45: JPYINR NOV FUT | D45: Buy | E45: 56.9875 | F45: 56.73 | G45: 57.0959 | H45: 57.5 | I45: Profit of Rs 0.11/- | K45: =G45-E45 -> 0.11 | L45: =K45*M45 -> 108.4 | M45: 1000 | N45: Successful | O45: 2017-11-07
A46: 44 | B46: 2017-11-02 | C46: USDINR NOV FUT | D46: Buy | E46: 64.7838 | F46: 64.5 | G46: 64.89 | H46: 65.25 | I46: Profit of Rs 0.11/- | K46: =G46-E46 -> 0.11 | L46: =K46*M46 -> 106.2 | M46: 1000 | N46: Successful | O46: 2017-11-06
A47: 45 | B47: 2017-11-08 | C47: USDINR NOV FUT | D47: Buy | E47: 65.1363 | F47: 64.8375 | G47: 65.235 | H47: 65.73 | I47: Profit of Rs 0.10/- | K47: =G47-E47 -> 0.10 | L47: =K47*M47 -> 98.7 | M47: 1000 | N47: Successful | O47: 2017-11-10
A48: 46 | B48: 2017-11-08 | C48: GBPINR NOV FUT | D48: Buy | E48: 85.4983 | F48: 85.25 | G48: 85.6 | H48: 86 | I48: Profit of Rs 0.10/- | K48: =G48-E48 -> 0.10 | L48: =K48*M48 -> 101.7 | M48: 1000 | N48: Successful | O48: 2017-11-09
A49: 47 | B49: 2017-11-16 | C49: EURINR NOV FUT | D49: Buy | E49: 76.8975 | F49: 76.3975 | G49: 76.3975 | H49: 77.8975 | I49: Loss of Rs.0.50/- | K49: =G49-E49 -> -0.50 | L49: -500 | M49: 1000.00 | N49: Unsuccessful | O49: 2017-11-01
A50: 48 | B50: 2017-11-16 | C50: JPYINR NOV FUT | D50: Buy | E50: 57.6625 | F50: 57.2675 | G50: 57.8075 | H50: 58.6675 | I50: Profit of Rs 0.14/- | K50: =G50-E50 -> 0.14 | L50: =K50*M50 -> 145 | M50: 1000 | N50: Successful | O50: 2017-11-17
A51: 49 | B51: 2017-11-22 | C51: EURINR NOV FUT | D51: Buy | E51: 76.175 | F51: 75.95 | G51: 76.335 | H51: 76.6 | I51: Profit of Rs 0.16/- | K51: 0.16 | L51: =K51*M51 -> 160 | M51: 1000 | N51: Successful | O51: 2017-11-22
A52: 50 | B52: 2017-11-22 | C52: USDINR NOV FUT | D52: Buy | E52: 64.87 | F52: 64.5 | G52: 64.5 | H52: 65.5 | I52: Loss of Rs.0.37/- | K52: -0.37 | L52: -370 | M52: 1000.00 | N52: Unsuccessful | O52: 2017-11-27
A53: 51 | B53: 2017-11-28 | C53: GBPINR DEC FUT | D53: Buy | E53: 86.17 | F53: 85.85 | G53: 86.46 | H53: 87 | I53: Profit of Rs 0.29/- | K53: 0.29 | L53: =K53*M53 -> 290 | M53: 1000 | N53: Successful | O53: 2017-11-29
A54: 52 | B54: 2017-11-28 | C54: JPYINR DEC FUT | D54: Buy | E54: 58.16 | F54: 57.85 | G54: 57.85 | H54: 58.6 | I54: Loss of Rs.0.31/- | K54: -0.31 | L54: -310 | M54: 1000.00 | N54: Unsuccessful | O54: 2017-11-29
A55: 53 | B55: 2017-11-28 | C55: USDINR DEC FUT | D55: Buy | E55: 64.63 | F55: 64.13 | G55: 64.13 | H55: 65.63 | I55: Loss of Rs.0.50/- | K55: -0.50 | L55: =K55*M55 -> -500 | M55: 1000.00 | N55: Unsuccessful | O55: 2017-12-15
A56: 54 | B56: 2017-11-28 | C56: EURINR DEC FUT | D56: Buy | E56: 76.93 | F56: 76.43 | G56: 76.43 | H56: 77.93 | I56: Loss of Rs.0.50/- | K56: =G56-E56 -> -0.50 | L56: =K56*M56 -> -500 | M56: 1000.00 | N56: Unsuccessful | O56: 2017-11-29
A57: 55 | B57: 2017-12-12 | C57: EURINR DEC FUT | D57: Buy | E57: 76.105 | F57: 75.7 | G57: 76.27 | H57: 76.8 | I57: Profit of Rs 0.16/- | K57: =G57-E57 -> 0.16 | L57: 165 | M57: 1000 | N57: Successful | O57: 2017-12-14
A58: 56 | B58: 2017-12-12 | C58: JPYINR DEC FUT | D58: Buy | E58: 56.975 | F58: 56.7 | G58: 57.21 | H58: 57.6 | I58: Profit of Rs 0.23/- | K58: =G58-E58 -> 0.23 | L58: =K58*M58 -> 235 | M58: 1000 | N58: Successful | O58: 2017-12-14

Sheet Sheet2 (hidden)
A1: SYMBOL | B1: SERIES | C1: OPEN | D1: HIGH | E1: LOW | F1: CLOSE | G1: LAST | H1: PREVCLOSE | I1: TOTTRDQTY | J1: TOTTRDVAL | K1: TIMESTAMP | L1: TOTALTRADES | M1: ISIN
A2: 20MICRONS | B2: EQ | C2: 52.45 | D2: 53.1 | E2: 51 | F2: 51.95 | G2: 52 | H2: 51.85 | I2: 93422 | J2: 4862650.15 | K2: 2018-04-18 | L2: 825 | M2: INE144J01027
A3: 21STCENMGM | B3: EQ | C3: 38.35 | D3: 38.35 | E3: 38.35 | F3: 38.35 | G3: 38.35 | H3: 37.6 | I3: 200 | J3: 7670 | K3: 2018-04-18 | L3: 2 | M3: INE253B01015
A4: 3IINFOTECH | B4: EQ | C4: 5.3 | D4: 5.3 | E4: 5.2 | F4: 5.2 | G4: 5.25 | H4: 5.25 | I4: 1660932 | J4: 8687239.05 | K4: 2018-04-18 | L4: 701 | M4: INE748C01020
A5: 3MINDIA | B5: EQ | C5: 20630.75 | D5: 20800 | E5: 20396.8 | F5: 20629.5 | G5: 20600 | H5: 20590.6 | I5: 456 | J5: 9407303.8 | K5: 2018-04-18 | L5: 248 | M5: INE470A01017
A6: 63MOONS | B6: EQ | C6: 98.4 | D6: 98.7 | E6: 95.6 | F6: 96.25 | G6: 96 | H6: 97.55 | I6: 148281 | J6: 14372200.35 | K6: 2018-04-18 | L6: 1998 | M6: INE111B01023
A7: 8KMILES | B7: EQ | C7: 748.7 | D7: 765.7 | E7: 738.65 | F7: 749.25 | G7: 748 | H7: 743.85 | I7: 227247 | J7: 170891741 | K7: 2018-04-18 | L7: 6681 | M7: INE650K01021
A8: A2ZINFRA | B8: EQ | C8: 29 | D8: 29 | E8: 28.2 | F8: 28.35 | G8: 28.35 | H8: 28.9 | I8: 418990 | J8: 11977820 | K8: 2018-04-18 | L8: 1861 | M8: INE619I01012
A9: AARTIDRUGS | B9: EQ | C9: 562.8 | D9: 569.65 | E9: 555 | F9: 560 | G9: 564 | H9: 567.4 | I9: 2748 | J9: 1538954.85 | K9: 2018-04-18 | L9: 644 | M9: INE767A01016
A10: AARTIIND | B10: EQ | C10: 1300.65 | D10: 1337 | E10: 1288 | F10: 1327.7 | G10: 1333.9 | H10: 1296.6 | I10: 71564 | J10: 94555426.05 | K10: 2018-04-18 | L10: 6254 | M10: INE769A01020
A11: AARVEEDEN | B11: EQ | C11: 47 | D11: 48 | E11: 46.2 | F11: 46.35 | G11: 46.35 | H11: 47.3 | I11: 6682 | J11: 315206.7 | K11: 2018-04-18 | L11: 62 | M11: INE273D01019
A12: ABAN | B12: EQ | C12: 172.9 | D12: 175.75 | E12: 171.3 | F12: 172.4 | G12: 172.8 | H12: 172.3 | I12: 924824 | J12: 160215926.1 | K12: 2018-04-18 | L12: 10609 | M12: INE421A01028
A13: ABB | B13: EQ | C13: 1273.95 | D13: 1273.95 | E13: 1254 | F13: 1255.65 | G13: 1255 | H13: 1264.5 | I13: 26940 | J13: 33968807.75 | K13: 2018-04-18 | L13: 2223 | M13: INE117A01022
A14: ABBOTINDIA | B14: EQ | C14: 6375 | D14: 6385 | E14: 6140.05 | F14: 6171.75 | G14: 6170 | H14: 6293.1 | I14: 3860 | J14: 24039375.95 | K14: 2018-04-18 | L14: 870 | M14: INE358A01014
A15: ABCAPITAL | B15: EQ | C15: 159 | D15: 159.1 | E15: 156.65 | F15: 157.05 | G15: 156.95 | H15: 158.25 | I15: 791778 | J15: 124883400.5 | K15: 2018-04-18 | L15: 7923 | M15: INE674K01013
A16: ABFRL | B16: EQ | C16: 151 | D16: 151 | E16: 146.55 | F16: 147.1 | G16: 146.6 | H16: 150.8 | I16: 324944 | J16: 47968007.7 | K16: 2018-04-18 | L16: 3557 | M16: INE647O01011
A17: ACC | B17: EQ | C17: 1599 | D17: 1602.7 | E17: 1561.95 | F17: 1573.5 | G17: 1570 | H17: 1586.95 | I17: 489407 | J17: 775619577 | K17: 2018-04-18 | L17: 14949 | M17: INE012A01025
A18: ACCELYA | B18: EQ | C18: 1345 | D18: 1365 | E18: 1332 | F18: 1353.75 | G18: 1354 | H18: 1345.2 | I18: 7715 | J18: 10461015.5 | K18: 2018-04-18 | L18: 793 | M18: INE793A01012
A19: ACE | B19: EQ | C19: 173.4 | D19: 175.75 | E19: 171.25 | F19: 172.7 | G19: 172.65 | H19: 172.35 | I19: 429450 | J19: 74519952.4 | K19: 2018-04-18 | L19: 4565 | M19: INE731H01025
A20: ADANIENT | B20: EQ | C20: 141 | D20: 141 | E20: 135.7 | F20: 136.75 | G20: 137.15 | H20: 139.5 | I20: 3297720 | J20: 455689338.1 | K20: 2018-04-18 | L20: 19271 | M20: INE423A01024
A21: ADANIPORTS | B21: EQ | C21: 385.25 | D21: 387.7 | E21: 380.2 | F21: 384.95 | G21: 387.2 | H21: 383.4 | I21: 2568988 | J21: 986061161.6 | K21: 2018-04-18 | L21: 50182 | M21: INE742F01042
A22: ADANIPOWER | B22: EQ | C22: 25.7 | D22: 26.2 | E22: 25.5 | F22: 25.8 | G22: 25.75 | H22: 25.65 | I22: 29555267 | J22: 763938376.1 | K22: 2018-04-18 | L22: 22733 | M22: INE814H01011
A23: ADANITRANS | B23: EQ | C23: 177.45 | D23: 179.95 | E23: 173.1 | F23: 174 | G23: 173.9 | H23: 175.35 | I23: 4322748 | J23: 758386727.5 | K23: 2018-04-18 | L23: 31472 | M23: INE931S01010
A24: ADFFOODS | B24: EQ | C24: 245.8 | D24: 249 | E24: 240.3 | F24: 241.9 | G24: 242.65 | H24: 243.55 | I24: 316261 | J24: 77135678.3 | K24: 2018-04-18 | L24: 5039 | M24: INE982B01019
A25: ADHUNIK | B25: EQ | C25: 4.75 | D25: 4.75 | E25: 4.25 | F25: 4.45 | G25: 4.45 | H25: 4.6 | I25: 52658 | J25: 233539.3 | K25: 2018-04-18 | L25: 72 | M25: INE400H01019
A26: ADLABS | B26: EQ | C26: 54.5 | D26: 55.55 | E26: 53.45 | F26: 54.5 | G26: 54.5 | H26: 53.9 | I26: 72192 | J26: 3941328.55 | K26: 2018-04-18 | L26: 805 | M26: INE172N01012
A27: ADORWELD | B27: EQ | C27: 413.8 | D27: 419 | E27: 411.25 | F27: 414.95 | G27: 415.65 | H27: 410.95 | I27: 6248 | J27: 2596047.95 | K27: 2018-04-18 | L27: 212 | M27: INE045A01017
A28: ADSL | B28: EQ | C28: 22.75 | D28: 22.75 | E28: 21 | F28: 21.2 | G28: 21.1 | H28: 21.9 | I28: 12289 | J28: 266287.15 | K28: 2018-04-18 | L28: 99 | M28: INE102I01027
A29: ADVANIHOTR | B29: EQ | C29: 66.7 | D29: 75.5 | E29: 64.6 | F29: 71.8 | G29: 72.05 | H29: 65.3 | I29: 354617 | J29: 25170211.05 | K29: 2018-04-18 | L29: 3432 | M29: INE199C01026
A30: ADVENZYMES | B30: EQ | C30: 227.5 | D30: 232.5 | E30: 226 | F30: 227.15 | G30: 228.5 | H30: 228.55 | I30: 121227 | J30: 27886264.6 | K30: 2018-04-18 | L30: 4044 | M30: INE837H01020
A31: AEGISCHEM | B31: EQ | C31: 283.9 | D31: 285.9 | E31: 281.8 | F31: 283.3 | G31: 283 | H31: 282.35 | I31: 78915 | J31: 22459950.4 | K31: 2018-04-18 | L31: 3062 | M31: INE208C01025
A32: AFL | B32: EQ | C32: 54.85 | D32: 54.85 | E32: 50.5 | F32: 51.1 | G32: 50.55 | H32: 50.5 | I32: 1471 | J32: 76656.4 | K32: 2018-04-18 | L32: 15 | M32: INE020G01017
A33: AGCNET | B33: EQ | C33: 120.5 | D33: 120.5 | E33: 117.1 | F33: 117.15 | G33: 117.15 | H33: 119.45 | I33: 9178 | J33: 1075619.95 | K33: 2018-04-18 | L33: 9 | M33: INE676A01019
A34: AGLSL | B34: EQ | C34: 98.15 | D34: 100.9 | E34: 98 | F34: 98 | G34: 98 | H34: 98.35 | I34: 1588 | J34: 156183.5 | K34: 2018-04-18 | L34: 25 | M34: INE517U01013
A35: AGRITECH | B35: EQ | C35: 151.25 | D35: 153.5 | E35: 148 | F35: 148.55 | G35: 148.5 | H35: 150.8 | I35: 46098 | J35: 6902275.55 | K35: 2018-04-18 | L35: 1043 | M35: INE449G01018
A36: AHLUCONT | B36: EQ | C36: 421.35 | D36: 429.5 | E36: 419.2 | F36: 420.55 | G36: 420 | H36: 420 | I36: 8008 | J36: 3370697.75 | K36: 2018-04-18 | L36: 230 | M36: INE758C01029
A37: AHLWEST | B37: EQ | C37: 379.8 | D37: 390.3 | E37: 379.8 | F37: 390.3 | G37: 390.3 | H37: 371.75 | I37: 3245 | J37: 1263443.5 | K37: 2018-04-18 | L37: 97 | M37: INE915K01010
A38: AIAENG | B38: EQ | C38: 1430 | D38: 1430 | E38: 1389 | F38: 1413.55 | G38: 1420 | H38: 1423.55 | I38: 48552 | J38: 67983008.3 | K38: 2018-04-18 | L38: 3281 | M38: INE212H01026
A39: AIFL | B39: EQ | C39: 447.9 | D39: 470.95 | E39: 446.5 | F39: 468.95 | G39: 466 | H39: 447.45 | I39: 180851 | J39: 83817688.95 | K39: 2018-04-18 | L39: 2663 | M39: INE428O01016
A40: AJANTPHARM | B40: EQ | C40: 1381.65 | D40: 1387.5 | E40: 1371.15 | F40: 1378.7 | G40: 1372.05 | H40: 1374.95 | I40: 47383 | J40: 65354733.7 | K40: 2018-04-18 | L40: 2989 | M40: INE031B01049
A41: AJMERA | B41: EQ | C41: 287.15 | D41: 288.65 | E41: 275.5 | F41: 277.7 | G41: 278.8 | H41: 286.1 | I41: 68109 | J41: 19212047.45 | K41: 2018-04-18 | L41: 3011 | M41: INE298G01027
A42: AKSHARCHEM | B42: EQ | C42: 600.05 | D42: 614 | E42: 600.05 | F42: 605.5 | G42: 602.2 | H42: 602.45 | I42: 3414 | J42: 2076993.45 | K42: 2018-04-18 | L42: 188 | M42: INE542B01011
A43: AKSHOPTFBR | B43: EQ | C43: 36.3 | D43: 37.9 | E43: 36.2 | F43: 36.9 | G43: 36.9 | H43: 36.55 | I43: 1063814 | J43: 39425819.25 | K43: 2018-04-18 | L43: 2901 | M43: INE523B01011
A44: AKZOINDIA | B44: EQ | C44: 1914 | D44: 1919.2 | E44: 1905 | F44: 1905.8 | G44: 1909 | H44: 1914.7 | I44: 4315 | J44: 8239850.25 | K44: 2018-04-18 | L44: 676 | M44: INE133A01011
A45: ALANKIT | B45: EQ | C45: 45.75 | D45: 45.75 | E45: 43.65 | F45: 44.15 | G45: 44.5 | H45: 44.6 | I45: 97249 | J45: 4330928.7 | K45: 2018-04-18 | L45: 442 | M45: INE914E01040
A46: ALBK | B46: EQ | C46: 51.75 | D46: 52.3 | E46: 50.85 | F46: 51.05 | G46: 50.85 | H46: 51.65 | I46: 2497065 | J46: 128701827 | K46: 2018-04-18 | L46: 8046 | M46: INE428A01015
A47: ALEMBICLTD | B47: EQ | C47: 58.9 | D47: 59.25 | E47: 57.5 | F47: 57.65 | G47: 57.7 | H47: 58.8 | I47: 241923 | J47: 14086422.15 | K47: 2018-04-18 | L47: 1678 | M47: INE426A01027
A48: ALICON | B48: EQ | C48: 602 | D48: 616 | E48: 601 | F48: 605.45 | G48: 601 | H48: 608 | I48: 710 | J48: 430845.3 | K48: 2018-04-18 | L48: 60 | M48: INE062D01024
A49: ALKALI | B49: EQ | C49: 78.9 | D49: 82.45 | E49: 76.6 | F49: 80.05 | G49: 79.9 | H49: 75.85 | I49: 66573 | J49: 5390784.05 | K49: 2018-04-18 | L49: 903 | M49: INE773I01017
A50: ALKEM | B50: EQ | C50: 1750 | D50: 1800 | E50: 1735.05 | F50: 1779.25 | G50: 1790 | H50: 1745.45 | I50: 33063 | J50: 58286789.35 | K50: 2018-04-18 | L50: 6402 | M50: INE540L01014
A51: ALKYLAMINE | B51: EQ | C51: 641.1 | D51: 641.1 | E51: 630 | F51: 636.9 | G51: 640 | H51: 641.1 | I51: 2019 | J51: 1280023.3 | K51: 2018-04-18 | L51: 112 | M51: INE150B01021
A52: ALLCARGO | B52: EQ | C52: 150 | D52: 151.75 | E52: 148.95 | F52: 149.3 | G52: 149.6 | H52: 149.6 | I52: 141383 | J52: 21180804.05 | K52: 2018-04-18 | L52: 2123 | M52: INE418H01029
A53: ALLSEC | B53: EQ | C53: 337.95 | D53: 339.05 | E53: 333.5 | F53: 335.25 | G53: 336.7 | H53: 336.3 | I53: 7096 | J53: 2380051.8 | K53: 2018-04-18 | L53: 278 | M53: INE835G01018
A54: ALMONDZ | B54: EQ | C54: 26.05 | D54: 27.1 | E54: 26 | F54: 26.3 | G54: 26.3 | H54: 26.85 | I54: 1991 | J54: 52159.1 | K54: 2018-04-18 | L54: 15 | M54: INE326B01027
A55: ALOKTEXT | B55: EQ | C55: 3.2 | D55: 3.2 | E55: 3.2 | F55: 3.2 | G55: 3.2 | H55: 3.35 | I55: 1454100 | J55: 4653120 | K55: 2018-04-18 | L55: 768 | M55: INE270A01011
A56: ALPA | B56: EQ | C56: 38.05 | D56: 38.2 | E56: 37.5 | F56: 38.05 | G56: 38 | H56: 38.35 | I56: 17341 | J56: 656336.45 | K56: 2018-04-18 | L56: 106 | M56: INE385I01010
A57: ALPHAGEO | B57: EQ | C57: 793.7 | D57: 803.8 | E57: 778 | F57: 784.25 | G57: 787 | H57: 801.15 | I57: 17778 | J57: 14059542.25 | K57: 2018-04-18 | L57: 1674 | M57: INE137C01018
A58: AMARAJABAT | B58: EQ | C58: 824 | D58: 853.85 | E58: 815.4 | F58: 848.85 | G58: 851 | H58: 819.6 | I58: 1195830 | J58: 1003589108 | K58: 2018-04-18 | L58: 27135 | M58: INE885A01032
A59: AMBER | B59: EQ | C59: 1123.5 | D59: 1123.5 | E59: 1108.15 | F59: 1111.75 | G59: 1110 | H59: 1112.5 | I59: 11747 | J59: 13114838.5 | K59: 2018-04-18 | L59: 1091 | M59: INE371P01015
A60: AMBIKCO | B60: EQ | C60: 1377 | D60: 1385 | E60: 1355 | F60: 1366.55 | G60: 1361 | H60: 1368.3 | I60: 1906 | J60: 2608270.75 | K60: 2018-04-18 | L60: 250 | M60: INE540G01014
A61: AMBUJACEM | B61: EQ | C61: 246.25 | D61: 246.95 | E61: 242.75 | F61: 244.9 | G61: 243.75 | H61: 244.85 | I61: 1693395 | J61: 415357503.4 | K61: 2018-04-18 | L61: 19393 | M61: INE079A01024
A62: AMJLAND | B62: EQ | C62: 23.6 | D62: 23.85 | E62: 23.1 | F62: 23.45 | G62: 23.5 | H62: 23.6 | I62: 7038 | J62: 164432.1 | K62: 2018-04-18 | L62: 39 | M62: INE606A01024
A63: AMRUTANJAN | B63: EQ | C63: 297 | D63: 300 | E63: 292.05 | F63: 294.05 | G63: 296.05 | H63: 298.85 | I63: 7590 | J63: 2243864.6 | K63: 2018-04-18 | L63: 407 | M63: INE098F01031
A64: ANANTRAJ | B64: EQ | C64: 50.05 | D64: 51 | E64: 49.5 | F64: 49.8 | G64: 49.75 | H64: 49.7 | I64: 1365490 | J64: 68410374.05 | K64: 2018-04-18 | L64: 3945 | M64: INE242C01024
A65: ANDHRABANK | B65: EQ | C65: 43 | D65: 43.25 | E65: 41.85 | F65: 42.05 | G65: 41.85 | H65: 43 | I65: 3729309 | J65: 158659385.9 | K65: 2018-04-18 | L65: 7303 | M65: INE434A01013
A66: ANDHRACEMT | B66: EQ | C66: 11.6 | D66: 11.6 | E66: 11.3 | F66: 11.3 | G66: 11.35 | H66: 11.35 | I66: 68192 | J66: 776221.2 | K66: 2018-04-18 | L66: 149 | M66: INE666E01012
A67: ANDHRSUGAR | B67: EQ | C67: 455.05 | D67: 459.95 | E67: 440.5 | F67: 443.55 | G67: 443 | H67: 454.5 | I67: 36761 | J67: 16552679.05 | K67: 2018-04-18 | L67: 1212 | M67: INE715B01013
A68: ANIKINDS | B68: EQ | C68: 34.1 | D68: 40.25 | E68: 34 | F68: 39.85 | G68: 40.25 | H68: 33.55 | I68: 79000 | J68: 3059230.7 | K68: 2018-04-18 | L68: 761 | M68: INE087B01017
A69: ANSALAPI | B69: EQ | C69: 21.1 | D69: 21.1 | E69: 20.35 | F69: 20.5 | G69: 20.5 | H69: 20.65 | I69: 72799 | J69: 1505735.6 | K69: 2018-04-18 | L69: 234 | M69: INE436A01026
A70: ANSALHSG | B70: EQ | C70: 20.6 | D70: 20.8 | E70: 20 | F70: 20.5 | G70: 20.45 | H70: 20.7 | I70: 22840 | J70: 467783.2 | K70: 2018-04-18 | L70: 132 | M70: INE880B01015
A71: APARINDS | B71: EQ | C71: 774.65 | D71: 782.9 | E71: 759 | F71: 779.5 | G71: 778 | H71: 772.6 | I71: 184913 | J71: 141945887.8 | K71: 2018-04-18 | L71: 669 | M71: INE372A01015
A72: APCL | B72: EQ | C72: 202.15 | D72: 206 | E72: 200.5 | F72: 201 | G72: 201 | H72: 203.95 | I72: 1663 | J72: 337180.4 | K72: 2018-04-18 | L72: 60 | M72: INE071F01012
A73: APCOTEXIND | B73: EQ | C73: 533.35 | D73: 543.95 | E73: 530 | F73: 535.25 | G73: 537.5 | H73: 531.35 | I73: 9148 | J73: 4908256.4 | K73: 2018-04-18 | L73: 375 | M73: INE116A01024
A74: APEX | B74: EQ | C74: 685 | D74: 686.7 | E74: 665 | F74: 667.1 | G74: 666 | H74: 679.5 | I74: 79066 | J74: 53333787.45 | K74: 2018-04-18 | L74: 3314 | M74: INE346W01013
A75: APLAPOLLO | B75: EQ | C75: 2130 | D75: 2186.95 | E75: 2121.1 | F75: 2131.05 | G75: 2125 | H75: 2163.85 | I75: 12345 | J75: 26449807.75 | K75: 2018-04-18 | L75: 1447 | M75: INE702C01019
A76: APLLTD | B76: EQ | C76: 510.8 | D76: 510.8 | E76: 497.3 | F76: 499.05 | G76: 498.15 | H76: 507.7 | I76: 11870 | J76: 5976108.25 | K76: 2018-04-18 | L76: 1063 | M76: INE901L01018
A77: APOLLO | B77: EQ | C77: 252 | D77: 252 | E77: 244.1 | F77: 245 | G77: 245.8 | H77: 250.25 | I77: 46517 | J77: 11494781.75 | K77: 2018-04-18 | L77: 1458 | M77: INE713T01010
A78: APOLLOHOSP | B78: EQ | C78: 1090 | D78: 1091 | E78: 1071 | F78: 1076.1 | G78: 1076 | H78: 1083.45 | I78: 154437 | J78: 166365499.6 | K78: 2018-04-18 | L78: 6222 | M78: INE437A01024
A79: APOLLOTYRE | B79: EQ | C79: 298.75 | D79: 299.2 | E79: 288.25 | F79: 289.45 | G79: 289.4 | H79: 296.55 | I79: 3521201 | J79: 1027762336 | K79: 2018-04-18 | L79: 43842 | M79: INE438A01022
A80: APOLSINHOT | B80: EQ | C80: 1545 | D80: 1575 | E80: 1390.05 | F80: 1399.95 | G80: 1398.8 | H80: 1536.9 | I80: 5455 | J80: 8128100.7 | K80: 2018-04-18 | L80: 937 | M80: INE451F01016
A81: APTECHT | B81: EQ | C81: 270.6 | D81: 278.9 | E81: 268 | F81: 269.4 | G81: 269.3 | H81: 268.35 | I81: 928459 | J81: 253774284.2 | K81: 2018-04-18 | L81: 9402 | M81: INE266F01018
A82: ARCHIDPLY | B82: EQ | C82: 90.35 | D82: 90.75 | E82: 87.6 | F82: 88.05 | G82: 88.05 | H82: 90 | I82: 42340 | J82: 3771863.1 | K82: 2018-04-18 | L82: 649 | M82: INE877I01016
A83: ARCHIES | B83: EQ | C83: 39.3 | D83: 45.65 | E83: 39.1 | F83: 43.3 | G83: 43.1 | H83: 39.05 | I83: 3829650 | J83: 164979408.7 | K83: 2018-04-18 | L83: 14415 | M83: INE731A01020
A84: ARCOTECH | B84: EQ | C84: 35.35 | D84: 35.5 | E84: 33 | F84: 33.3 | G84: 33.1 | H84: 35.2 | I84: 3208364 | J84: 107159887.8 | K84: 2018-04-18 | L84: 6901 | M84: INE574I01035
A85: ARIES | B85: EQ | C85: 211.95 | D85: 216 | E85: 207.1 | F85: 208.6 | G85: 209 | H85: 210.6 | I85: 45951 | J85: 9723616.25 | K85: 2018-04-18 | L85: 1511 | M85: INE298I01015
A86: ARIHANTSUP | B86: EQ | C86: 135.9 | D86: 139.45 | E86: 135.15 | F86: 136.05 | G86: 136.05 | H86: 137.55 | I86: 23747 | J86: 3256536.5 | K86: 2018-04-18 | L86: 992 | M86: INE643K01018
A87: ARMANFIN | B87: EQ | C87: 441 | D87: 444.35 | E87: 406.1 | F87: 441.3 | G87: 444.35 | H87: 423.2 | I87: 34827 | J87: 15123238.05 | K87: 2018-04-18 | L87: 1097 | M87: INE109C01017
A88: AROGRANITE | B88: EQ | C88: 60.95 | D88: 62 | E88: 60.15 | F88: 60.65 | G88: 60.5 | H88: 59.85 | I88: 41116 | J88: 2517877.25 | K88: 2018-04-18 | L88: 311 | M88: INE210C01013
A89: ARROWGREEN | B89: EQ | C89: 351 | D89: 355 | E89: 336.4 | F89: 340.65 | G89: 339.6 | H89: 350.95 | I89: 16462 | J89: 5685136.35 | K89: 2018-04-18 | L89: 872 | M89: INE570D01018
A90: ARROWTEX | B90: EQ | C90: 36.6 | D90: 37.5 | E90: 36.1 | F90: 36.4 | G90: 36.25 | H90: 36.85 | I90: 7797 | J90: 283516.1 | K90: 2018-04-18 | L90: 118 | M90: INE933J01015
A91: ARSHIYA | B91: EQ | C91: 76.8 | D91: 76.8 | E91: 74.1 | F91: 74.95 | G91: 75.4 | H91: 74.8 | I91: 39763 | J91: 2998059.15 | K91: 2018-04-18 | L91: 587 | M91: INE968D01022
A92: ARVIND | B92: EQ | C92: 419.5 | D92: 423.2 | E92: 414.95 | F92: 418.3 | G92: 421 | H92: 418.65 | I92: 1087662 | J92: 455759167.1 | K92: 2018-04-18 | L92: 16326 | M92: INE034A01011
A93: ARVSMART | B93: EQ | C93: 187.35 | D93: 188.2 | E93: 184.1 | F93: 185.05 | G93: 184.3 | H93: 187.65 | I93: 7563 | J93: 1410577.5 | K93: 2018-04-18 | L93: 230 | M93: INE034S01021
A94: ASAHIINDIA | B94: EQ | C94: 355.8 | D94: 356.85 | E94: 350 | F94: 353.25 | G94: 353 | H94: 354.7 | I94: 12118 | J94: 4287241.6 | K94: 2018-04-18 | L94: 269 | M94: INE439A01020
A95: ASAHISONG | B95: EQ | C95: 352.45 | D95: 359.7 | E95: 350.1 | F95: 352.15 | G95: 352 | H95: 350.25 | I95: 14534 | J95: 5139374.1 | K95: 2018-04-18 | L95: 442 | M95: INE228I01012
A96: ASAL | B96: EQ | C96: 81.2 | D96: 85 | E96: 80 | F96: 82.45 | G96: 81.5 | H96: 80.4 | I96: 26533 | J96: 2193600.45 | K96: 2018-04-18 | L96: 309 | M96: INE900C01027
A97: ASHAPURMIN | B97: EQ | C97: 79 | D97: 79.8 | E97: 76.5 | F97: 77.2 | G97: 77.25 | H97: 79.15 | I97: 116445 | J97: 9089675.1 | K97: 2018-04-18 | L97: 1483 | M97: INE348A01023
A98: ASHIANA | B98: EQ | C98: 166.6 | D98: 167 | E98: 161.7 | F98: 162.1 | G98: 161.85 | H98: 165.55 | I98: 420158 | J98: 69286338.2 | K98: 2018-04-18 | L98: 1152 | M98: INE365D01021
A99: ASHIMASYN | B99: EQ | C99: 30.4 | D99: 31 | E99: 30 | F99: 30.3 | G99: 30.5 | H99: 30.5 | I99: 229300 | J99: 7000779.3 | K99: 2018-04-18 | L99: 805 | M99: INE440A01010
A100: ASHOKA | B100: EQ | C100: 266.65 | D100: 269.1 | E100: 264.2 | F100: 267.05 | G100: 266.9 | H100: 264.55 | I100: 464400 | J100: 123563177.8 | K100: 2018-04-18 | L100: 20505 | M100: INE442H01029
A101: ASHOKLEY | B101: EQ | C101: 149.85 | D101: 151 | E101: 148.05 | F101: 149.4 | G101: 149.75 | H101: 149.4 | I101: 13484322 | J101: 2017921959 | K101: 2018-04-18 | L101: 52670 | M101: INE208A01029
A102: ASIANPAINT | B102: EQ | C102: 1179 | D102: 1185 | E102: 1168 | F102: 1172.3 | G102: 1169.7 | H102: 1176 | I102: 465763 | J102: 546334483 | K102: 2018-04-18 | L102: 28179 | M102: INE021A01026
A103: ASIANTILES | B103: EQ | C103: 497 | D103: 499.9 | E103: 495 | F103: 498.45 | G103: 497.1 | H103: 495.95 | I103: 15798 | J103: 7871245.2 | K103: 2018-04-18 | L103: 525 | M103: INE022I01019
A104: ASPINWALL | B104: EQ | C104: 392 | D104: 399.85 | E104: 388 | F104: 389.4 | G104: 391.1 | H104: 392.9 | I104: 1278 | J104: 502831.9 | K104: 2018-04-18 | L104: 21 | M104: INE991I01015
A105: ASSAMCO | B105: EQ | C105: 4.45 | D105: 4.45 | E105: 4.25 | F105: 4.3 | G105: 4.35 | H105: 4.35 | I105: 159758 | J105: 696073.2 | K105: 2018-04-18 | L105: 162 | M105: INE442A01024
A106: ASTEC | B106: EQ | C106: 590.4 | D106: 598.9 | E106: 590.4 | F106: 591.65 | G106: 590.6 | H106: 593.55 | I106: 12147 | J106: 7218635.65 | K106: 2018-04-18 | L106: 377 | M106: INE563J01010
A107: ASTERDM | B107: EQ | C107: 167.9 | D107: 168.05 | E107: 164 | F107: 164.65 | G107: 165 | H107: 166.45 | I107: 50154 | J107: 8315697.85 | K107: 2018-04-18 | L107: 1723 | M107: INE914M01019
A108: ASTRAL | B108: EQ | C108: 948 | D108: 949.5 | E108: 920 | F108: 922.9 | G108: 923.1 | H108: 940.55 | I108: 33433 | J108: 31140755.4 | K108: 2018-04-18 | L108: 3874 | M108: INE006I01046
A109: ASTRAMICRO | B109: EQ | C109: 81.8 | D109: 83.2 | E109: 79.8 | F109: 80.35 | G109: 80.5 | H109: 81.25 | I109: 203224 | J109: 16490236.1 | K109: 2018-04-18 | L109: 1537 | M109: INE386C01029
A110: ASTRAZEN | B110: EQ | C110: 1018 | D110: 1083.8 | E110: 1005.8 | F110: 1022.35 | G110: 1030 | H110: 994.55 | I110: 39055 | J110: 40690169.8 | K110: 2018-04-18 | L110: 4170 | M110: INE203A01020
A111: ASTRON | B111: EQ | C111: 125.85 | D111: 125.85 | E111: 122.1 | F111: 124 | G111: 124 | H111: 124.5 | I111: 83051 | J111: 10301874.8 | K111: 2018-04-18 | L111: 1023 | M111: INE646X01014
A112: ATFL | B112: EQ | C112: 713 | D112: 721.85 | E112: 708.95 | F112: 711.75 | G112: 713 | H112: 711.9 | I112: 47421 | J112: 33875170.55 | K112: 2018-04-18 | L112: 1039 | M112: INE209A01019
A113: ATLANTA | B113: EQ | C113: 81.5 | D113: 83.5 | E113: 80.5 | F113: 81.05 | G113: 80.9 | H113: 80.45 | I113: 119022 | J113: 9734937.2 | K113: 2018-04-18 | L113: 1274 | M113: INE285H01022
A114: ATUL | B114: EQ | C114: 2758.6 | D114: 2759 | E114: 2695.1 | F114: 2706.1 | G114: 2702.1 | H114: 2749.5 | I114: 6347 | J114: 17221857.8 | K114: 2018-04-18 | L114: 821 | M114: INE100A01010
A115: ATULAUTO | B115: EQ | C115: 436.1 | D115: 444 | E115: 432 | F115: 443.35 | G115: 443.85 | H115: 436.35 | I115: 63805 | J115: 28228909.95 | K115: 2018-04-18 | L115: 676 | M115: INE951D01028
A116: AUBANK | B116: EQ | C116: 653.8 | D116: 667.45 | E116: 652.45 | F116: 657.7 | G116: 658 | H116: 649.25 | I116: 155593 | J116: 102573104.8 | K116: 2018-04-18 | L116: 3368 | M116: INE949L01017
A117: AURIONPRO | B117: EQ | C117: 236.2 | D117: 244 | E117: 236.2 | F117: 238.4 | G117: 238.25 | H117: 238.7 | I117: 23805 | J117: 5704533.25 | K117: 2018-04-18 | L117: 418 | M117: INE132H01018
A118: AUROPHARMA | B118: EQ | C118: 622 | D118: 624.9 | E118: 607 | F118: 609.5 | G118: 610.75 | H118: 620.45 | I118: 804866 | J118: 495468071.1 | K118: 2018-04-18 | L118: 19834 | M118: INE406A01037
A119: AUSOMENT | B119: EQ | C119: 74.75 | D119: 82 | E119: 73.35 | F119: 80.35 | G119: 80 | H119: 73.3 | I119: 124267 | J119: 9686213.5 | K119: 2018-04-18 | L119: 1003 | M119: INE218C01016
A120: AUTOAXLES | B120: EQ | C120: 1619.25 | D120: 1619.25 | E120: 1535 | F120: 1545.05 | G120: 1548 | H120: 1601 | I120: 20478 | J120: 31941817.35 | K120: 2018-04-18 | L120: 2517 | M120: INE449A01011
A121: AUTOIND | B121: EQ | C121: 74.65 | D121: 79.75 | E121: 74.65 | F121: 77.65 | G121: 76.75 | H121: 76.05 | I121: 18873 | J121: 1469667.3 | K121: 2018-04-18 | L121: 376 | M121: INE718H01014
A122: AUTOLITIND | B122: EQ | C122: 73.6 | D122: 84 | E122: 72 | F122: 79.3 | G122: 79.8 | H122: 73.15 | I122: 370923 | J122: 30077845.15 | K122: 2018-04-18 | L122: 4047 | M122: INE448A01013
A123: AVADHSUGAR | B123: EQ | C123: 411 | D123: 415.5 | E123: 395 | F123: 396.9 | G123: 397.65 | H123: 408.15 | I123: 33715 | J123: 13593171.05 | K123: 2018-04-18 | L123: 1619 | M123: INE349W01017
A124: AVANTIFEED | B124: EQ | C124: 2160 | D124: 2179.9 | E124: 2150 | F124: 2162.5 | G124: 2170 | H124: 2151.85 | I124: 57467 | J124: 124330556.1 | K124: 2018-04-18 | L124: 5010 | M124: INE871C01020
A125: AVTNPL | B125: EQ | C125: 39.45 | D125: 40.35 | E125: 39.1 | F125: 39.25 | G125: 39.2 | H125: 39.6 | I125: 75221 | J125: 2981830.1 | K125: 2018-04-18 | L125: 475 | M125: INE488D01021
A126: AXISBANK | B126: EQ | C126: 535.5 | D126: 535.5 | E126: 516.5 | F126: 518.25 | G126: 517.7 | H126: 532.4 | I126: 7131174 | J126: 3752007708 | K126: 2018-04-18 | L126: 76698 | M126: INE238A01034
A127: AXISCADES | B127: EQ | C127: 171 | D127: 173 | E127: 165.35 | F127: 166.25 | G127: 166.4 | H127: 170.45 | I127: 87098 | J127: 14750176.2 | K127: 2018-04-18 | L127: 2068 | M127: INE555B01013
A128: AXISGOLD | B128: EQ | C128: 2808.95 | D128: 2809 | E128: 2781 | F128: 2797.65 | G128: 2807.5 | H128: 2766.3 | I128: 577 | J128: 1613338.05 | K128: 2018-04-18 | L128: 195 | M128: INF846K01347
A129: AYMSYNTEX | B129: EQ | C129: 61.85 | D129: 63.9 | E129: 61.85 | F129: 62.95 | G129: 63 | H129: 62.15 | I129: 40256 | J129: 2532376.5 | K129: 2018-04-18 | L129: 151 | M129: INE193B01039
A130: BAFNAPHARM | B130: EQ | C130: 30.5 | D130: 30.7 | E130: 28.7 | F130: 29.4 | G130: 29.4 | H130: 30.25 | I130: 36282 | J130: 1078580.15 | K130: 2018-04-18 | L130: 226 | M130: INE878I01014
A131: BAGFILMS | B131: EQ | C131: 5.55 | D131: 5.55 | E131: 5.25 | F131: 5.3 | G131: 5.35 | H131: 5.45 | I131: 165264 | J131: 885759.05 | K131: 2018-04-18 | L131: 181 | M131: INE116D01028
A132: BAJAJ-AUTO | B132: EQ | C132: 2879 | D132: 2879 | E132: 2845.7 | F132: 2862.05 | G132: 2852 | H132: 2864.2 | I132: 352687 | J132: 1010654135 | K132: 2018-04-18 | L132: 31771 | M132: INE917I01010
A133: BAJAJCORP | B133: EQ | C133: 473.6 | D133: 480 | E133: 471.55 | F133: 475.6 | G133: 476 | H133: 473.6 | I133: 28572 | J133: 13615615.85 | K133: 2018-04-18 | L133: 2307 | M133: INE933K01021
A134: BAJAJELEC | B134: EQ | C134: 658 | D134: 658.95 | E134: 645.5 | F134: 649.4 | G134: 649 | H134: 653.4 | I134: 631526 | J134: 411461655.9 | K134: 2018-04-18 | L134: 13599 | M134: INE193E01025
A135: BAJAJFINSV | B135: EQ | C135: 5435 | D135: 5456.9 | E135: 5354.8 | F135: 5371.85 | G135: 5355 | H135: 5426.1 | I135: 83355 | J135: 451045509.4 | K135: 2018-04-18 | L135: 9873 | M135: INE918I01018
A136: BAJAJHIND | B136: EQ | C136: 9.3 | D136: 9.35 | E136: 8.9 | F136: 8.95 | G136: 9 | H136: 9.25 | I136: 2107049 | J136: 19032897.3 | K136: 2018-04-18 | L136: 2584 | M136: INE306A01021
A137: BAJAJHLDNG | B137: EQ | C137: 2659.95 | D137: 2659.95 | E137: 2640 | F137: 2647.55 | G137: 2650 | H137: 2649.3 | I137: 8254 | J137: 21867756.15 | K137: 2018-04-18 | L137: 529 | M137: INE118A01012
A138: BAJFINANCE | B138: EQ | C138: 1946 | D138: 1950.55 | E138: 1921.3 | F138: 1926.85 | G138: 1927.15 | H138: 1935.05 | I138: 462905 | J138: 895368377.5 | K138: 2018-04-18 | L138: 20106 | M138: INE296A01024
A139: BALAJITELE | B139: EQ | C139: 134.5 | D139: 138.85 | E139: 132.5 | F139: 134.05 | G139: 134.65 | H139: 134.25 | I139: 103533 | J139: 14005561.8 | K139: 2018-04-18 | L139: 1357 | M139: INE794B01026
A140: BALAMINES | B140: EQ | C140: 682.5 | D140: 689 | E140: 671 | F140: 676.2 | G140: 676 | H140: 674.9 | I140: 28790 | J140: 19545890.35 | K140: 2018-04-18 | L140: 1034 | M140: INE050E01027
A141: BALKRISHNA | B141: EQ | C141: 88 | D141: 88 | E141: 85.1 | F141: 85.25 | G141: 85.9 | H141: 87.3 | I141: 11469 | J141: 990179.15 | K141: 2018-04-18 | L141: 120 | M141: INE875R01011
A142: BALKRISIND | B142: EQ | C142: 1320 | D142: 1330 | E142: 1302.5 | F142: 1307.15 | G142: 1308 | H142: 1315.35 | I142: 491937 | J142: 648097802.8 | K142: 2018-04-18 | L142: 17264 | M142: INE787D01026
A143: BALLARPUR | B143: EQ | C143: 13.6 | D143: 14.25 | E143: 13.55 | F143: 13.85 | G143: 13.85 | H143: 13.65 | I143: 1275298 | J143: 17671773.1 | K143: 2018-04-18 | L143: 2406 | M143: INE294A01037
A144: BALMLAWRIE | B144: EQ | C144: 223 | D144: 224.6 | E144: 222.2 | F144: 222.5 | G144: 222.4 | H144: 222.7 | I144: 43162 | J144: 9629034.35 | K144: 2018-04-18 | L144: 821 | M144: INE164A01016
A145: BALPHARMA | B145: EQ | C145: 82.25 | D145: 87.25 | E145: 82 | F145: 83.2 | G145: 83.05 | H145: 83.2 | I145: 12749 | J145: 1063413.05 | K145: 2018-04-18 | L145: 362 | M145: INE083D01012
A146: BALRAMCHIN | B146: EQ | C146: 74.45 | D146: 74.5 | E146: 70.25 | F146: 70.45 | G146: 70.25 | H146: 74 | I146: 7395211 | J146: 527786995.3 | K146: 2018-04-18 | L146: 23057 | M146: INE119A01028
A147: BANARBEADS | B147: EQ | C147: 62.4 | D147: 62.4 | E147: 59.5 | F147: 60.6 | G147: 60.6 | H147: 60.75 | I147: 383 | J147: 23358.75 | K147: 2018-04-18 | L147: 15 | M147: INE655B01011
A148: BANARISUG | B148: EQ | C148: 1799.95 | D148: 1799.95 | E148: 1780 | F148: 1785.05 | G148: 1780 | H148: 1810.7 | I148: 171 | J148: 305941.9 | K148: 2018-04-18 | L148: 30 | M148: INE459A01010
A149: BANCOINDIA | B149: EQ | C149: 225 | D149: 227.35 | E149: 224 | F149: 224.9 | G149: 224.5 | H149: 224.2 | I149: 33402 | J149: 7540185.05 | K149: 2018-04-18 | L149: 1378 | M149: INE213C01025
A150: BANDHANBNK | B150: EQ | C150: 508 | D150: 513.5 | E150: 501 | F150: 504.15 | G150: 504.1 | H150: 505.1 | I150: 815508 | J150: 413295189.4 | K150: 2018-04-18 | L150: 31105 | M150: INE545U01014
A151: BANG | B151: EQ | C151: 35.05 | D151: 36.05 | E151: 34.9 | F151: 35.75 | G151: 35.5 | H151: 35.3 | I151: 3306 | J151: 116917.2 | K151: 2018-04-18 | L151: 68 | M151: INE863I01016
A152: BANKBARODA | B152: EQ | C152: 148.5 | D152: 149.15 | E152: 140.85 | F152: 141.65 | G152: 142.25 | H152: 147.85 | I152: 17171761 | J152: 2485757277 | K152: 2018-04-18 | L152: 98218 | M152: INE028A01039
A153: BANKBEES | B153: EQ | C153: 2568.38 | D153: 2575.15 | E153: 2540.85 | F153: 2543.34 | G153: 2548 | H153: 2570.58 | I153: 80508 | J153: 204890207.1 | K153: 2018-04-18 | L153: 179 | M153: INF732E01078
A154: BANKINDIA | B154: EQ | C154: 110.8 | D154: 112.2 | E154: 108.45 | F154: 109.05 | G154: 109.1 | H154: 109.85 | I154: 7949925 | J154: 876813022.7 | K154: 2018-04-18 | L154: 26951 | M154: INE084A01016
A155: BANSWRAS | B155: EQ | C155: 102.55 | D155: 103 | E155: 99.7 | F155: 101.5 | G155: 101.5 | H155: 102.8 | I155: 8064 | J155: 821548.2 | K155: 2018-04-18 | L155: 133 | M155: INE629D01012
A156: BARTRONICS | B156: EQ | C156: 10.55 | D156: 10.55 | E156: 10.35 | F156: 10.45 | G156: 10.5 | H156: 10.5 | I156: 22799 | J156: 238333.55 | K156: 2018-04-18 | L156: 82 | M156: INE855F01034
A157: BASF | B157: EQ | C157: 2046.3 | D157: 2049 | E157: 2001 | F157: 2014.4 | G157: 2014.5 | H157: 2038.5 | I157: 3746 | J157: 7612942.1 | K157: 2018-04-18 | L157: 1079 | M157: INE373A01013
A158: BASML | B158: EQ | C158: 251.8 | D158: 251.8 | E158: 244.05 | F158: 245.35 | G158: 245 | H158: 246.6 | I158: 589 | J158: 146521 | K158: 2018-04-18 | L158: 23 | M158: INE186H01014
A159: BATAINDIA | B159: EQ | C159: 783.75 | D159: 783.75 | E159: 770.4 | F159: 775.6 | G159: 778 | H159: 780.5 | I159: 505963 | J159: 392043705.1 | K159: 2018-04-18 | L159: 15869 | M159: INE176A01028
A160: BAYERCROP | B160: EQ | C160: 4491.45 | D160: 4522 | E160: 4445.2 | F160: 4482.8 | G160: 4470.65 | H160: 4490.5 | I160: 6891 | J160: 30827803.85 | K160: 2018-04-18 | L160: 1927 | M160: INE462A01022
A161: BBL | B161: EQ | C161: 1661.9 | D161: 1661.9 | E161: 1604.05 | F161: 1612.15 | G161: 1614.95 | H161: 1647.1 | I161: 6713 | J161: 10935172.3 | K161: 2018-04-18 | L161: 705 | M161: INE464A01028
A162: BBTC | B162: EQ | C162: 1281 | D162: 1395 | E162: 1270 | F162: 1368.95 | G162: 1387 | H162: 1270.25 | I162: 1414411 | J162: 1915504936 | K162: 2018-04-18 | L162: 41408 | M162: INE050A01025
A163: BDL | B163: EQ | C163: 407.85 | D163: 409.65 | E163: 401.05 | F163: 404.7 | G163: 403 | H163: 405.15 | I163: 129015 | J163: 52282216.4 | K163: 2018-04-18 | L163: 4913 | M163: INE171Z01018
A164: BEARDSELL | B164: EQ | C164: 54.4 | D164: 55.9 | E164: 54 | F164: 54.1 | G164: 54.05 | H164: 53.65 | I164: 3124 | J164: 171445.75 | K164: 2018-04-18 | L164: 36 | M164: INE520H01022
A165: BEDMUTHA | B165: EQ | C165: 27.9 | D165: 31.2 | E165: 27.9 | F165: 31 | G165: 31.2 | H165: 26 | I165: 1202607 | J165: 35874657.4 | K165: 2018-04-18 | L165: 5243 | M165: INE844K01012
A166: BEL | B166: EQ | C166: 139.9 | D166: 140.5 | E166: 138.3 | F166: 138.7 | G166: 138.85 | H166: 138.95 | I166: 4571473 | J166: 638345536.5 | K166: 2018-04-18 | L166: 30308 | M166: INE263A01024
A167: BEML | B167: EQ | C167: 1132.95 | D167: 1137.4 | E167: 1112 | F167: 1120 | G167: 1115.1 | H167: 1130.8 | I167: 267775 | J167: 300307706.5 | K167: 2018-04-18 | L167: 7606 | M167: INE258A01016
A168: BEPL | B168: EQ | C168: 196 | D168: 203.7 | E168: 191.5 | F168: 200.8 | G168: 201.75 | H168: 194.5 | I168: 1900390 | J168: 377973455.4 | K168: 2018-04-18 | L168: 20550 | M168: INE922A01025
A169: BERGEPAINT | B169: EQ | C169: 277 | D169: 277.5 | E169: 268.3 | F169: 269.5 | G169: 269.2 | H169: 276.75 | I169: 396280 | J169: 107971299.5 | K169: 2018-04-18 | L169: 5551 | M169: INE463A01038
A170: BFINVEST | B170: EQ | C170: 304.6 | D170: 308 | E170: 295.25 | F170: 297.4 | G170: 298.5 | H170: 302.2 | I170: 85363 | J170: 25793295.45 | K170: 2018-04-18 | L170: 2864 | M170: INE878K01010
A171: BFUTILITIE | B171: EQ | C171: 422.9 | D171: 423.3 | E171: 407.1 | F171: 411.85 | G171: 412.2 | H171: 420.7 | I171: 428247 | J171: 177976594.8 | K171: 2018-04-18 | L171: 10010 | M171: INE243D01012
A172: BGRENERGY | B172: EQ | C172: 106.9 | D172: 107.9 | E172: 104.65 | F172: 105.25 | G172: 105.3 | H172: 106.45 | I172: 70230 | J172: 7463523.85 | K172: 2018-04-18 | L172: 982 | M172: INE661I01014
A173: BHAGERIA | B173: EQ | C173: 317.05 | D173: 324 | E173: 316.1 | F173: 318.6 | G173: 319.95 | H173: 317.05 | I173: 25756 | J173: 8230443.9 | K173: 2018-04-18 | L173: 545 | M173: INE354C01027
A174: BHAGYANGR | B174: EQ | C174: 56.2 | D174: 56.2 | E174: 51.65 | F174: 52.1 | G174: 52 | H174: 55.95 | I174: 436420 | J174: 23158883.3 | K174: 2018-04-18 | L174: 3882 | M174: INE458B01036
A175: BHAGYAPROP | B175: EQ | C175: 24.6 | D175: 25.45 | E175: 24 | F175: 24.65 | G175: 24.5 | H175: 25.1 | I175: 3862 | J175: 94930.8 | K175: 2018-04-18 | L175: 31 | M175: INE363W01018
A176: BHANDARI | B176: EQ | C176: 3.25 | D176: 3.35 | E176: 3.1 | F176: 3.25 | G176: 3.3 | H176: 3.15 | I176: 1313904 | J176: 4210816.55 | K176: 2018-04-18 | L176: 166 | M176: INE474E01029
A177: BHARATFIN | B177: EQ | C177: 1153.35 | D177: 1155 | E177: 1134 | F177: 1139.25 | G177: 1140 | H177: 1152.9 | I177: 382750 | J177: 438075315.8 | K177: 2018-04-18 | L177: 9219 | M177: INE180K01011
A178: BHARATFORG | B178: EQ | C178: 740.9 | D178: 746 | E178: 732.4 | F178: 736.65 | G178: 738 | H178: 738.15 | I178: 600450 | J178: 444469060.4 | K178: 2018-04-18 | L178: 16073 | M178: INE465A01025
A179: BHARATGEAR | B179: EQ | C179: 186.95 | D179: 192 | E179: 183 | F179: 184.1 | G179: 183.6 | H179: 185.55 | I179: 186225 | J179: 35239706.25 | K179: 2018-04-18 | L179: 2780 | M179: INE561C01019
A180: BHARATIWIN | B180: EQ | C180: 36.11 | D180: 36.47 | E180: 36 | F180: 36.28 | G180: 36.3 | H180: 36.17 | I180: 802402 | J180: 29153532.7 | K180: 2018-04-18 | L180: 1738 | M180: INF109KB15Y7
A181: BHARATRAS | B181: EQ | C181: 4885 | D181: 4968 | E181: 4801 | F181: 4916 | G181: 4902 | H181: 4881.55 | I181: 730 | J181: 3564473.25 | K181: 2018-04-18 | L181: 234 | M181: INE838B01013
A182: BHARATWIRE | B182: EQ | C182: 124.85 | D182: 125 | E182: 118 | F182: 120.3 | G182: 120 | H182: 124.05 | I182: 109536 | J182: 13232357.55 | K182: 2018-04-18 | L182: 1513 | M182: INE316L01019
A183: BHARTIARTL | B183: EQ | C183: 383.7 | D183: 391.85 | E183: 382.35 | F183: 384.25 | G183: 386.25 | H183: 382.05 | I183: 5732851 | J183: 2216084654 | K183: 2018-04-18 | L183: 73819 | M183: INE397D01024
A184: BHEL | B184: EQ | C184: 88.45 | D184: 88.95 | E184: 87.4 | F184: 87.85 | G184: 87.55 | H184: 88.15 | I184: 2178827 | J184: 192340803.7 | K184: 2018-04-18 | L184: 9407 | M184: INE257A01026
A185: BHUSANSTL | B185: EQ | C185: 42.25 | D185: 42.5 | E185: 35.4 | F185: 40.4 | G185: 40.4 | H185: 42.85 | I185: 3520119 | J185: 142364610.8 | K185: 2018-04-18 | L185: 14477 | M185: INE824B01021
A186: BIGBLOC | B186: EQ | C186: 175 | D186: 183.5 | E186: 172.55 | F186: 174.75 | G186: 174 | H186: 173.6 | I186: 56902 | J186: 10102172.45 | K186: 2018-04-18 | L186: 1115 | M186: INE412U01017
A187: BIL | B187: EQ | C187: 414.8 | D187: 414.8 | E187: 401.15 | F187: 405.15 | G187: 405 | H187: 404.95 | I187: 2641 | J187: 1079415.8 | K187: 2018-04-18 | L187: 73 | M187: INE828A01016
A188: BILENERGY | B188: EQ | C188: 0.85 | D188: 0.85 | E188: 0.75 | F188: 0.75 | G188: 0.75 | H188: 0.8 | I188: 588385 | J188: 443869.5 | K188: 2018-04-18 | L188: 149 | M188: INE607L01029
A189: BILPOWER | B189: EQ | C189: 1.45 | D189: 1.45 | E189: 1.45 | F189: 1.45 | G189: 1.45 | H189: 1.5 | I189: 1500 | J189: 2175 | K189: 2018-04-18 | L189: 1 | M189: INE952D01018
A190: BINANIIND | B190: EQ | C190: 101.95 | D190: 101.95 | E190: 99.1 | F190: 99.9 | G190: 99.1 | H190: 99.1 | I190: 132769 | J190: 13323758.9 | K190: 2018-04-18 | L190: 2027 | M190: INE071A01013
A191: BINDALAGRO | B191: EQ | C191: 29.3 | D191: 29.6 | E191: 28.15 | F191: 28.35 | G191: 28.3 | H191: 28.85 | I191: 13572 | J191: 388096.55 | K191: 2018-04-18 | L191: 154 | M191: INE143A01010
A192: BIOCON | B192: EQ | C192: 627 | D192: 629.4 | E192: 620.2 | F192: 623.7 | G192: 623.75 | H192: 626.25 | I192: 853008 | J192: 532803231.7 | K192: 2018-04-18 | L192: 14264 | M192: INE376G01013
A193: BIRLACABLE | B193: EQ | C193: 95.45 | D193: 102.2 | E193: 94 | F193: 99.7 | G193: 99.95 | H193: 93.35 | I193: 631139 | J193: 62271806.55 | K193: 2018-04-18 | L193: 6057 | M193: INE800A01015
A194: BIRLACORPN | B194: EQ | C194: 758 | D194: 762.55 | E194: 745.55 | F194: 750 | G194: 758 | H194: 752 | I194: 57247 | J194: 43188216.2 | K194: 2018-04-18 | L194: 2539 | M194: INE340A01012
A195: BKMINDST | B195: EQ | C195: 30.35 | D195: 30.55 | E195: 28.7 | F195: 30.4 | G195: 30.25 | H195: 30 | I195: 22617 | J195: 672335.75 | K195: 2018-04-18 | L195: 122 | M195: INE831Q01016
A196: BLBLIMITED | B196: EQ | C196: 9.05 | D196: 9.05 | E196: 9.05 | F196: 9.05 | G196: 9.05 | H196: 8.65 | I196: 16645 | J196: 150637.25 | K196: 2018-04-18 | L196: 13 | M196: INE791A01024
A197: BLISSGVS | B197: EQ | C197: 202.75 | D197: 204.25 | E197: 200 | F197: 200.6 | G197: 200.3 | H197: 202.7 | I197: 256048 | J197: 51986582.8 | K197: 2018-04-18 | L197: 1948 | M197: INE416D01022
A198: BLKASHYAP | B198: EQ | C198: 46.4 | D198: 49.65 | E198: 46.2 | F198: 48.05 | G198: 47.8 | H198: 45.85 | I198: 840042 | J198: 40679487.6 | K198: 2018-04-18 | L198: 4325 | M198: INE350H01032
A199: BLS | B199: EQ | C199: 141.9 | D199: 150.65 | E199: 140 | F199: 146.7 | G199: 148.4 | H199: 140.45 | I199: 465028 | J199: 68193384.65 | K199: 2018-04-18 | L199: 5467 | M199: INE153T01027
A200: BLUEBLENDS | B200: EQ | C200: 21.4 | D200: 21.4 | E200: 19.05 | F200: 20.05 | G200: 20.6 | H200: 20.65 | I200: 43392 | J200: 856419.3 | K200: 2018-04-18 | L200: 270 | M200: INE113O01014
... 1665 more rows
